Workbook

Sheet Kalkulator (hidden)
A1: Podaj Datę | C1: Typ kontraktu | F1: typ
A2: ='Kalkulator Depozytów'!F12 -> 00:00:00 | C2: GAS_BASE
W3: ile < 0 | X3: ile > 0 | Y3: minimalne >0 | Z3: maksymalne <0
W4: =COUNTIF(U8:U23,"<0") -> 16 | X4: =COUNTIF(V8:V23,"<0") -> 16 | Y4: =SMALL(U8:U23,W4+1) ->  | Z4: =SMALL(V8:V23,X4) -> -1892
P5: Suma Depozytów | AB5: różnica | AC5: ile dodać?
P6: =SUM(P8:P29) -> 0 | Q6: =SUM(Q8:Q29)*'Kalkulator Depozytów'!F14 ->  | U6: miejsce na date początkową | V6: miejsce na datę końcową | Y6: =VLOOKUP(Y4,U8:X23,4,0) ->  | Z6: =VLOOKUP(Z4,V8:X23,3,0) -> 16 | AB6: =Y6-Z6+1 -> 
A7: Początek | B7: Koniec | C7: Nominał | D7: Wolumen Kupna | E7: ŚWKK | F7: Wolumen Sprzedaży | G7: ŚWWS | H7: Kurs Rozliczeniowy | I7: Współczynnik Ryzyka | K7: Dni | L7: godziny czas letni/zimowy | M7: Liczba dni roboczych | N7: Liczba dnia świątecznych | P7: Depozyt uzupełniający | Q7: Depozyt wstępny | U7: 2025-10-01 | V7: 2025-12-31 | Z7: 10 | AF7: data koniec | AK7: czy święto | AP7: sum jeżeli
A8: 2023-10-27 | B8: 2023-10-27 | C8: =IF($C$2="GAS_BASE",(B8-A8+1)*koszyki!$A$14+J8,IF($C$2="OFFPEAK",M8*koszyki!$A$14+(N8)*24+J8,IF($C$2="BASE5",M8*koszyki!$A$14+J8,IF($C$2="PEAK7",(B8-A8+1)*koszyki!$A$14,M8*koszyki!$A$14)))) -> 24 | D8: ='Kalkulator Depozytów'!M13 -> 0 | E8: ='Kalkulator Depozytów'!N13 -> 0 | F8: ='Kalkulator Depozytów'!O13 -> 0 | G8: ='Kalkulator Depozytów'!P13 -> 0 | H8: ='Kalkulator Depozytów'!Q13 -> 0 | I8: =ROUND(AVERAGE(INDIRECT("krzywa!C"&MATCH(A8-$A$2,krzywa!A:A,0)&":C"&MATCH(B8-$A$2,krzywa!A:A,0),TRUE)),4) ->  | K8: =IF(-($A$2-B8)<364,-($A$2-B8),365) -> 365 | L8: GAS_BASE | M8: =NETWORKDAYS(A8,B8,koszyki!$M$20:$M$89) -> 1 | N8: =B8-A8+1- NETWORKDAYS(A8,B8,koszyki!$M$20:$M$89) -> 0 | P8: =(C8*D8)*(H8-E8)-(C8*F8)*(H8-G8) -> 0 | Q8: =-C8*ABS(D8-F8)*H8*I8 ->  | U8: =Y8-$U$7 -> -4567 | V8: =Y8-$V$7 -> -4658 | X8: 1 | Y8: 2013-03-31 | Z8: -1 | AF8: =B8 -> 2023-10-27 | AG8: =AF8-1 -> 2023-10-26 | AH8: =AG8-1 -> 2023-10-25 | AI8: =AH8-1 -> 2023-10-24 | AK8: =NETWORKDAYS(AF8,AF8,koszyki!$M$20:$M$89) -> 1 | AL8: =NETWORKDAYS(AG8,AG8,koszyki!$M$20:$M$89) -> 1 | AM8: =NETWORKDAYS(AH8,AH8,koszyki!$M$20:$M$89) -> 1 | AN8: =NETWORKDAYS(AI8,AI8,koszyki!$M$20:$M$89) -> 1 | AP8: =SUM(AK8) -> 1 | AQ8: =SUM(AK8:AL8) -> 2 | AR8: =SUM(AK8:AM8) -> 3 | AS8: =SUM(AK8:AN8) -> 4 | AU8: =COUNTIF(AP8:AS8,"=0") -> 0
A9: 2023-10-28 | B9: 2023-10-28 | C9: =IF($C$2="GAS_BASE",(B9-A9+1)*koszyki!$A$14+J9,IF($C$2="OFFPEAK",M9*koszyki!$A$14+(N9)*24+J9,IF($C$2="BASE5",M9*koszyki!$A$14+J9,IF($C$2="PEAK7",(B9-A9+1)*koszyki!$A$14,M9*koszyki!$A$14)))) -> 24 | D9: ='Kalkulator Depozytów'!M14 -> 0 | E9: ='Kalkulator Depozytów'!N14 -> 0 | F9: ='Kalkulator Depozytów'!O14 -> 0 | G9: ='Kalkulator Depozytów'!P14 -> 0 | H9: ='Kalkulator Depozytów'!Q14 -> 0 | I9: =ROUND(AVERAGE(INDIRECT("krzywa!C"&MATCH(A9-$A$2,krzywa!A:A,0)&":C"&MATCH(B9-$A$2,krzywa!A:A,0),TRUE)),4) ->  | K9: =IF(-($A$2-B9)<364,-($A$2-B9),365) -> 365 | L9: GAS_BASE | M9: =NETWORKDAYS(A9,B9,koszyki!$M$20:$M$89) -> 0 | N9: =B9-A9+1- NETWORKDAYS(A9,B9,koszyki!$M$20:$M$89) -> 1 | P9: =(C9*D9)*(H9-E9)-(C9*F9)*(H9-G9) -> 0 | Q9: =-C9*ABS(D9-F9)*H9*I9 ->  | U9: =Y9-$U$7 -> -4357 | V9: =Y9-$V$7 -> -4448 | X9: 2 | Y9: 2013-10-27 | Z9: 1 | AF9: =B9 -> 2023-10-28 | AG9: =AF9-1 -> 2023-10-27 | AH9: 2023-10-26 | AI9: 2023-10-25 | AK9: =NETWORKDAYS(AF9,AF9,koszyki!$M$20:$M$89) -> 0 | AL9: =NETWORKDAYS(AG9,AG9,koszyki!$M$20:$M$89) -> 1 | AM9: =NETWORKDAYS(AH9,AH9,koszyki!$M$20:$M$89) -> 1 | AN9: =NETWORKDAYS(AI9,AI9,koszyki!$M$20:$M$89) -> 1 | AP9: =SUM(AK9) -> 0 | AQ9: =SUM(AK9:AL9) -> 1 | AR9: =SUM(AK9:AM9) -> 2 | AS9: =SUM(AK9:AN9) -> 3 | AU9: =COUNTIF(AP9:AS9,"=0") -> 1
A10: 2023-10-29 | B10: 2023-10-29 | C10: =IF($C$2="GAS_BASE",(B10-A10+1)*koszyki!$A$14+J10,IF($C$2="OFFPEAK",M10*koszyki!$A$14+(N10)*24+J10,IF($C$2="BASE5",M10*koszyki!$A$14+J10,IF($C$2="PEAK7",(B10-A10+1)*koszyki!$A$14,M10*koszyki!$A$14)))) -> 24 | D10: ='Kalkulator Depozytów'!M15 -> 0 | E10: ='Kalkulator Depozytów'!N15 -> 0 | F10: ='Kalkulator Depozytów'!O15 -> 0 | G10: ='Kalkulator Depozytów'!P15 -> 0 | H10: ='Kalkulator Depozytów'!Q15 -> 0 | I10: =ROUND(AVERAGE(INDIRECT("krzywa!C"&MATCH(A10-$A$2,krzywa!A:A,0)&":C"&MATCH(B10-$A$2,krzywa!A:A,0),TRUE)),4) ->  | K10: 365 | L10: GAS_BASE | M10: =NETWORKDAYS(A10,B10,koszyki!$M$20:$M$89) -> 0 | N10: =B10-A10+1- NETWORKDAYS(A10,B10,koszyki!$M$20:$M$89) -> 1 | P10: 0 | U10: -4203 | V10: -4294 | X10: 3 | Y10: 2014-03-30 | Z10: -1 | AF10: 2023-10-29 | AG10: =AF10-1 -> 2023-10-28 | AH10: 2023-10-27 | AI10: 2023-10-26 | AK10: =NETWORKDAYS(AF10,AF10,koszyki!$M$20:$M$89) -> 0 | AL10: =NETWORKDAYS(AG10,AG10,koszyki!$M$20:$M$89) -> 0 | AM10: =NETWORKDAYS(AH10,AH10,koszyki!$M$20:$M$89) -> 1 | AN10: =NETWORKDAYS(AI10,AI10,koszyki!$M$20:$M$89) -> 1 | AP10: 0 | AQ10: 0 | AR10: 1 | AS10: 2 | AU10: 2
A11: 2023-10-30 | B11: 2023-10-30 | C11: =IF($C$2="GAS_BASE",(B11-A11+1)*koszyki!$A$14+J11,IF($C$2="OFFPEAK",M11*koszyki!$A$14+(N11)*24+J11,IF($C$2="BASE5",M11*koszyki!$A$14+J11,IF($C$2="PEAK7",(B11-A11+1)*koszyki!$A$14,M11*koszyki!$A$14)))) -> 24 | D11: ='Kalkulator Depozytów'!M16 -> 0 | E11: ='Kalkulator Depozytów'!N16 -> 0 | F11: ='Kalkulator Depozytów'!O16 -> 0 | G11: ='Kalkulator Depozytów'!P16 -> 0 | H11: ='Kalkulator Depozytów'!Q16 -> 0 | I11: =ROUND(AVERAGE(INDIRECT("krzywa!C"&MATCH(A11-$A$2,krzywa!A:A,0)&":C"&MATCH(B11-$A$2,krzywa!A:A,0),TRUE)),4) ->  | K11: 365 | L11: GAS_BASE | M11: =NETWORKDAYS(A11,B11,koszyki!$M$20:$M$89) -> 1 | N11: =B11-A11+1- NETWORKDAYS(A11,B11,koszyki!$M$20:$M$89) -> 0 | P11: 0 | U11: -3993 | V11: -4084 | X11: 4 | Y11: 2014-10-26 | Z11: 1 | AF11: 2023-10-30 | AG11: =AF11-1 -> 2023-10-29 | AH11: 2023-10-28 | AI11: 2023-10-27 | AK11: =NETWORKDAYS(AF11,AF11,koszyki!$M$20:$M$89) -> 1 | AL11: =NETWORKDAYS(AG11,AG11,koszyki!$M$20:$M$89) -> 0 | AM11: =NETWORKDAYS(AH11,AH11,koszyki!$M$20:$M$89) -> 0 | AN11: =NETWORKDAYS(AI11,AI11,koszyki!$M$20:$M$89) -> 1 | AP11: 1 | AQ11: 1 | AR11: 1 | AS11: 2 | AU11: 0
A12: 2023-10-31 | B12: 2023-10-31 | C12: =IF($C$2="GAS_BASE",(B12-A12+1)*koszyki!$A$14+J12,IF($C$2="OFFPEAK",M12*koszyki!$A$14+(N12)*24+J12,IF($C$2="BASE5",M12*koszyki!$A$14+J12,IF($C$2="PEAK7",(B12-A12+1)*koszyki!$A$14,M12*koszyki!$A$14)))) -> 24 | D12: ='Kalkulator Depozytów'!M17 -> 0 | E12: ='Kalkulator Depozytów'!N17 -> 0 | F12: ='Kalkulator Depozytów'!O17 -> 0 | G12: ='Kalkulator Depozytów'!P17 -> 0 | H12: ='Kalkulator Depozytów'!Q17 -> 0 | I12: =ROUND(AVERAGE(INDIRECT("krzywa!C"&MATCH(A12-$A$2,krzywa!A:A,0)&":C"&MATCH(B12-$A$2,krzywa!A:A,0),TRUE)),4) ->  | K12: 365 | L12: GAS_BASE | M12: =NETWORKDAYS(A12,B12,koszyki!$M$20:$M$89) -> 1 | N12: =B12-A12+1- NETWORKDAYS(A12,B12,koszyki!$M$20:$M$89) -> 0 | P12: 0 | U12: -3839 | V12: -3930 | X12: 5 | Y12: 2015-03-29 | Z12: -1 | AF12: 2023-10-31 | AG12: =AF12-1 -> 2023-10-30 | AH12: 2023-10-29 | AI12: 2023-10-28 | AK12: =NETWORKDAYS(AF12,AF12,koszyki!$M$20:$M$89) -> 1 | AL12: =NETWORKDAYS(AG12,AG12,koszyki!$M$20:$M$89) -> 1 | AM12: =NETWORKDAYS(AH12,AH12,koszyki!$M$20:$M$89) -> 0 | AN12: =NETWORKDAYS(AI12,AI12,koszyki!$M$20:$M$89) -> 0 | AP12: 1 | AQ12: 2 | AR12: 2 | AS12: 2 | AU12: 0
A13: 2023-11-01 | B13: 2023-11-01 | C13: =IF($C$2="GAS_BASE",(B13-A13+1)*koszyki!$A$14+J13,IF($C$2="OFFPEAK",M13*koszyki!$A$14+(N13)*24+J13,IF($C$2="BASE5",M13*koszyki!$A$14+J13,IF($C$2="PEAK7",(B13-A13+1)*koszyki!$A$14,M13*koszyki!$A$14)))) -> 24 | D13: ='Kalkulator Depozytów'!M18 -> 0 | E13: ='Kalkulator Depozytów'!N18 -> 0 | F13: ='Kalkulator Depozytów'!O18 -> 0 | G13: ='Kalkulator Depozytów'!P18 -> 0 | H13: ='Kalkulator Depozytów'!Q18 -> 0 | I13: =ROUND(AVERAGE(INDIRECT("krzywa!C"&MATCH(A13-$A$2,krzywa!A:A,0)&":C"&MATCH(B13-$A$2,krzywa!A:A,0),TRUE)),4) ->  | K13: 365 | L13: GAS_BASE | M13: =NETWORKDAYS(A13,B13,koszyki!$M$20:$M$89) -> 1 | N13: =B13-A13+1- NETWORKDAYS(A13,B13,koszyki!$M$20:$M$89) -> 0 | P13: 0 | U13: -3629 | V13: -3720 | X13: 6 | Y13: 2015-10-25 | Z13: 1 | AF13: 2023-11-01 | AG13: =AF13-1 -> 2023-10-31 | AH13: 2023-10-30 | AI13: 2023-10-29 | AK13: =NETWORKDAYS(AF13,AF13,koszyki!$M$20:$M$89) -> 1 | AL13: =NETWORKDAYS(AG13,AG13,koszyki!$M$20:$M$89) -> 1 | AM13: =NETWORKDAYS(AH13,AH13,koszyki!$M$20:$M$89) -> 1 | AN13: =NETWORKDAYS(AI13,AI13,koszyki!$M$20:$M$89) -> 0 | AP13: 1 | AQ13: 2 | AR13: 3 | AS13: 3 | AU13: 0
A14: 2023-11-02 | B14: 2023-11-02 | C14: =IF($C$2="GAS_BASE",(B14-A14+1)*koszyki!$A$14+J14,IF($C$2="OFFPEAK",M14*koszyki!$A$14+(N14)*24+J14,IF($C$2="BASE5",M14*koszyki!$A$14+J14,IF($C$2="PEAK7",(B14-A14+1)*koszyki!$A$14,M14*koszyki!$A$14)))) -> 24 | D14: ='Kalkulator Depozytów'!M19 -> 0 | E14: ='Kalkulator Depozytów'!N19 -> 0 | F14: ='Kalkulator Depozytów'!O19 -> 0 | G14: ='Kalkulator Depozytów'!P19 -> 0 | H14: ='Kalkulator Depozytów'!Q19 -> 0 | I14: =ROUND(AVERAGE(INDIRECT("krzywa!C"&MATCH(A14-$A$2,krzywa!A:A,0)&":C"&MATCH(B14-$A$2,krzywa!A:A,0),TRUE)),4) ->  | K14: 365 | L14: GAS_BASE | M14: =NETWORKDAYS(A14,B14,koszyki!$M$20:$M$89) -> 1 | N14: =B14-A14+1- NETWORKDAYS(A14,B14,koszyki!$M$20:$M$89) -> 0 | P14: 0 | U14: -3475 | V14: -3566 | X14: 7 | Y14: 2016-03-27 | Z14: -1 | AF14: 2023-11-02 | AG14: =AF14-1 -> 2023-11-01 | AH14: 2023-10-31 | AI14: 2023-10-30 | AK14: =NETWORKDAYS(AF14,AF14,koszyki!$M$20:$M$89) -> 1 | AL14: =NETWORKDAYS(AG14,AG14,koszyki!$M$20:$M$89) -> 1 | AM14: =NETWORKDAYS(AH14,AH14,koszyki!$M$20:$M$89) -> 1 | AN14: =NETWORKDAYS(AI14,AI14,koszyki!$M$20:$M$89) -> 1 | AP14: 1 | AQ14: 2 | AR14: 3 | AS14: 4 | AU14: 0
A15: 2023-11-03 | B15: 2023-11-03 | C15: =IF($C$2="GAS_BASE",(B15-A15+1)*koszyki!$A$14+J15,IF($C$2="OFFPEAK",M15*koszyki!$A$14+(N15)*24+J15,IF($C$2="BASE5",M15*koszyki!$A$14+J15,IF($C$2="PEAK7",(B15-A15+1)*koszyki!$A$14,M15*koszyki!$A$14)))) -> 24 | D15: ='Kalkulator Depozytów'!M20 -> 0 | E15: ='Kalkulator Depozytów'!N20 -> 0 | F15: ='Kalkulator Depozytów'!O20 -> 0 | G15: ='Kalkulator Depozytów'!P20 -> 0 | H15: ='Kalkulator Depozytów'!Q20 -> 0 | I15: =ROUND(AVERAGE(INDIRECT("krzywa!C"&MATCH(A15-$A$2,krzywa!A:A,0)&":C"&MATCH(B15-$A$2,krzywa!A:A,0),TRUE)),4) ->  | K15: 365 | L15: GAS_BASE | M15: =NETWORKDAYS(A15,B15,koszyki!$M$20:$M$89) -> 1 | N15: =B15-A15+1- NETWORKDAYS(A15,B15,koszyki!$M$20:$M$89) -> 0 | P15: 0 | U15: -3258 | V15: -3349 | X15: 8 | Y15: 2016-10-30 | Z15: 1 | AF15: 2023-11-03 | AG15: =AF15-1 -> 2023-11-02 | AH15: 2023-11-01 | AI15: 2023-10-31 | AK15: =NETWORKDAYS(AF15,AF15,koszyki!$M$20:$M$89) -> 1 | AL15: =NETWORKDAYS(AG15,AG15,koszyki!$M$20:$M$89) -> 1 | AM15: =NETWORKDAYS(AH15,AH15,koszyki!$M$20:$M$89) -> 1 | AN15: =NETWORKDAYS(AI15,AI15,koszyki!$M$20:$M$89) -> 1 | AP15: 1 | AQ15: 2 | AR15: 3 | AS15: 4 | AU15: 0
A16: 2023-11-04 | B16: 2023-11-04 | C16: =IF($C$2="GAS_BASE",(B16-A16+1)*koszyki!$A$14+J16,IF($C$2="OFFPEAK",M16*koszyki!$A$14+(N16)*24+J16,IF($C$2="BASE5",M16*koszyki!$A$14+J16,IF($C$2="PEAK7",(B16-A16+1)*koszyki!$A$14,M16*koszyki!$A$14)))) -> 24 | D16: ='Kalkulator Depozytów'!M21 -> 0 | E16: ='Kalkulator Depozytów'!N21 -> 0 | F16: ='Kalkulator Depozytów'!O21 -> 0 | G16: ='Kalkulator Depozytów'!P21 -> 0 | H16: ='Kalkulator Depozytów'!Q21 -> 0 | I16: =ROUND(AVERAGE(INDIRECT("krzywa!C"&MATCH(A16-$A$2,krzywa!A:A,0)&":C"&MATCH(B16-$A$2,krzywa!A:A,0),TRUE)),4) ->  | K16: 365 | L16: GAS_BASE | M16: =NETWORKDAYS(A16,B16,koszyki!$M$20:$M$89) -> 0 | N16: =B16-A16+1- NETWORKDAYS(A16,B16,koszyki!$M$20:$M$89) -> 1 | P16: 0 | U16: -3111 | V16: -3202 | X16: 9 | Y16: 2017-03-26 | Z16: -1 | AF16: 2023-11-04 | AG16: =AF16-1 -> 2023-11-03 | AH16: 2023-11-02 | AI16: 2023-11-01 | AK16: =NETWORKDAYS(AF16,AF16,koszyki!$M$20:$M$89) -> 0 | AL16: =NETWORKDAYS(AG16,AG16,koszyki!$M$20:$M$89) -> 1 | AM16: =NETWORKDAYS(AH16,AH16,koszyki!$M$20:$M$89) -> 1 | AN16: =NETWORKDAYS(AI16,AI16,koszyki!$M$20:$M$89) -> 1 | AP16: 0 | AQ16: 1 | AR16: 2 | AS16: 3 | AU16: 1
A17: 2023-11-05 | B17: 2023-11-05 | C17: =IF($C$2="GAS_BASE",(B17-A17+1)*koszyki!$A$14+J17,IF($C$2="OFFPEAK",M17*koszyki!$A$14+(N17)*24+J17,IF($C$2="BASE5",M17*koszyki!$A$14+J17,IF($C$2="PEAK7",(B17-A17+1)*koszyki!$A$14,M17*koszyki!$A$14)))) -> 24 | D17: ='Kalkulator Depozytów'!M22 -> 0 | E17: ='Kalkulator Depozytów'!N22 -> 0 | F17: ='Kalkulator Depozytów'!O22 -> 0 | G17: ='Kalkulator Depozytów'!P22 -> 0 | H17: ='Kalkulator Depozytów'!Q22 -> 0 | I17: =ROUND(AVERAGE(INDIRECT("krzywa!C"&MATCH(A17-$A$2,krzywa!A:A,0)&":C"&MATCH(B17-$A$2,krzywa!A:A,0),TRUE)),4) ->  | K17: 365 | L17: GAS_BASE | M17: =NETWORKDAYS(A17,B17,koszyki!$M$20:$M$89) -> 0 | N17: =B17-A17+1- NETWORKDAYS(A17,B17,koszyki!$M$20:$M$89) -> 1 | P17: 0 | U17: -2894 | V17: -2985 | X17: 10 | Y17: 2017-10-29 | Z17: 1 | AF17: 2023-11-05 | AG17: =AF17-1 -> 2023-11-04 | AH17: 2023-11-03 | AI17: 2023-11-02 | AK17: =NETWORKDAYS(AF17,AF17,koszyki!$M$20:$M$89) -> 0 | AL17: =NETWORKDAYS(AG17,AG17,koszyki!$M$20:$M$89) -> 0 | AM17: =NETWORKDAYS(AH17,AH17,koszyki!$M$20:$M$89) -> 1 | AN17: =NETWORKDAYS(AI17,AI17,koszyki!$M$20:$M$89) -> 1 | AP17: 0 | AQ17: 0 | AR17: 1 | AS17: 2 | AU17: 2
A18: 2023-11-06 | B18: 2023-11-12 | C18: =IF($C$2="GAS_BASE",(B18-A18+1)*koszyki!$A$14+J18,IF($C$2="OFFPEAK",M18*koszyki!$A$14+(N18)*24+J18,IF($C$2="BASE5",M18*koszyki!$A$14+J18,IF($C$2="PEAK7",(B18-A18+1)*koszyki!$A$14,M18*koszyki!$A$14)))) -> 168 | D18: ='Kalkulator Depozytów'!M23 -> 0 | E18: ='Kalkulator Depozytów'!N23 -> 0 | F18: ='Kalkulator Depozytów'!O23 -> 0 | G18: ='Kalkulator Depozytów'!P23 -> 0 | H18: ='Kalkulator Depozytów'!Q23 -> 0 | I18: =ROUND(AVERAGE(INDIRECT("krzywa!C"&MATCH(A18-$A$2,krzywa!A:A,0)&":C"&MATCH(B18-$A$2,krzywa!A:A,0),TRUE)),4) ->  | K18: 365 | L18: GAS_BASE | M18: =NETWORKDAYS(A18,B18,koszyki!$M$20:$M$89) -> 5 | N18: =B18-A18+1- NETWORKDAYS(A18,B18,koszyki!$M$20:$M$89) -> 2 | P18: 0 | U18: -2747 | V18: -2838 | X18: 11 | Y18: 2018-03-25 | Z18: -1 | AF18: 2023-11-12 | AG18: =AF18-1 -> 2023-11-11 | AH18: 2023-11-10 | AI18: 2023-11-09 | AK18: =NETWORKDAYS(AF18,AF18,koszyki!$M$20:$M$89) -> 0 | AL18: =NETWORKDAYS(AG18,AG18,koszyki!$M$20:$M$89) -> 0 | AM18: =NETWORKDAYS(AH18,AH18,koszyki!$M$20:$M$89) -> 1 | AN18: =NETWORKDAYS(AI18,AI18,koszyki!$M$20:$M$89) -> 1 | AP18: 0 | AQ18: 0 | AR18: 1 | AS18: 2 | AU18: 2
A19: 2023-11-13 | B19: 2023-11-19 | C19: =IF($C$2="GAS_BASE",(B19-A19+1)*koszyki!$A$14+J19,IF($C$2="OFFPEAK",M19*koszyki!$A$14+(N19)*24+J19,IF($C$2="BASE5",M19*koszyki!$A$14+J19,IF($C$2="PEAK7",(B19-A19+1)*koszyki!$A$14,M19*koszyki!$A$14)))) -> 168 | D19: ='Kalkulator Depozytów'!M24 -> 0 | E19: ='Kalkulator Depozytów'!N24 -> 0 | F19: ='Kalkulator Depozytów'!O24 -> 0 | G19: ='Kalkulator Depozytów'!P24 -> 0 | H19: ='Kalkulator Depozytów'!Q24 -> 0 | I19: =ROUND(AVERAGE(INDIRECT("krzywa!C"&MATCH(A19-$A$2,krzywa!A:A,0)&":C"&MATCH(B19-$A$2,krzywa!A:A,0),TRUE)),4) ->  | K19: 365 | L19: GAS_BASE | M19: =NETWORKDAYS(A19,B19,koszyki!$M$20:$M$89) -> 5 | N19: =B19-A19+1- NETWORKDAYS(A19,B19,koszyki!$M$20:$M$89) -> 2 | P19: 0 | U19: -2530 | V19: -2621 | X19: 12 | Y19: 2018-10-28 | Z19: 1 | AF19: 2023-11-19 | AG19: =AF19-1 -> 2023-11-18 | AH19: 2023-11-17 | AI19: 2023-11-16 | AK19: =NETWORKDAYS(AF19,AF19,koszyki!$M$20:$M$89) -> 0 | AL19: =NETWORKDAYS(AG19,AG19,koszyki!$M$20:$M$89) -> 0 | AM19: =NETWORKDAYS(AH19,AH19,koszyki!$M$20:$M$89) -> 1 | AN19: =NETWORKDAYS(AI19,AI19,koszyki!$M$20:$M$89) -> 1 | AP19: 0 | AQ19: 0 | AR19: 1 | AS19: 2 | AU19: 2
A20: 2023-11-20 | B20: 2023-11-26 | C20: =IF($C$2="GAS_BASE",(B20-A20+1)*koszyki!$A$14+J20,IF($C$2="OFFPEAK",M20*koszyki!$A$14+(N20)*24+J20,IF($C$2="BASE5",M20*koszyki!$A$14+J20,IF($C$2="PEAK7",(B20-A20+1)*koszyki!$A$14,M20*koszyki!$A$14)))) -> 168 | D20: ='Kalkulator Depozytów'!M25 -> 0 | E20: ='Kalkulator Depozytów'!N25 -> 0 | F20: ='Kalkulator Depozytów'!O25 -> 0 | G20: ='Kalkulator Depozytów'!P25 -> 0 | H20: ='Kalkulator Depozytów'!Q25 -> 0 | I20: =ROUND(AVERAGE(INDIRECT("krzywa!C"&MATCH(A20-$A$2,krzywa!A:A,0)&":C"&MATCH(B20-$A$2,krzywa!A:A,0),TRUE)),4) ->  | K20: 365 | L20: GAS_BASE | M20: =NETWORKDAYS(A20,B20,koszyki!$M$20:$M$89) -> 5 | N20: =B20-A20+1- NETWORKDAYS(A20,B20,koszyki!$M$20:$M$89) -> 2 | P20: 0 | U20: -2376 | V20: -2467 | X20: 13 | Y20: 2019-03-31 | Z20: -1 | AF20: 2023-11-26 | AG20: =AF20-1 -> 2023-11-25 | AH20: 2023-11-24 | AI20: 2023-11-23 | AK20: =NETWORKDAYS(AF20,AF20,koszyki!$M$20:$M$89) -> 0 | AL20: =NETWORKDAYS(AG20,AG20,koszyki!$M$20:$M$89) -> 0 | AM20: =NETWORKDAYS(AH20,AH20,koszyki!$M$20:$M$89) -> 1 | AN20: =NETWORKDAYS(AI20,AI20,koszyki!$M$20:$M$89) -> 1 | AP20: 0 | AQ20: 0 | AR20: 1 | AS20: 2 | AU20: 2
A21: 2023-11-27 | B21: 2023-11-30 | C21: =IF($C$2="GAS_BASE",(B21-A21+1)*koszyki!$A$14+J21,IF($C$2="OFFPEAK",M21*koszyki!$A$14+(N21)*24+J21,IF($C$2="BASE5",M21*koszyki!$A$14+J21,IF($C$2="PEAK7",(B21-A21+1)*koszyki!$A$14,M21*koszyki!$A$14)))) -> 96 | D21: ='Kalkulator Depozytów'!M26 -> 0 | E21: ='Kalkulator Depozytów'!N26 -> 0 | F21: ='Kalkulator Depozytów'!O26 -> 0 | G21: ='Kalkulator Depozytów'!P26 -> 0 | H21: ='Kalkulator Depozytów'!Q26 -> 0 | I21: =ROUND(AVERAGE(INDIRECT("krzywa!C"&MATCH(A21-$A$2,krzywa!A:A,0)&":C"&MATCH(B21-$A$2,krzywa!A:A,0),TRUE)),4) ->  | K21: 365 | L21: GAS_BASE | M21: =NETWORKDAYS(A21,B21,koszyki!$M$20:$M$89) -> 4 | N21: =B21-A21+1- NETWORKDAYS(A21,B21,koszyki!$M$20:$M$89) -> 0 | P21: 0 | U21: -2166 | V21: -2257 | X21: 14 | Y21: 2019-10-27 | Z21: 1 | AF21: 2023-11-30 | AG21: =AF21-1 -> 2023-11-29 | AH21: 2023-11-28 | AI21: 2023-11-27 | AK21: =NETWORKDAYS(AF21,AF21,koszyki!$M$20:$M$89) -> 1 | AL21: =NETWORKDAYS(AG21,AG21,koszyki!$M$20:$M$89) -> 1 | AM21: =NETWORKDAYS(AH21,AH21,koszyki!$M$20:$M$89) -> 1 | AN21: =NETWORKDAYS(AI21,AI21,koszyki!$M$20:$M$89) -> 1 | AP21: 1 | AQ21: 2 | AR21: 3 | AS21: 4 | AU21: 0
A22: 2023-12-01 | B22: 2023-12-31 | C22: =IF($C$2="GAS_BASE",(B22-A22+1)*koszyki!$A$14+J22,IF($C$2="OFFPEAK",M22*koszyki!$A$14+(N22)*24+J22,IF($C$2="BASE5",M22*koszyki!$A$14+J22,IF($C$2="PEAK7",(B22-A22+1)*koszyki!$A$14,M22*koszyki!$A$14)))) -> 744 | D22: ='Kalkulator Depozytów'!M27 -> 0 | E22: ='Kalkulator Depozytów'!N27 -> 0 | F22: ='Kalkulator Depozytów'!O27 -> 0 | G22: ='Kalkulator Depozytów'!P27 -> 0 | H22: ='Kalkulator Depozytów'!Q27 -> 0 | I22: =ROUND(AVERAGE(INDIRECT("krzywa!C"&MATCH(A22-$A$2,krzywa!A:A,0)&":C"&MATCH(B22-$A$2,krzywa!A:A,0),TRUE)),4) ->  | K22: 365 | L22: GAS_BASE | M22: =NETWORKDAYS(A22,B22,koszyki!$M$20:$M$89) -> 21 | N22: =B22-A22+1- NETWORKDAYS(A22,B22,koszyki!$M$20:$M$89) -> 10 | P22: 0 | U22: -2012 | V22: -2103 | X22: 15 | Y22: 2020-03-29 | Z22: -1 | AF22: 2023-12-31 | AG22: =AF22-1 -> 2023-12-30 | AH22: 2023-12-29 | AI22: 2023-12-28 | AK22: =NETWORKDAYS(AF22,AF22,koszyki!$M$20:$M$89) -> 0 | AL22: =NETWORKDAYS(AG22,AG22,koszyki!$M$20:$M$89) -> 0 | AM22: =NETWORKDAYS(AH22,AH22,koszyki!$M$20:$M$89) -> 1 | AN22: =NETWORKDAYS(AI22,AI22,koszyki!$M$20:$M$89) -> 1 | AP22: 0 | AQ22: 0 | AR22: 1 | AS22: 2 | AU22: 2
A23: 2024-01-01 | B23: 2024-01-31 | C23: =IF($C$2="GAS_BASE",(B23-A23+1)*koszyki!$A$14+J23,IF($C$2="OFFPEAK",M23*koszyki!$A$14+(N23)*24+J23,IF($C$2="BASE5",M23*koszyki!$A$14+J23,IF($C$2="PEAK7",(B23-A23+1)*koszyki!$A$14,M23*koszyki!$A$14)))) -> 744 | D23: ='Kalkulator Depozytów'!M28 -> 0 | E23: ='Kalkulator Depozytów'!N28 -> 0 | F23: ='Kalkulator Depozytów'!O28 -> 0 | G23: ='Kalkulator Depozytów'!P28 -> 0 | H23: ='Kalkulator Depozytów'!Q28 -> 0 | I23: =ROUND(AVERAGE(INDIRECT("krzywa!C"&MATCH(A23-$A$2,krzywa!A:A,0)&":C"&MATCH(B23-$A$2,krzywa!A:A,0),TRUE)),4) ->  | K23: 365 | L23: GAS_BASE | M23: =NETWORKDAYS(A23,B23,koszyki!$M$20:$M$89) -> 23 | N23: =B23-A23+1- NETWORKDAYS(A23,B23,koszyki!$M$20:$M$89) -> 8 | P23: 0 | U23: -1801 | V23: -1892 | X23: 16 | Y23: 2020-10-26 | Z23: 1 | AF23: 2024-01-31 | AG23: =AF23-1 -> 2024-01-30 | AH23: 2024-01-29 | AI23: 2024-01-28 | AK23: =NETWORKDAYS(AF23,AF23,koszyki!$M$20:$M$89) -> 1 | AL23: =NETWORKDAYS(AG23,AG23,koszyki!$M$20:$M$89) -> 1 | AM23: =NETWORKDAYS(AH23,AH23,koszyki!$M$20:$M$89) -> 1 | AN23: =NETWORKDAYS(AI23,AI23,koszyki!$M$20:$M$89) -> 0 | AP23: 1 | AQ23: 2 | AR23: 3 | AS23: 3 | AU23: 0
A24: 2024-02-01 | B24: 2024-03-31 | C24: =IF($C$2="GAS_BASE",(B24-A24+1)*koszyki!$A$14+J24,IF($C$2="OFFPEAK",M24*koszyki!$A$14+(N24)*24+J24,IF($C$2="BASE5",M24*koszyki!$A$14+J24,IF($C$2="PEAK7",(B24-A24+1)*koszyki!$A$14,M24*koszyki!$A$14)))) -> 1440 | D24: ='Kalkulator Depozytów'!M29 -> 0 | E24: ='Kalkulator Depozytów'!N29 -> 0 | F24: ='Kalkulator Depozytów'!O29 -> 0 | G24: ='Kalkulator Depozytów'!P29 -> 0 | H24: ='Kalkulator Depozytów'!Q29 -> 0 | I24: =ROUND(AVERAGE(INDIRECT("krzywa!C"&MATCH(A24-$A$2,krzywa!A:A,0)&":C"&MATCH(B24-$A$2,krzywa!A:A,0),TRUE)),4) ->  | K24: 365 | L24: GAS_BASE | M24: =NETWORKDAYS(A24,B24,koszyki!$M$20:$M$89) -> 42 | N24: =B24-A24+1- NETWORKDAYS(A24,B24,koszyki!$M$20:$M$89) -> 18 | P24: 0 | AF24: 2024-03-31 | AG24: =AF24-1 -> 2024-03-30 | AH24: 2024-03-29 | AI24: 2024-03-28 | AK24: =NETWORKDAYS(AF24,AF24,koszyki!$M$20:$M$89) -> 0 | AL24: =NETWORKDAYS(AG24,AG24,koszyki!$M$20:$M$89) -> 0 | AM24: =NETWORKDAYS(AH24,AH24,koszyki!$M$20:$M$89) -> 1 | AN24: =NETWORKDAYS(AI24,AI24,koszyki!$M$20:$M$89) -> 1 | AP24: 0 | AQ24: 0 | AR24: 1 | AS24: 2 | AU24: 2
A25: 2024-04-01 | B25: 2024-06-30 | C25: =IF($C$2="GAS_BASE",(B25-A25+1)*koszyki!$A$14+J25,IF($C$2="OFFPEAK",M25*koszyki!$A$14+(N25)*24+J25,IF($C$2="BASE5",M25*koszyki!$A$14+J25,IF($C$2="PEAK7",(B25-A25+1)*koszyki!$A$14,M25*koszyki!$A$14)))) -> 2184 | D25: ='Kalkulator Depozytów'!M30 -> 0 | E25: ='Kalkulator Depozytów'!N30 -> 0 | F25: ='Kalkulator Depozytów'!O30 -> 0 | G25: ='Kalkulator Depozytów'!P30 -> 0 | H25: ='Kalkulator Depozytów'!Q30 -> 0 | I25: =ROUND(AVERAGE(INDIRECT("krzywa!C"&MATCH(A25-$A$2,krzywa!A:A,0)&":C"&MATCH(B25-$A$2,krzywa!A:A,0),TRUE)),4) ->  | K25: 365 | L25: GAS_BASE | M25: =NETWORKDAYS(A25,B25,koszyki!$M$20:$M$89) -> 65 | N25: =B25-A25+1- NETWORKDAYS(A25,B25,koszyki!$M$20:$M$89) -> 26 | P25: 0 | AF25: 2024-06-30 | AG25: =AF25-1 -> 2024-06-29 | AH25: 2024-06-28 | AI25: 2024-06-27 | AK25: =NETWORKDAYS(AF25,AF25,koszyki!$M$20:$M$89) -> 0 | AL25: =NETWORKDAYS(AG25,AG25,koszyki!$M$20:$M$89) -> 0 | AM25: =NETWORKDAYS(AH25,AH25,koszyki!$M$20:$M$89) -> 1 | AN25: =NETWORKDAYS(AI25,AI25,koszyki!$M$20:$M$89) -> 1 | AP25: 0 | AQ25: 0 | AR25: 1 | AS25: 2 | AU25: 2
A26: 2024-07-01 | B26: 2024-09-30 | C26: =IF($C$2="GAS_BASE",(B26-A26+1)*koszyki!$A$14+J26,IF($C$2="OFFPEAK",M26*koszyki!$A$14+(N26)*24+J26,IF($C$2="BASE5",M26*koszyki!$A$14+J26,IF($C$2="PEAK7",(B26-A26+1)*koszyki!$A$14,M26*koszyki!$A$14)))) -> 2208 | D26: ='Kalkulator Depozytów'!M31 -> 0 | E26: ='Kalkulator Depozytów'!N31 -> 0 | F26: ='Kalkulator Depozytów'!O31 -> 0 | G26: ='Kalkulator Depozytów'!P31 -> 0 | H26: ='Kalkulator Depozytów'!Q31 -> 0 | I26: =ROUND(AVERAGE(INDIRECT("krzywa!C"&MATCH(A26-$A$2,krzywa!A:A,0)&":C"&MATCH(B26-$A$2,krzywa!A:A,0),TRUE)),4) ->  | K26: 365 | L26: GAS_BASE | M26: =NETWORKDAYS(A26,B26,koszyki!$M$20:$M$89) -> 66 | N26: =B26-A26+1- NETWORKDAYS(A26,B26,koszyki!$M$20:$M$89) -> 26 | P26: 0 | AF26: 2024-09-30 | AG26: =AF26-1 -> 2024-09-29 | AH26: 2024-09-28 | AI26: 2024-09-27 | AK26: =NETWORKDAYS(AF26,AF26,koszyki!$M$20:$M$89) -> 1 | AL26: =NETWORKDAYS(AG26,AG26,koszyki!$M$20:$M$89) -> 0 | AM26: =NETWORKDAYS(AH26,AH26,koszyki!$M$20:$M$89) -> 0 | AN26: =NETWORKDAYS(AI26,AI26,koszyki!$M$20:$M$89) -> 1 | AP26: 1 | AQ26: 1 | AR26: 1 | AS26: 2 | AU26: 0
A27: 2024-10-01 | B27: 2024-12-31 | C27: =IF($C$2="GAS_BASE",(B27-A27+1)*koszyki!$A$14+J27,IF($C$2="OFFPEAK",M27*koszyki!$A$14+(N27)*24+J27,IF($C$2="BASE5",M27*koszyki!$A$14+J27,IF($C$2="PEAK7",(B27-A27+1)*koszyki!$A$14,M27*koszyki!$A$14)))) -> 2208 | D27: ='Kalkulator Depozytów'!M32 -> 0 | E27: ='Kalkulator Depozytów'!N32 -> 0 | F27: ='Kalkulator Depozytów'!O32 -> 0 | G27: ='Kalkulator Depozytów'!P32 -> 0 | H27: ='Kalkulator Depozytów'!Q32 -> 0 | I27: =ROUND(AVERAGE(INDIRECT("krzywa!C"&MATCH(A27-$A$2,krzywa!A:A,0)&":C"&MATCH(B27-$A$2,krzywa!A:A,0),TRUE)),4) ->  | K27: 365 | L27: GAS_BASE | M27: =NETWORKDAYS(A27,B27,koszyki!$M$20:$M$89) -> 66 | N27: =B27-A27+1- NETWORKDAYS(A27,B27,koszyki!$M$20:$M$89) -> 26 | P27: 0 | AF27: 2024-12-31 | AG27: =AF27-1 -> 2024-12-30 | AH27: 2024-12-29 | AI27: 2024-12-28 | AK27: =NETWORKDAYS(AF27,AF27,koszyki!$M$20:$M$89) -> 1 | AL27: =NETWORKDAYS(AG27,AG27,koszyki!$M$20:$M$89) -> 1 | AM27: =NETWORKDAYS(AH27,AH27,koszyki!$M$20:$M$89) -> 0 | AN27: =NETWORKDAYS(AI27,AI27,koszyki!$M$20:$M$89) -> 0 | AP27: 1 | AQ27: 2 | AR27: 2 | AS27: 2 | AU27: 0
A28: 2025-01-01 | B28: 2025-03-31 | C28: =IF($C$2="GAS_BASE",(B28-A28+1)*koszyki!$A$14+J28,IF($C$2="OFFPEAK",M28*koszyki!$A$14+(N28)*24+J28,IF($C$2="BASE5",M28*koszyki!$A$14+J28,IF($C$2="PEAK7",(B28-A28+1)*koszyki!$A$14,M28*koszyki!$A$14)))) -> 2160 | D28: ='Kalkulator Depozytów'!M33 -> 0 | E28: ='Kalkulator Depozytów'!N33 -> 0 | F28: ='Kalkulator Depozytów'!O33 -> 0 | G28: ='Kalkulator Depozytów'!P33 -> 0 | H28: ='Kalkulator Depozytów'!Q33 -> 0 | I28: =ROUND(AVERAGE(INDIRECT("krzywa!C"&MATCH(A28-$A$2,krzywa!A:A,0)&":C"&MATCH(B28-$A$2,krzywa!A:A,0),TRUE)),4) ->  | K28: 365 | L28: GAS_BASE | M28: =NETWORKDAYS(A28,B28,koszyki!$M$20:$M$89) -> 64 | N28: =B28-A28+1- NETWORKDAYS(A28,B28,koszyki!$M$20:$M$89) -> 26 | P28: 0 | AF28: 2025-03-31 | AG28: =AF28-1 -> 2025-03-30 | AH28: 2025-03-29 | AI28: 2025-03-28 | AK28: =NETWORKDAYS(AF28,AF28,koszyki!$M$20:$M$89) -> 1 | AL28: =NETWORKDAYS(AG28,AG28,koszyki!$M$20:$M$89) -> 0 | AM28: =NETWORKDAYS(AH28,AH28,koszyki!$M$20:$M$89) -> 0 | AN28: =NETWORKDAYS(AI28,AI28,koszyki!$M$20:$M$89) -> 1 | AP28: 1 | AQ28: 1 | AR28: 1 | AS28: 2 | AU28: 0
A29: 2025-04-01 | B29: 2025-09-30 | C29: =IF($C$2="GAS_BASE",(B29-A29+1)*koszyki!$A$14+J29,IF($C$2="OFFPEAK",M29*koszyki!$A$14+(N29)*24+J29,IF($C$2="BASE5",M29*koszyki!$A$14+J29,IF($C$2="PEAK7",(B29-A29+1)*koszyki!$A$14,M29*koszyki!$A$14)))) -> 4392 | D29: ='Kalkulator Depozytów'!M34 -> 0 | E29: ='Kalkulator Depozytów'!N34 -> 0 | F29: ='Kalkulator Depozytów'!O34 -> 0 | G29: ='Kalkulator Depozytów'!P34 -> 0 | H29: ='Kalkulator Depozytów'!Q34 -> 0 | I29: =ROUND(AVERAGE(INDIRECT("krzywa!C"&MATCH(A29-$A$2,krzywa!A:A,0)&":C"&MATCH(B29-$A$2,krzywa!A:A,0),TRUE)),4) ->  | K29: 365 | L29: GAS_BASE | M29: =NETWORKDAYS(A29,B29,koszyki!$M$20:$M$89) -> 131 | N29: =B29-A29+1- NETWORKDAYS(A29,B29,koszyki!$M$20:$M$89) -> 52 | P29: 0 | AF29: 2025-09-30 | AG29: =AF29-1 -> 2025-09-29 | AH29: 2025-09-28 | AI29: 2025-09-27 | AK29: =NETWORKDAYS(AF29,AF29,koszyki!$M$20:$M$89) -> 1 | AL29: =NETWORKDAYS(AG29,AG29,koszyki!$M$20:$M$89) -> 1 | AM29: =NETWORKDAYS(AH29,AH29,koszyki!$M$20:$M$89) -> 0 | AN29: =NETWORKDAYS(AI29,AI29,koszyki!$M$20:$M$89) -> 0 | AP29: 1 | AQ29: 2 | AR29: 2 | AS29: 2 | AU29: 0
A30: 2025-10-01 | B30: 2025-12-31 | C30: =IF($C$2="GAS_BASE",(B30-A30+1)*koszyki!$A$14+J30,IF($C$2="OFFPEAK",M30*koszyki!$A$14+(N30)*24+J30,IF($C$2="BASE5",M30*koszyki!$A$14+J30,IF($C$2="PEAK7",(B30-A30+1)*koszyki!$A$14,M30*koszyki!$A$14)))) -> 2208 | D30: ='Kalkulator Depozytów'!M35 -> 0 | E30: ='Kalkulator Depozytów'!N35 -> 0 | F30: ='Kalkulator Depozytów'!O35 -> 0 | G30: ='Kalkulator Depozytów'!P35 -> 0 | H30: ='Kalkulator Depozytów'!Q35 -> 0 | I30: =ROUND(AVERAGE(INDIRECT("krzywa!C"&MATCH(A30-$A$2,krzywa!A:A,0)&":C"&MATCH(B30-$A$2,krzywa!A:A,0),TRUE)),4) ->  | K30: 365 | L30: GAS_BASE | M30: =NETWORKDAYS(A30,B30,koszyki!$M$20:$M$89) -> 66 | N30: =B30-A30+1- NETWORKDAYS(A30,B30,koszyki!$M$20:$M$89) -> 26 | P30: 0 | AF30: 2025-12-31 | AG30: =AF30-1 -> 2025-12-30 | AH30: 2025-12-29 | AI30: 2025-12-28 | AK30: =NETWORKDAYS(AF30,AF30,koszyki!$M$20:$M$89) -> 1 | AL30: =NETWORKDAYS(AG30,AG30,koszyki!$M$20:$M$89) -> 1 | AM30: =NETWORKDAYS(AH30,AH30,koszyki!$M$20:$M$89) -> 1 | AN30: =NETWORKDAYS(AI30,AI30,koszyki!$M$20:$M$89) -> 0 | AP30: 1 | AQ30: 2 | AR30: 3 | AS30: 3 | AU30: 0
C31: =IF($C$2="GAS_BASE",(B31-A31+1)*koszyki!$A$14+J31,IF($C$2="OFFPEAK",M31*koszyki!$A$14+(N31)*24+J31,IF($C$2="BASE5",M31*koszyki!$A$14+J31,IF($C$2="PEAK7",(B31-A31+1)*koszyki!$A$14,M31*koszyki!$A$14)))) -> 24 | D31: ='Kalkulator Depozytów'!M36 -> 0 | E31: ='Kalkulator Depozytów'!N36 -> 0 | F31: ='Kalkulator Depozytów'!O36 -> 0 | G31: ='Kalkulator Depozytów'!P36 -> 0 | H31: ='Kalkulator Depozytów'!Q36 -> 0 | I31: =ROUND(AVERAGE(INDIRECT("krzywa!C"&MATCH(A31-$A$2,krzywa!A:A,0)&":C"&MATCH(B31-$A$2,krzywa!A:A,0),TRUE)),4) ->  | K31: 0 | L31: GAS_BASE | M31: =NETWORKDAYS(A31,B31,koszyki!$M$20:$M$89) -> 0 | N31: =B31-A31+1- NETWORKDAYS(A31,B31,koszyki!$M$20:$M$89) -> 1 | P31: 0 | AF31: 00:00:00 | AG31: =AF31-1 -> -1 | AH31: -2 | AI31: -3 | AK31: =NETWORKDAYS(AF31,AF31,koszyki!$M$20:$M$89) -> 0 | AL31: =NETWORKDAYS(AG31,AG31,koszyki!$M$20:$M$89) ->  | AM31: =NETWORKDAYS(AH31,AH31,koszyki!$M$20:$M$89) ->  | AN31: =NETWORKDAYS(AI31,AI31,koszyki!$M$20:$M$89) ->  | AP31: 0 | AU31: 1
C32: =IF($C$2="GAS_BASE",(B32-A32+1)*koszyki!$A$14+J32,IF($C$2="OFFPEAK",M32*koszyki!$A$14+(N32)*24+J32,IF($C$2="BASE5",M32*koszyki!$A$14+J32,IF($C$2="PEAK7",(B32-A32+1)*koszyki!$A$14,M32*koszyki!$A$14)))) -> 24 | D32: ='Kalkulator Depozytów'!M37 -> 0 | E32: ='Kalkulator Depozytów'!N37 -> 0 | F32: ='Kalkulator Depozytów'!O37 -> 0 | G32: ='Kalkulator Depozytów'!P37 -> 0 | H32: ='Kalkulator Depozytów'!Q37 -> 0 | I32: =ROUND(AVERAGE(INDIRECT("krzywa!C"&MATCH(A32-$A$2,krzywa!A:A,0)&":C"&MATCH(B32-$A$2,krzywa!A:A,0),TRUE)),4) ->  | K32: 0 | L32: GAS_BASE | M32: =NETWORKDAYS(A32,B32,koszyki!$M$20:$M$89) -> 0 | N32: =B32-A32+1- NETWORKDAYS(A32,B32,koszyki!$M$20:$M$89) -> 1 | P32: 0 | AF32: 00:00:00 | AG32: =AF32-1 -> -1 | AH32: -2 | AI32: -3 | AK32: =NETWORKDAYS(AF32,AF32,koszyki!$M$20:$M$89) -> 0 | AL32: =NETWORKDAYS(AG32,AG32,koszyki!$M$20:$M$89) ->  | AM32: =NETWORKDAYS(AH32,AH32,koszyki!$M$20:$M$89) ->  | AN32: =NETWORKDAYS(AI32,AI32,koszyki!$M$20:$M$89) ->  | AP32: 0 | AU32: 1
C33: =IF($C$2="GAS_BASE",(B33-A33+1)*koszyki!$A$14+J33,IF($C$2="OFFPEAK",M33*koszyki!$A$14+(N33)*24+J33,IF($C$2="BASE5",M33*koszyki!$A$14+J33,IF($C$2="PEAK7",(B33-A33+1)*koszyki!$A$14,M33*koszyki!$A$14)))) -> 24 | D33: ='Kalkulator Depozytów'!M38 -> 0 | E33: ='Kalkulator Depozytów'!N38 -> 0 | F33: ='Kalkulator Depozytów'!O38 -> 0 | G33: ='Kalkulator Depozytów'!P38 -> 0 | H33: ='Kalkulator Depozytów'!Q38 -> 0 | I33: =ROUND(AVERAGE(INDIRECT("krzywa!C"&MATCH(A33-$A$2,krzywa!A:A,0)&":C"&MATCH(B33-$A$2,krzywa!A:A,0),TRUE)),4) ->  | K33: 0 | L33: GAS_BASE | M33: =NETWORKDAYS(A33,B33,koszyki!$M$20:$M$89) -> 0 | N33: =B33-A33+1- NETWORKDAYS(A33,B33,koszyki!$M$20:$M$89) -> 1 | P33: 0 | AF33: 00:00:00 | AG33: =AF33-1 -> -1 | AH33: -2 | AI33: -3 | AK33: =NETWORKDAYS(AF33,AF33,koszyki!$M$20:$M$89) -> 0 | AL33: =NETWORKDAYS(AG33,AG33,koszyki!$M$20:$M$89) ->  | AM33: =NETWORKDAYS(AH33,AH33,koszyki!$M$20:$M$89) ->  | AN33: =NETWORKDAYS(AI33,AI33,koszyki!$M$20:$M$89) ->  | AP33: 0 | AU33: 1
C34: =IF($C$2="GAS_BASE",(B34-A34+1)*koszyki!$A$14+J34,IF($C$2="OFFPEAK",M34*koszyki!$A$14+(N34)*24+J34,IF($C$2="BASE5",M34*koszyki!$A$14+J34,IF($C$2="PEAK7",(B34-A34+1)*koszyki!$A$14,M34*koszyki!$A$14)))) -> 24 | D34: ='Kalkulator Depozytów'!M39 -> 0 | E34: ='Kalkulator Depozytów'!N39 -> 0 | F34: ='Kalkulator Depozytów'!O39 -> 0 | G34: ='Kalkulator Depozytów'!P39 -> 0 | H34: ='Kalkulator Depozytów'!Q39 -> 0 | I34: =ROUND(AVERAGE(INDIRECT("krzywa!C"&MATCH(A34-$A$2,krzywa!A:A,0)&":C"&MATCH(B34-$A$2,krzywa!A:A,0),TRUE)),4) ->  | K34: 0 | L34: GAS_BASE | M34: =NETWORKDAYS(A34,B34,koszyki!$M$20:$M$89) -> 0 | N34: =B34-A34+1- NETWORKDAYS(A34,B34,koszyki!$M$20:$M$89) -> 1 | P34: 0 | AF34: 00:00:00 | AG34: =AF34-1 -> -1 | AH34: -2 | AI34: -3 | AK34: =NETWORKDAYS(AF34,AF34,koszyki!$M$20:$M$89) -> 0 | AL34: =NETWORKDAYS(AG34,AG34,koszyki!$M$20:$M$89) ->  | AM34: =NETWORKDAYS(AH34,AH34,koszyki!$M$20:$M$89) ->  | AN34: =NETWORKDAYS(AI34,AI34,koszyki!$M$20:$M$89) ->  | AP34: 0 | AU34: 1
C35: =IF($C$2="GAS_BASE",(B35-A35+1)*koszyki!$A$14+J35,IF($C$2="OFFPEAK",M35*koszyki!$A$14+(N35)*24+J35,IF($C$2="BASE5",M35*koszyki!$A$14+J35,IF($C$2="PEAK7",(B35-A35+1)*koszyki!$A$14,M35*koszyki!$A$14)))) -> 24 | D35: ='Kalkulator Depozytów'!M40 -> 0 | E35: ='Kalkulator Depozytów'!N40 -> 0 | F35: ='Kalkulator Depozytów'!O40 -> 0 | G35: ='Kalkulator Depozytów'!P40 -> 0 | H35: ='Kalkulator Depozytów'!Q40 -> 0 | I35: =ROUND(AVERAGE(INDIRECT("krzywa!C"&MATCH(A35-$A$2,krzywa!A:A,0)&":C"&MATCH(B35-$A$2,krzywa!A:A,0),TRUE)),4) ->  | K35: 0 | L35: GAS_BASE | M35: =NETWORKDAYS(A35,B35,koszyki!$M$20:$M$89) -> 0 | N35: =B35-A35+1- NETWORKDAYS(A35,B35,koszyki!$M$20:$M$89) -> 1 | P35: 0 | AF35: 00:00:00 | AG35: =AF35-1 -> -1 | AH35: -2 | AI35: -3 | AK35: =NETWORKDAYS(AF35,AF35,koszyki!$M$20:$M$89) -> 0 | AL35: =NETWORKDAYS(AG35,AG35,koszyki!$M$20:$M$89) ->  | AM35: =NETWORKDAYS(AH35,AH35,koszyki!$M$20:$M$89) ->  | AN35: =NETWORKDAYS(AI35,AI35,koszyki!$M$20:$M$89) ->  | AP35: 0 | AU35: 1
C36: =IF($C$2="GAS_BASE",(B36-A36+1)*koszyki!$A$14+J36,IF($C$2="OFFPEAK",M36*koszyki!$A$14+(N36)*24+J36,IF($C$2="BASE5",M36*koszyki!$A$14+J36,IF($C$2="PEAK7",(B36-A36+1)*koszyki!$A$14,M36*koszyki!$A$14)))) -> 24 | D36: ='Kalkulator Depozytów'!M41 -> 0 | E36: ='Kalkulator Depozytów'!N41 -> 0 | F36: ='Kalkulator Depozytów'!O41 -> 0 | G36: ='Kalkulator Depozytów'!P41 -> 0 | H36: ='Kalkulator Depozytów'!Q41 -> 0 | I36: =ROUND(AVERAGE(INDIRECT("krzywa!C"&MATCH(A36-$A$2,krzywa!A:A,0)&":C"&MATCH(B36-$A$2,krzywa!A:A,0),TRUE)),4) ->  | K36: 0 | L36: GAS_BASE | M36: =NETWORKDAYS(A36,B36,koszyki!$M$20:$M$89) -> 0 | N36: =B36-A36+1- NETWORKDAYS(A36,B36,koszyki!$M$20:$M$89) -> 1 | P36: 0 | AF36: 00:00:00 | AG36: =AF36-1 -> -1 | AH36: =AG36-1 -> -2 | AI36: -3 | AK36: =NETWORKDAYS(AF36,AF36,koszyki!$M$20:$M$89) -> 0 | AL36: =NETWORKDAYS(AG36,AG36,koszyki!$M$20:$M$89) ->  | AM36: =NETWORKDAYS(AH36,AH36,koszyki!$M$20:$M$89) ->  | AN36: =NETWORKDAYS(AI36,AI36,koszyki!$M$20:$M$89) ->  | AP36: 0 | AU36: 1
C37: =IF($C$2="GAS_BASE",(B37-A37+1)*koszyki!$A$14+J37,IF($C$2="OFFPEAK",M37*koszyki!$A$14+(N37)*24+J37,IF($C$2="BASE5",M37*koszyki!$A$14+J37,IF($C$2="PEAK7",(B37-A37+1)*koszyki!$A$14,M37*koszyki!$A$14)))) -> 24 | D37: ='Kalkulator Depozytów'!M42 -> 0 | E37: ='Kalkulator Depozytów'!N42 -> 0 | F37: ='Kalkulator Depozytów'!O42 -> 0 | G37: ='Kalkulator Depozytów'!P42 -> 0 | H37: ='Kalkulator Depozytów'!Q42 -> 0 | I37: =ROUND(AVERAGE(INDIRECT("krzywa!C"&MATCH(A37-$A$2,krzywa!A:A,0)&":C"&MATCH(B37-$A$2,krzywa!A:A,0),TRUE)),4) ->  | K37: 0 | L37: GAS_BASE | M37: =NETWORKDAYS(A37,B37,koszyki!$M$20:$M$89) -> 0 | N37: =B37-A37+1- NETWORKDAYS(A37,B37,koszyki!$M$20:$M$89) -> 1 | P37: 0 | AF37: 00:00:00 | AG37: =AF37-1 -> -1 | AH37: -2 | AI37: -3 | AK37: =NETWORKDAYS(AF37,AF37,koszyki!$M$20:$M$89) -> 0 | AL37: =NETWORKDAYS(AG37,AG37,koszyki!$M$20:$M$89) ->  | AM37: =NETWORKDAYS(AH37,AH37,koszyki!$M$20:$M$89) ->  | AN37: =NETWORKDAYS(AI37,AI37,koszyki!$M$20:$M$89) ->  | AP37: 0 | AU37: 1
C38: =IF($C$2="GAS_BASE",(B38-A38+1)*koszyki!$A$14+J38,IF($C$2="OFFPEAK",M38*koszyki!$A$14+(N38)*24+J38,IF($C$2="BASE5",M38*koszyki!$A$14+J38,IF($C$2="PEAK7",(B38-A38+1)*koszyki!$A$14,M38*koszyki!$A$14)))) -> 24 | D38: ='Kalkulator Depozytów'!M43 -> 0 | E38: ='Kalkulator Depozytów'!N43 -> 0 | F38: ='Kalkulator Depozytów'!O43 -> 0 | G38: ='Kalkulator Depozytów'!P43 -> 0 | H38: ='Kalkulator Depozytów'!Q43 -> 0 | I38: =ROUND(AVERAGE(INDIRECT("krzywa!C"&MATCH(A38-$A$2,krzywa!A:A,0)&":C"&MATCH(B38-$A$2,krzywa!A:A,0),TRUE)),4) ->  | K38: 0 | L38: GAS_BASE | M38: =NETWORKDAYS(A38,B38,koszyki!$M$20:$M$89) -> 0 | N38: =B38-A38+1- NETWORKDAYS(A38,B38,koszyki!$M$20:$M$89) -> 1 | P38: 0 | AF38: 00:00:00 | AG38: =AF38-1 -> -1 | AH38: -2 | AI38: -3 | AK38: =NETWORKDAYS(AF38,AF38,koszyki!$M$20:$M$89) -> 0 | AL38: =NETWORKDAYS(AG38,AG38,koszyki!$M$20:$M$89) ->  | AM38: =NETWORKDAYS(AH38,AH38,koszyki!$M$20:$M$89) ->  | AN38: =NETWORKDAYS(AI38,AI38,koszyki!$M$20:$M$89) ->  | AP38: 0 | AU38: 1
C39: =IF($C$2="GAS_BASE",(B39-A39+1)*koszyki!$A$14+J39,IF($C$2="OFFPEAK",M39*koszyki!$A$14+(N39)*24+J39,IF($C$2="BASE5",M39*koszyki!$A$14+J39,IF($C$2="PEAK7",(B39-A39+1)*koszyki!$A$14,M39*koszyki!$A$14)))) -> 24 | D39: ='Kalkulator Depozytów'!M44 -> 0 | E39: ='Kalkulator Depozytów'!N44 -> 0 | F39: ='Kalkulator Depozytów'!O44 -> 0 | G39: ='Kalkulator Depozytów'!P44 -> 0 | H39: ='Kalkulator Depozytów'!Q44 -> 0 | I39: =ROUND(AVERAGE(INDIRECT("krzywa!C"&MATCH(A39-$A$2,krzywa!A:A,0)&":C"&MATCH(B39-$A$2,krzywa!A:A,0),TRUE)),4) ->  | K39: 0 | L39: GAS_BASE | M39: =NETWORKDAYS(A39,B39,koszyki!$M$20:$M$89) -> 0 | N39: =B39-A39+1- NETWORKDAYS(A39,B39,koszyki!$M$20:$M$89) -> 1 | P39: 0 | AF39: 00:00:00 | AG39: =AF39-1 -> -1 | AH39: -2 | AI39: -3 | AK39: =NETWORKDAYS(AF39,AF39,koszyki!$M$20:$M$89) -> 0 | AL39: =NETWORKDAYS(AG39,AG39,koszyki!$M$20:$M$89) ->  | AM39: =NETWORKDAYS(AH39,AH39,koszyki!$M$20:$M$89) ->  | AN39: =NETWORKDAYS(AI39,AI39,koszyki!$M$20:$M$89) ->  | AP39: 0 | AU39: 1
C40: =IF($C$2="GAS_BASE",(B40-A40+1)*koszyki!$A$14+J40,IF($C$2="OFFPEAK",M40*koszyki!$A$14+(N40)*24+J40,IF($C$2="BASE5",M40*koszyki!$A$14+J40,IF($C$2="PEAK7",(B40-A40+1)*koszyki!$A$14,M40*koszyki!$A$14)))) -> 24 | D40: ='Kalkulator Depozytów'!M45 -> 0 | E40: ='Kalkulator Depozytów'!N45 -> 0 | F40: ='Kalkulator Depozytów'!O45 -> 0 | G40: ='Kalkulator Depozytów'!P45 -> 0 | H40: ='Kalkulator Depozytów'!Q45 -> 0 | I40: =ROUND(AVERAGE(INDIRECT("krzywa!C"&MATCH(A40-$A$2,krzywa!A:A,0)&":C"&MATCH(B40-$A$2,krzywa!A:A,0),TRUE)),4) ->  | K40: 0 | M40: =NETWORKDAYS(A40,B40,koszyki!$M$20:$M$89) -> 0 | N40: =B40-A40+1- NETWORKDAYS(A40,B40,koszyki!$M$20:$M$89) -> 1 | P40: 0 | AF40: 00:00:00 | AG40: =AF40-1 -> -1 | AH40: -2 | AI40: -3 | AK40: =NETWORKDAYS(AF40,AF40,koszyki!$M$20:$M$89) -> 0 | AL40: =NETWORKDAYS(AG40,AG40,koszyki!$M$20:$M$89) ->  | AM40: =NETWORKDAYS(AH40,AH40,koszyki!$M$20:$M$89) ->  | AN40: =NETWORKDAYS(AI40,AI40,koszyki!$M$20:$M$89) ->  | AP40: 0 | AU40: 1
C41: =IF($C$2="GAS_BASE",(B41-A41+1)*koszyki!$A$14+J41,IF($C$2="OFFPEAK",M41*koszyki!$A$14+(N41)*24+J41,IF($C$2="BASE5",M41*koszyki!$A$14+J41,IF($C$2="PEAK7",(B41-A41+1)*koszyki!$A$14,M41*koszyki!$A$14)))) -> 24 | D41: ='Kalkulator Depozytów'!M46 -> 0 | E41: ='Kalkulator Depozytów'!N46 -> 0 | F41: ='Kalkulator Depozytów'!O46 -> 0 | G41: ='Kalkulator Depozytów'!P46 -> 0 | H41: ='Kalkulator Depozytów'!Q46 -> 0 | I41: =ROUND(AVERAGE(INDIRECT("krzywa!C"&MATCH(A41-$A$2,krzywa!A:A,0)&":C"&MATCH(B41-$A$2,krzywa!A:A,0),TRUE)),4) ->  | K41: 0 | M41: =NETWORKDAYS(A41,B41,koszyki!$M$20:$M$89) -> 0 | N41: =B41-A41+1- NETWORKDAYS(A41,B41,koszyki!$M$20:$M$89) -> 1 | P41: 0 | AF41: 00:00:00 | AG41: =AF41-1 -> -1 | AH41: -2 | AI41: -3 | AK41: =NETWORKDAYS(AF41,AF41,koszyki!$M$20:$M$89) -> 0 | AL41: =NETWORKDAYS(AG41,AG41,koszyki!$M$20:$M$89) ->  | AM41: =NETWORKDAYS(AH41,AH41,koszyki!$M$20:$M$89) ->  | AN41: =NETWORKDAYS(AI41,AI41,koszyki!$M$20:$M$89) ->  | AP41: 0 | AU41: 1
C42: =IF($C$2="GAS_BASE",(B42-A42+1)*koszyki!$A$14+J42,IF($C$2="OFFPEAK",M42*koszyki!$A$14+(N42)*24+J42,IF($C$2="BASE5",M42*koszyki!$A$14+J42,IF($C$2="PEAK7",(B42-A42+1)*koszyki!$A$14,M42*koszyki!$A$14)))) -> 24 | D42: ='Kalkulator Depozytów'!M47 -> 0 | E42: ='Kalkulator Depozytów'!N47 -> 0 | F42: ='Kalkulator Depozytów'!O47 -> 0 | G42: ='Kalkulator Depozytów'!P47 -> 0 | H42: ='Kalkulator Depozytów'!Q47 -> 0 | I42: =ROUND(AVERAGE(INDIRECT("krzywa!C"&MATCH(A42-$A$2,krzywa!A:A,0)&":C"&MATCH(B42-$A$2,krzywa!A:A,0),TRUE)),4) ->  | K42: 0 | M42: =NETWORKDAYS(A42,B42,koszyki!$M$20:$M$89) -> 0 | N42: =B42-A42+1- NETWORKDAYS(A42,B42,koszyki!$M$20:$M$89) -> 1 | P42: 0 | AF42: 00:00:00 | AG42: =AF42-1 -> -1 | AH42: -2 | AI42: -3 | AK42: =NETWORKDAYS(AF42,AF42,koszyki!$M$20:$M$89) -> 0 | AL42: =NETWORKDAYS(AG42,AG42,koszyki!$M$20:$M$89) ->  | AM42: =NETWORKDAYS(AH42,AH42,koszyki!$M$20:$M$89) ->  | AN42: =NETWORKDAYS(AI42,AI42,koszyki!$M$20:$M$89) ->  | AP42: 0 | AU42: 1
C43: =IF($C$2="GAS_BASE",(B43-A43+1)*koszyki!$A$14+J43,IF($C$2="OFFPEAK",M43*koszyki!$A$14+(N43)*24+J43,IF($C$2="BASE5",M43*koszyki!$A$14+J43,IF($C$2="PEAK7",(B43-A43+1)*koszyki!$A$14,M43*koszyki!$A$14)))) -> 24 | D43: ='Kalkulator Depozytów'!M48 -> 0 | E43: ='Kalkulator Depozytów'!N48 -> 0 | F43: ='Kalkulator Depozytów'!O48 -> 0 | G43: ='Kalkulator Depozytów'!P48 -> 0 | H43: ='Kalkulator Depozytów'!Q48 -> 0 | I43: =ROUND(AVERAGE(INDIRECT("krzywa!C"&MATCH(A43-$A$2,krzywa!A:A,0)&":C"&MATCH(B43-$A$2,krzywa!A:A,0),TRUE)),4) ->  | K43: 0 | M43: =NETWORKDAYS(A43,B43,koszyki!$M$20:$M$89) -> 0 | N43: =B43-A43+1- NETWORKDAYS(A43,B43,koszyki!$M$20:$M$89) -> 1 | P43: 0 | AF43: 00:00:00 | AG43: =AF43-1 -> -1 | AH43: -2 | AI43: -3 | AK43: =NETWORKDAYS(AF43,AF43,koszyki!$M$20:$M$89) -> 0 | AL43: =NETWORKDAYS(AG43,AG43,koszyki!$M$20:$M$89) ->  | AM43: =NETWORKDAYS(AH43,AH43,koszyki!$M$20:$M$89) ->  | AN43: =NETWORKDAYS(AI43,AI43,koszyki!$M$20:$M$89) ->  | AP43: 0 | AU43: 1
C44: =IF($C$2="GAS_BASE",(B44-A44+1)*koszyki!$A$14+J44,IF($C$2="OFFPEAK",M44*koszyki!$A$14+(N44)*24+J44,IF($C$2="BASE5",M44*koszyki!$A$14+J44,IF($C$2="PEAK7",(B44-A44+1)*koszyki!$A$14,M44*koszyki!$A$14)))) -> 24 | D44: ='Kalkulator Depozytów'!M49 -> 0 | E44: ='Kalkulator Depozytów'!N49 -> 0 | F44: ='Kalkulator Depozytów'!O49 -> 0 | G44: ='Kalkulator Depozytów'!P49 -> 0 | H44: ='Kalkulator Depozytów'!Q49 -> 0 | I44: =ROUND(AVERAGE(INDIRECT("krzywa!C"&MATCH(A44-$A$2,krzywa!A:A,0)&":C"&MATCH(B44-$A$2,krzywa!A:A,0),TRUE)),4) ->  | K44: 0 | M44: =NETWORKDAYS(A44,B44,koszyki!$M$20:$M$89) -> 0 | N44: =B44-A44+1- NETWORKDAYS(A44,B44,koszyki!$M$20:$M$89) -> 1 | P44: 0 | AF44: 00:00:00 | AG44: =AF44-1 -> -1 | AH44: -2 | AI44: -3 | AK44: =NETWORKDAYS(AF44,AF44,koszyki!$M$20:$M$89) -> 0 | AL44: =NETWORKDAYS(AG44,AG44,koszyki!$M$20:$M$89) ->  | AM44: =NETWORKDAYS(AH44,AH44,koszyki!$M$20:$M$89) ->  | AN44: =NETWORKDAYS(AI44,AI44,koszyki!$M$20:$M$89) ->  | AP44: 0 | AU44: 1
C45: =IF($C$2="GAS_BASE",(B45-A45+1)*koszyki!$A$14+J45,IF($C$2="OFFPEAK",M45*koszyki!$A$14+(N45)*24+J45,IF($C$2="BASE5",M45*koszyki!$A$14+J45,IF($C$2="PEAK7",(B45-A45+1)*koszyki!$A$14,M45*koszyki!$A$14)))) -> 24 | D45: ='Kalkulator Depozytów'!M50 -> 0 | E45: ='Kalkulator Depozytów'!N50 -> 0 | F45: ='Kalkulator Depozytów'!O50 -> 0 | G45: ='Kalkulator Depozytów'!P50 -> 0 | H45: ='Kalkulator Depozytów'!Q50 -> 0 | I45: =ROUND(AVERAGE(INDIRECT("krzywa!C"&MATCH(A45-$A$2,krzywa!A:A,0)&":C"&MATCH(B45-$A$2,krzywa!A:A,0),TRUE)),4) ->  | K45: 0 | M45: =NETWORKDAYS(A45,B45,koszyki!$M$20:$M$89) -> 0 | N45: =B45-A45+1- NETWORKDAYS(A45,B45,koszyki!$M$20:$M$89) -> 1 | P45: 0 | AF45: 00:00:00 | AG45: =AF45-1 -> -1 | AH45: -2 | AI45: -3 | AK45: =NETWORKDAYS(AF45,AF45,koszyki!$M$20:$M$89) -> 0 | AL45: =NETWORKDAYS(AG45,AG45,koszyki!$M$20:$M$89) ->  | AM45: =NETWORKDAYS(AH45,AH45,koszyki!$M$20:$M$89) ->  | AN45: =NETWORKDAYS(AI45,AI45,koszyki!$M$20:$M$89) ->  | AP45: 0 | AU45: 1
C46: =IF($C$2="GAS_BASE",(B46-A46+1)*koszyki!$A$14+J46,IF($C$2="OFFPEAK",M46*koszyki!$A$14+(N46)*24+J46,IF($C$2="BASE5",M46*koszyki!$A$14+J46,IF($C$2="PEAK7",(B46-A46+1)*koszyki!$A$14,M46*koszyki!$A$14)))) -> 24 | D46: ='Kalkulator Depozytów'!M51 -> 0 | E46: ='Kalkulator Depozytów'!N51 -> 0 | F46: ='Kalkulator Depozytów'!O51 -> 0 | G46: ='Kalkulator Depozytów'!P51 -> 0 | H46: ='Kalkulator Depozytów'!Q51 -> 0 | I46: =ROUND(AVERAGE(INDIRECT("krzywa!C"&MATCH(A46-$A$2,krzywa!A:A,0)&":C"&MATCH(B46-$A$2,krzywa!A:A,0),TRUE)),4) ->  | K46: 0 | M46: =NETWORKDAYS(A46,B46,koszyki!$M$20:$M$89) -> 0 | N46: =B46-A46+1- NETWORKDAYS(A46,B46,koszyki!$M$20:$M$89) -> 1 | P46: 0 | AF46: 00:00:00 | AG46: =AF46-1 -> -1 | AH46: -2 | AI46: -3 | AK46: =NETWORKDAYS(AF46,AF46,koszyki!$M$20:$M$89) -> 0 | AL46: =NETWORKDAYS(AG46,AG46,koszyki!$M$20:$M$89) ->  | AM46: =NETWORKDAYS(AH46,AH46,koszyki!$M$20:$M$89) ->  | AN46: =NETWORKDAYS(AI46,AI46,koszyki!$M$20:$M$89) ->  | AP46: 0 | AU46: 1
C47: =IF($C$2="GAS_BASE",(B47-A47+1)*koszyki!$A$14+J47,IF($C$2="OFFPEAK",M47*koszyki!$A$14+(N47)*24+J47,IF($C$2="BASE5",M47*koszyki!$A$14+J47,IF($C$2="PEAK7",(B47-A47+1)*koszyki!$A$14,M47*koszyki!$A$14)))) -> 24 | D47: ='Kalkulator Depozytów'!M52 -> 0 | E47: ='Kalkulator Depozytów'!N52 -> 0 | F47: ='Kalkulator Depozytów'!O52 -> 0 | G47: ='Kalkulator Depozytów'!P52 -> 0 | H47: ='Kalkulator Depozytów'!Q52 -> 0 | I47: =ROUND(AVERAGE(INDIRECT("krzywa!C"&MATCH(A47-$A$2,krzywa!A:A,0)&":C"&MATCH(B47-$A$2,krzywa!A:A,0),TRUE)),4) ->  | K47: 0 | M47: =NETWORKDAYS(A47,B47,koszyki!$M$20:$M$89) -> 0 | N47: =B47-A47+1- NETWORKDAYS(A47,B47,koszyki!$M$20:$M$89) -> 1 | P47: 0 | AF47: 00:00:00 | AG47: =AF47-1 -> -1 | AH47: -2 | AI47: -3 | AK47: =NETWORKDAYS(AF47,AF47,koszyki!$M$20:$M$89) -> 0 | AL47: =NETWORKDAYS(AG47,AG47,koszyki!$M$20:$M$89) ->  | AM47: =NETWORKDAYS(AH47,AH47,koszyki!$M$20:$M$89) ->  | AN47: =NETWORKDAYS(AI47,AI47,koszyki!$M$20:$M$89) ->  | AP47: 0 | AU47: 1
C48: =IF($C$2="GAS_BASE",(B48-A48+1)*koszyki!$A$14+J48,IF($C$2="OFFPEAK",M48*koszyki!$A$14+(N48)*24+J48,IF($C$2="BASE5",M48*koszyki!$A$14+J48,IF($C$2="PEAK7",(B48-A48+1)*koszyki!$A$14,M48*koszyki!$A$14)))) -> 24 | D48: ='Kalkulator Depozytów'!M53 -> 0 | E48: ='Kalkulator Depozytów'!N53 -> 0 | F48: ='Kalkulator Depozytów'!O53 -> 0 | G48: ='Kalkulator Depozytów'!P53 -> 0 | H48: ='Kalkulator Depozytów'!Q53 -> 0 | I48: =ROUND(AVERAGE(INDIRECT("krzywa!C"&MATCH(A48-$A$2,krzywa!A:A,0)&":C"&MATCH(B48-$A$2,krzywa!A:A,0),TRUE)),4) ->  | K48: 0 | M48: =NETWORKDAYS(A48,B48,koszyki!$M$20:$M$89) -> 0 | N48: =B48-A48+1- NETWORKDAYS(A48,B48,koszyki!$M$20:$M$89) -> 1 | P48: 0 | AF48: 00:00:00 | AG48: =AF48-1 -> -1 | AH48: -2 | AI48: -3 | AK48: =NETWORKDAYS(AF48,AF48,koszyki!$M$20:$M$89) -> 0 | AL48: =NETWORKDAYS(AG48,AG48,koszyki!$M$20:$M$89) ->  | AM48: =NETWORKDAYS(AH48,AH48,koszyki!$M$20:$M$89) ->  | AN48: =NETWORKDAYS(AI48,AI48,koszyki!$M$20:$M$89) ->  | AP48: 0 | AU48: 1
C49: =IF($C$2="GAS_BASE",(B49-A49+1)*koszyki!$A$14+J49,IF($C$2="OFFPEAK",M49*koszyki!$A$14+(N49)*24+J49,IF($C$2="BASE5",M49*koszyki!$A$14+J49,IF($C$2="PEAK7",(B49-A49+1)*koszyki!$A$14,M49*koszyki!$A$14)))) -> 24 | D49: ='Kalkulator Depozytów'!M54 -> 0 | E49: ='Kalkulator Depozytów'!N54 -> 0 | F49: ='Kalkulator Depozytów'!O54 -> 0 | G49: ='Kalkulator Depozytów'!P54 -> 0 | H49: ='Kalkulator Depozytów'!Q54 -> 0 | I49: =ROUND(AVERAGE(INDIRECT("krzywa!C"&MATCH(A49-$A$2,krzywa!A:A,0)&":C"&MATCH(B49-$A$2,krzywa!A:A,0),TRUE)),4) ->  | K49: 0 | M49: =NETWORKDAYS(A49,B49,koszyki!$M$20:$M$89) -> 0 | N49: =B49-A49+1- NETWORKDAYS(A49,B49,koszyki!$M$20:$M$89) -> 1 | P49: 0 | AF49: 00:00:00 | AG49: =AF49-1 -> -1 | AH49: -2 | AI49: -3 | AK49: =NETWORKDAYS(AF49,AF49,koszyki!$M$20:$M$89) -> 0 | AL49: =NETWORKDAYS(AG49,AG49,koszyki!$M$20:$M$89) ->  | AM49: =NETWORKDAYS(AH49,AH49,koszyki!$M$20:$M$89) ->  | AN49: =NETWORKDAYS(AI49,AI49,koszyki!$M$20:$M$89) ->  | AP49: 0 | AU49: 1
C50: =IF($C$2="GAS_BASE",(B50-A50+1)*koszyki!$A$14+J50,IF($C$2="OFFPEAK",M50*koszyki!$A$14+(N50)*24+J50,IF($C$2="BASE5",M50*koszyki!$A$14+J50,IF($C$2="PEAK7",(B50-A50+1)*koszyki!$A$14,M50*koszyki!$A$14)))) -> 24 | D50: ='Kalkulator Depozytów'!M55 -> 0 | E50: ='Kalkulator Depozytów'!N55 -> 0 | F50: ='Kalkulator Depozytów'!O55 -> 0 | G50: ='Kalkulator Depozytów'!P55 -> 0 | H50: ='Kalkulator Depozytów'!Q55 -> 0 | I50: =ROUND(AVERAGE(INDIRECT("krzywa!C"&MATCH(A50-$A$2,krzywa!A:A,0)&":C"&MATCH(B50-$A$2,krzywa!A:A,0),TRUE)),4) ->  | K50: 0 | M50: =NETWORKDAYS(A50,B50,koszyki!$M$20:$M$89) -> 0 | N50: =B50-A50+1- NETWORKDAYS(A50,B50,koszyki!$M$20:$M$89) -> 1 | P50: 0 | AF50: 00:00:00 | AG50: =AF50-1 -> -1 | AH50: -2 | AI50: -3 | AK50: =NETWORKDAYS(AF50,AF50,koszyki!$M$20:$M$89) -> 0 | AL50: =NETWORKDAYS(AG50,AG50,koszyki!$M$20:$M$89) ->  | AM50: =NETWORKDAYS(AH50,AH50,koszyki!$M$20:$M$89) ->  | AN50: =NETWORKDAYS(AI50,AI50,koszyki!$M$20:$M$89) ->  | AP50: 0 | AU50: 1
C51: =IF($C$2="GAS_BASE",(B51-A51+1)*koszyki!$A$14+J51,IF($C$2="OFFPEAK",M51*koszyki!$A$14+(N51)*24+J51,IF($C$2="BASE5",M51*koszyki!$A$14+J51,IF($C$2="PEAK7",(B51-A51+1)*koszyki!$A$14,M51*koszyki!$A$14)))) -> 24 | D51: ='Kalkulator Depozytów'!M56 -> 0 | E51: ='Kalkulator Depozytów'!N56 -> 0 | F51: ='Kalkulator Depozytów'!O56 -> 0 | G51: ='Kalkulator Depozytów'!P56 -> 0 | H51: ='Kalkulator Depozytów'!Q56 -> 0 | I51: =ROUND(AVERAGE(INDIRECT("krzywa!C"&MATCH(A51-$A$2,krzywa!A:A,0)&":C"&MATCH(B51-$A$2,krzywa!A:A,0),TRUE)),4) ->  | K51: 0 | M51: =NETWORKDAYS(A51,B51,koszyki!$M$20:$M$89) -> 0 | N51: =B51-A51+1- NETWORKDAYS(A51,B51,koszyki!$M$20:$M$89) -> 1 | P51: 0 | AF51: 00:00:00 | AG51: =AF51-1 -> -1 | AH51: -2 | AI51: -3 | AK51: =NETWORKDAYS(AF51,AF51,koszyki!$M$20:$M$89) -> 0 | AL51: =NETWORKDAYS(AG51,AG51,koszyki!$M$20:$M$89) ->  | AM51: =NETWORKDAYS(AH51,AH51,koszyki!$M$20:$M$89) ->  | AN51: =NETWORKDAYS(AI51,AI51,koszyki!$M$20:$M$89) ->  | AP51: 0 | AU51: 1
C52: =IF($C$2="GAS_BASE",(B52-A52+1)*koszyki!$A$14+J52,IF($C$2="OFFPEAK",M52*koszyki!$A$14+(N52)*24+J52,IF($C$2="BASE5",M52*koszyki!$A$14+J52,IF($C$2="PEAK7",(B52-A52+1)*koszyki!$A$14,M52*koszyki!$A$14)))) -> 24 | D52: ='Kalkulator Depozytów'!M57 -> 0 | E52: ='Kalkulator Depozytów'!N57 -> 0 | F52: ='Kalkulator Depozytów'!O57 -> 0 | G52: ='Kalkulator Depozytów'!P57 -> 0 | H52: ='Kalkulator Depozytów'!Q57 -> 0 | I52: =ROUND(AVERAGE(INDIRECT("krzywa!C"&MATCH(A52-$A$2,krzywa!A:A,0)&":C"&MATCH(B52-$A$2,krzywa!A:A,0),TRUE)),4) ->  | K52: 0 | M52: =NETWORKDAYS(A52,B52,koszyki!$M$20:$M$89) -> 0 | N52: =B52-A52+1- NETWORKDAYS(A52,B52,koszyki!$M$20:$M$89) -> 1 | P52: 0 | AF52: 00:00:00 | AG52: =AF52-1 -> -1 | AH52: -2 | AI52: -3 | AK52: =NETWORKDAYS(AF52,AF52,koszyki!$M$20:$M$89) -> 0 | AL52: =NETWORKDAYS(AG52,AG52,koszyki!$M$20:$M$89) ->  | AM52: =NETWORKDAYS(AH52,AH52,koszyki!$M$20:$M$89) ->  | AN52: =NETWORKDAYS(AI52,AI52,koszyki!$M$20:$M$89) ->  | AP52: 0 | AU52: 1
C53: =IF($C$2="GAS_BASE",(B53-A53+1)*koszyki!$A$14+J53,IF($C$2="OFFPEAK",M53*koszyki!$A$14+(N53)*24+J53,IF($C$2="BASE5",M53*koszyki!$A$14+J53,IF($C$2="PEAK7",(B53-A53+1)*koszyki!$A$14,M53*koszyki!$A$14)))) -> 24 | D53: ='Kalkulator Depozytów'!M58 -> 0 | E53: ='Kalkulator Depozytów'!N58 -> 0 | F53: ='Kalkulator Depozytów'!O58 -> 0 | G53: ='Kalkulator Depozytów'!P58 -> 0 | H53: ='Kalkulator Depozytów'!Q58 -> 0 | I53: =ROUND(AVERAGE(INDIRECT("krzywa!C"&MATCH(A53-$A$2,krzywa!A:A,0)&":C"&MATCH(B53-$A$2,krzywa!A:A,0),TRUE)),4) ->  | K53: 0 | M53: =NETWORKDAYS(A53,B53,koszyki!$M$20:$M$89) -> 0 | N53: =B53-A53+1- NETWORKDAYS(A53,B53,koszyki!$M$20:$M$89) -> 1 | P53: 0 | AF53: 00:00:00 | AG53: =AF53-1 -> -1 | AH53: -2 | AI53: -3 | AK53: =NETWORKDAYS(AF53,AF53,koszyki!$M$20:$M$89) -> 0 | AL53: =NETWORKDAYS(AG53,AG53,koszyki!$M$20:$M$89) ->  | AM53: =NETWORKDAYS(AH53,AH53,koszyki!$M$20:$M$89) ->  | AN53: =NETWORKDAYS(AI53,AI53,koszyki!$M$20:$M$89) ->  | AP53: 0 | AU53: 1
C54: =IF($C$2="GAS_BASE",(B54-A54+1)*koszyki!$A$14+J54,IF($C$2="OFFPEAK",M54*koszyki!$A$14+(N54)*24+J54,IF($C$2="BASE5",M54*koszyki!$A$14+J54,IF($C$2="PEAK7",(B54-A54+1)*koszyki!$A$14,M54*koszyki!$A$14)))) -> 24 | D54: ='Kalkulator Depozytów'!M59 -> 0 | E54: ='Kalkulator Depozytów'!N59 -> 0 | F54: ='Kalkulator Depozytów'!O59 -> 0 | G54: ='Kalkulator Depozytów'!P59 -> 0 | H54: ='Kalkulator Depozytów'!Q59 -> 0 | I54: =ROUND(AVERAGE(INDIRECT("krzywa!C"&MATCH(A54-$A$2,krzywa!A:A,0)&":C"&MATCH(B54-$A$2,krzywa!A:A,0),TRUE)),4) ->  | K54: 0 | M54: =NETWORKDAYS(A54,B54,koszyki!$M$20:$M$89) -> 0 | N54: =B54-A54+1- NETWORKDAYS(A54,B54,koszyki!$M$20:$M$89) -> 1 | P54: 0 | AF54: 00:00:00 | AG54: =AF54-1 -> -1 | AH54: -2 | AI54: -3 | AK54: =NETWORKDAYS(AF54,AF54,koszyki!$M$20:$M$89) -> 0 | AL54: =NETWORKDAYS(AG54,AG54,koszyki!$M$20:$M$89) ->  | AM54: =NETWORKDAYS(AH54,AH54,koszyki!$M$20:$M$89) ->  | AN54: =NETWORKDAYS(AI54,AI54,koszyki!$M$20:$M$89) ->  | AP54: 0 | AU54: 1
C55: =IF($C$2="GAS_BASE",(B55-A55+1)*koszyki!$A$14+J55,IF($C$2="OFFPEAK",M55*koszyki!$A$14+(N55)*24+J55,IF($C$2="BASE5",M55*koszyki!$A$14+J55,IF($C$2="PEAK7",(B55-A55+1)*koszyki!$A$14,M55*koszyki!$A$14)))) -> 24 | D55: ='Kalkulator Depozytów'!M60 -> 0 | E55: ='Kalkulator Depozytów'!N60 -> 0 | F55: ='Kalkulator Depozytów'!O60 -> 0 | G55: ='Kalkulator Depozytów'!P60 -> 0 | H55: ='Kalkulator Depozytów'!Q60 -> 0 | I55: =ROUND(AVERAGE(INDIRECT("krzywa!C"&MATCH(A55-$A$2,krzywa!A:A,0)&":C"&MATCH(B55-$A$2,krzywa!A:A,0),TRUE)),4) ->  | K55: 0 | M55: =NETWORKDAYS(A55,B55,koszyki!$M$20:$M$89) -> 0 | N55: =B55-A55+1- NETWORKDAYS(A55,B55,koszyki!$M$20:$M$89) -> 1 | P55: 0 | AF55: 00:00:00 | AG55: =AF55-1 -> -1 | AH55: -2 | AI55: -3 | AK55: =NETWORKDAYS(AF55,AF55,koszyki!$M$20:$M$89) -> 0 | AL55: =NETWORKDAYS(AG55,AG55,koszyki!$M$20:$M$89) ->  | AM55: =NETWORKDAYS(AH55,AH55,koszyki!$M$20:$M$89) ->  | AN55: =NETWORKDAYS(AI55,AI55,koszyki!$M$20:$M$89) ->  | AP55: 0 | AU55: 1
C56: =IF($C$2="GAS_BASE",(B56-A56+1)*koszyki!$A$14+J56,IF($C$2="OFFPEAK",M56*koszyki!$A$14+(N56)*24+J56,IF($C$2="BASE5",M56*koszyki!$A$14+J56,IF($C$2="PEAK7",(B56-A56+1)*koszyki!$A$14,M56*koszyki!$A$14)))) -> 24 | D56: ='Kalkulator Depozytów'!M61 -> 0 | E56: ='Kalkulator Depozytów'!N61 -> 0 | F56: ='Kalkulator Depozytów'!O61 -> 0 | G56: ='Kalkulator Depozytów'!P61 -> 0 | H56: ='Kalkulator Depozytów'!Q61 -> 0 | I56: =ROUND(AVERAGE(INDIRECT("krzywa!C"&MATCH(A56-$A$2,krzywa!A:A,0)&":C"&MATCH(B56-$A$2,krzywa!A:A,0),TRUE)),4) ->  | K56: 0 | M56: =NETWORKDAYS(A56,B56,koszyki!$M$20:$M$89) -> 0 | N56: =B56-A56+1- NETWORKDAYS(A56,B56,koszyki!$M$20:$M$89) -> 1 | P56: 0 | AF56: 00:00:00 | AG56: =AF56-1 -> -1 | AH56: -2 | AI56: -3 | AK56: =NETWORKDAYS(AF56,AF56,koszyki!$M$20:$M$89) -> 0 | AL56: =NETWORKDAYS(AG56,AG56,koszyki!$M$20:$M$89) ->  | AM56: =NETWORKDAYS(AH56,AH56,koszyki!$M$20:$M$89) ->  | AN56: =NETWORKDAYS(AI56,AI56,koszyki!$M$20:$M$89) ->  | AP56: 0 | AU56: 1
C57: =IF($C$2="GAS_BASE",(B57-A57+1)*koszyki!$A$14+J57,IF($C$2="OFFPEAK",M57*koszyki!$A$14+(N57)*24+J57,IF($C$2="BASE5",M57*koszyki!$A$14+J57,IF($C$2="PEAK7",(B57-A57+1)*koszyki!$A$14,M57*koszyki!$A$14)))) -> 24 | D57: ='Kalkulator Depozytów'!M62 -> 0 | E57: ='Kalkulator Depozytów'!N62 -> 0 | F57: ='Kalkulator Depozytów'!O62 -> 0 | G57: ='Kalkulator Depozytów'!P62 -> 0 | H57: ='Kalkulator Depozytów'!Q62 -> 0 | I57: =ROUND(AVERAGE(INDIRECT("krzywa!C"&MATCH(A57-$A$2,krzywa!A:A,0)&":C"&MATCH(B57-$A$2,krzywa!A:A,0),TRUE)),4) ->  | K57: 0 | M57: =NETWORKDAYS(A57,B57,koszyki!$M$20:$M$89) -> 0 | N57: =B57-A57+1- NETWORKDAYS(A57,B57,koszyki!$M$20:$M$89) -> 1 | P57: 0 | AF57: 00:00:00 | AG57: =AF57-1 -> -1 | AH57: -2 | AI57: -3 | AK57: =NETWORKDAYS(AF57,AF57,koszyki!$M$20:$M$89) -> 0 | AL57: =NETWORKDAYS(AG57,AG57,koszyki!$M$20:$M$89) ->  | AM57: =NETWORKDAYS(AH57,AH57,koszyki!$M$20:$M$89) ->  | AN57: =NETWORKDAYS(AI57,AI57,koszyki!$M$20:$M$89) ->  | AP57: 0 | AU57: 1
C58: =IF($C$2="GAS_BASE",(B58-A58+1)*koszyki!$A$14+J58,IF($C$2="OFFPEAK",M58*koszyki!$A$14+(N58)*24+J58,IF($C$2="BASE5",M58*koszyki!$A$14+J58,IF($C$2="PEAK7",(B58-A58+1)*koszyki!$A$14,M58*koszyki!$A$14)))) -> 24 | D58: ='Kalkulator Depozytów'!M63 -> 0 | E58: ='Kalkulator Depozytów'!N63 -> 0 | F58: ='Kalkulator Depozytów'!O63 -> 0 | G58: ='Kalkulator Depozytów'!P63 -> 0 | H58: ='Kalkulator Depozytów'!Q63 -> 0 | I58: =ROUND(AVERAGE(INDIRECT("krzywa!C"&MATCH(A58-$A$2,krzywa!A:A,0)&":C"&MATCH(B58-$A$2,krzywa!A:A,0),TRUE)),4) ->  | K58: 0 | M58: =NETWORKDAYS(A58,B58,koszyki!$M$20:$M$89) -> 0 | N58: =B58-A58+1- NETWORKDAYS(A58,B58,koszyki!$M$20:$M$89) -> 1 | P58: 0 | AF58: 00:00:00 | AG58: =AF58-1 -> -1 | AH58: -2 | AI58: -3 | AK58: =NETWORKDAYS(AF58,AF58,koszyki!$M$20:$M$89) -> 0 | AL58: =NETWORKDAYS(AG58,AG58,koszyki!$M$20:$M$89) ->  | AM58: =NETWORKDAYS(AH58,AH58,koszyki!$M$20:$M$89) ->  | AN58: =NETWORKDAYS(AI58,AI58,koszyki!$M$20:$M$89) ->  | AP58: 0 | AU58: 1
C59: =IF($C$2="GAS_BASE",(B59-A59+1)*koszyki!$A$14+J59,IF($C$2="OFFPEAK",M59*koszyki!$A$14+(N59)*24+J59,IF($C$2="BASE5",M59*koszyki!$A$14+J59,IF($C$2="PEAK7",(B59-A59+1)*koszyki!$A$14,M59*koszyki!$A$14)))) -> 24 | D59: ='Kalkulator Depozytów'!M64 -> 0 | E59: ='Kalkulator Depozytów'!N64 -> 0 | F59: ='Kalkulator Depozytów'!O64 -> 0 | G59: ='Kalkulator Depozytów'!P64 -> 0 | H59: ='Kalkulator Depozytów'!Q64 -> 0 | I59: =ROUND(AVERAGE(INDIRECT("krzywa!C"&MATCH(A59-$A$2,krzywa!A:A,0)&":C"&MATCH(B59-$A$2,krzywa!A:A,0),TRUE)),4) ->  | K59: 0 | M59: =NETWORKDAYS(A59,B59,koszyki!$M$20:$M$89) -> 0 | N59: =B59-A59+1- NETWORKDAYS(A59,B59,koszyki!$M$20:$M$89) -> 1 | P59: 0 | AF59: 00:00:00 | AG59: =AF59-1 -> -1 | AH59: -2 | AI59: -3 | AK59: =NETWORKDAYS(AF59,AF59,koszyki!$M$20:$M$89) -> 0 | AL59: =NETWORKDAYS(AG59,AG59,koszyki!$M$20:$M$89) ->  | AM59: =NETWORKDAYS(AH59,AH59,koszyki!$M$20:$M$89) ->  | AN59: =NETWORKDAYS(AI59,AI59,koszyki!$M$20:$M$89) ->  | AP59: 0 | AU59: 1
C60: =IF($C$2="GAS_BASE",(B60-A60+1)*koszyki!$A$14+J60,IF($C$2="OFFPEAK",M60*koszyki!$A$14+(N60)*24+J60,IF($C$2="BASE5",M60*koszyki!$A$14+J60,IF($C$2="PEAK7",(B60-A60+1)*koszyki!$A$14,M60*koszyki!$A$14)))) -> 24 | D60: ='Kalkulator Depozytów'!M65 -> 0 | E60: ='Kalkulator Depozytów'!N65 -> 0 | F60: ='Kalkulator Depozytów'!O65 -> 0 | G60: ='Kalkulator Depozytów'!P65 -> 0 | H60: ='Kalkulator Depozytów'!Q65 -> 0 | I60: =ROUND(AVERAGE(INDIRECT("krzywa!C"&MATCH(A60-$A$2,krzywa!A:A,0)&":C"&MATCH(B60-$A$2,krzywa!A:A,0),TRUE)),4) ->  | K60: 0 | M60: =NETWORKDAYS(A60,B60,koszyki!$M$20:$M$89) -> 0 | N60: =B60-A60+1- NETWORKDAYS(A60,B60,koszyki!$M$20:$M$89) -> 1 | P60: 0 | AF60: 00:00:00 | AG60: =AF60-1 -> -1 | AH60: -2 | AI60: -3 | AK60: =NETWORKDAYS(AF60,AF60,koszyki!$M$20:$M$89) -> 0 | AL60: =NETWORKDAYS(AG60,AG60,koszyki!$M$20:$M$89) ->  | AM60: =NETWORKDAYS(AH60,AH60,koszyki!$M$20:$M$89) ->  | AN60: =NETWORKDAYS(AI60,AI60,koszyki!$M$20:$M$89) ->  | AP60: 0 | AU60: 1
C61: =IF($C$2="GAS_BASE",(B61-A61+1)*koszyki!$A$14+J61,IF($C$2="OFFPEAK",M61*koszyki!$A$14+(N61)*24+J61,IF($C$2="BASE5",M61*koszyki!$A$14+J61,IF($C$2="PEAK7",(B61-A61+1)*koszyki!$A$14,M61*koszyki!$A$14)))) -> 24 | D61: ='Kalkulator Depozytów'!M66 -> 0 | E61: ='Kalkulator Depozytów'!N66 -> 0 | F61: ='Kalkulator Depozytów'!O66 -> 0 | G61: ='Kalkulator Depozytów'!P66 -> 0 | H61: ='Kalkulator Depozytów'!Q66 -> 0 | I61: =ROUND(AVERAGE(INDIRECT("krzywa!C"&MATCH(A61-$A$2,krzywa!A:A,0)&":C"&MATCH(B61-$A$2,krzywa!A:A,0),TRUE)),4) ->  | K61: 0 | M61: =NETWORKDAYS(A61,B61,koszyki!$M$20:$M$89) -> 0 | N61: =B61-A61+1- NETWORKDAYS(A61,B61,koszyki!$M$20:$M$89) -> 1 | P61: 0 | AF61: 00:00:00 | AG61: =AF61-1 -> -1 | AH61: -2 | AI61: -3 | AK61: =NETWORKDAYS(AF61,AF61,koszyki!$M$20:$M$89) -> 0 | AL61: =NETWORKDAYS(AG61,AG61,koszyki!$M$20:$M$89) ->  | AM61: =NETWORKDAYS(AH61,AH61,koszyki!$M$20:$M$89) ->  | AN61: =NETWORKDAYS(AI61,AI61,koszyki!$M$20:$M$89) ->  | AP61: 0 | AU61: 1
C62: =IF($C$2="GAS_BASE",(B62-A62+1)*koszyki!$A$14+J62,IF($C$2="OFFPEAK",M62*koszyki!$A$14+(N62)*24+J62,IF($C$2="BASE5",M62*koszyki!$A$14+J62,IF($C$2="PEAK7",(B62-A62+1)*koszyki!$A$14,M62*koszyki!$A$14)))) -> 24 | D62: ='Kalkulator Depozytów'!M67 -> 0 | E62: ='Kalkulator Depozytów'!N67 -> 0 | F62: ='Kalkulator Depozytów'!O67 -> 0 | G62: ='Kalkulator Depozytów'!P67 -> 0 | H62: ='Kalkulator Depozytów'!Q67 -> 0 | I62: =ROUND(AVERAGE(INDIRECT("krzywa!C"&MATCH(A62-$A$2,krzywa!A:A,0)&":C"&MATCH(B62-$A$2,krzywa!A:A,0),TRUE)),4) ->  | K62: 0 | M62: =NETWORKDAYS(A62,B62,koszyki!$M$20:$M$89) -> 0 | N62: =B62-A62+1- NETWORKDAYS(A62,B62,koszyki!$M$20:$M$89) -> 1 | P62: 0 | AF62: 00:00:00 | AG62: =AF62-1 -> -1 | AH62: -2 | AI62: -3 | AK62: =NETWORKDAYS(AF62,AF62,koszyki!$M$20:$M$89) -> 0 | AL62: =NETWORKDAYS(AG62,AG62,koszyki!$M$20:$M$89) ->  | AM62: =NETWORKDAYS(AH62,AH62,koszyki!$M$20:$M$89) ->  | AN62: =NETWORKDAYS(AI62,AI62,koszyki!$M$20:$M$89) ->  | AP62: 0 | AU62: 1
C63: =IF($C$2="GAS_BASE",(B63-A63+1)*koszyki!$A$14+J63,IF($C$2="OFFPEAK",M63*koszyki!$A$14+(N63)*24+J63,IF($C$2="BASE5",M63*koszyki!$A$14+J63,IF($C$2="PEAK7",(B63-A63+1)*koszyki!$A$14,M63*koszyki!$A$14)))) -> 24 | D63: ='Kalkulator Depozytów'!M68 -> 0 | E63: ='Kalkulator Depozytów'!N68 -> 0 | F63: ='Kalkulator Depozytów'!O68 -> 0 | G63: ='Kalkulator Depozytów'!P68 -> 0 | H63: ='Kalkulator Depozytów'!Q68 -> 0 | I63: =ROUND(AVERAGE(INDIRECT("krzywa!C"&MATCH(A63-$A$2,krzywa!A:A,0)&":C"&MATCH(B63-$A$2,krzywa!A:A,0),TRUE)),4) ->  | K63: 0 | M63: =NETWORKDAYS(A63,B63,koszyki!$M$20:$M$89) -> 0 | N63: =B63-A63+1- NETWORKDAYS(A63,B63,koszyki!$M$20:$M$89) -> 1 | P63: 0 | AF63: 00:00:00 | AG63: =AF63-1 -> -1 | AH63: -2 | AI63: -3 | AK63: =NETWORKDAYS(AF63,AF63,koszyki!$M$20:$M$89) -> 0 | AL63: =NETWORKDAYS(AG63,AG63,koszyki!$M$20:$M$89) ->  | AM63: =NETWORKDAYS(AH63,AH63,koszyki!$M$20:$M$89) ->  | AN63: =NETWORKDAYS(AI63,AI63,koszyki!$M$20:$M$89) ->  | AP63: 0 | AU63: 1
C64: =IF($C$2="GAS_BASE",(B64-A64+1)*koszyki!$A$14+J64,IF($C$2="OFFPEAK",M64*koszyki!$A$14+(N64)*24+J64,IF($C$2="BASE5",M64*koszyki!$A$14+J64,IF($C$2="PEAK7",(B64-A64+1)*koszyki!$A$14,M64*koszyki!$A$14)))) -> 24 | D64: ='Kalkulator Depozytów'!M69 -> 0 | E64: ='Kalkulator Depozytów'!N69 -> 0 | F64: ='Kalkulator Depozytów'!O69 -> 0 | G64: ='Kalkulator Depozytów'!P69 -> 0 | H64: ='Kalkulator Depozytów'!Q69 -> 0 | I64: =ROUND(AVERAGE(INDIRECT("krzywa!C"&MATCH(A64-$A$2,krzywa!A:A,0)&":C"&MATCH(B64-$A$2,krzywa!A:A,0),TRUE)),4) ->  | K64: 0 | M64: =NETWORKDAYS(A64,B64,koszyki!$M$20:$M$89) -> 0 | N64: =B64-A64+1- NETWORKDAYS(A64,B64,koszyki!$M$20:$M$89) -> 1 | P64: 0 | AF64: 00:00:00 | AG64: =AF64-1 -> -1 | AH64: -2 | AI64: -3 | AK64: =NETWORKDAYS(AF64,AF64,koszyki!$M$20:$M$89) -> 0 | AL64: =NETWORKDAYS(AG64,AG64,koszyki!$M$20:$M$89) ->  | AM64: =NETWORKDAYS(AH64,AH64,koszyki!$M$20:$M$89) ->  | AN64: =NETWORKDAYS(AI64,AI64,koszyki!$M$20:$M$89) ->  | AP64: 0 | AU64: 1
C65: =IF($C$2="GAS_BASE",(B65-A65+1)*koszyki!$A$14+J65,IF($C$2="OFFPEAK",M65*koszyki!$A$14+(N65)*24+J65,IF($C$2="BASE5",M65*koszyki!$A$14+J65,IF($C$2="PEAK7",(B65-A65+1)*koszyki!$A$14,M65*koszyki!$A$14)))) -> 24 | D65: ='Kalkulator Depozytów'!M70 -> 0 | E65: ='Kalkulator Depozytów'!N70 -> 0 | F65: ='Kalkulator Depozytów'!O70 -> 0 | G65: ='Kalkulator Depozytów'!P70 -> 0 | H65: ='Kalkulator Depozytów'!Q70 -> 0 | I65: =ROUND(AVERAGE(INDIRECT("krzywa!C"&MATCH(A65-$A$2,krzywa!A:A,0)&":C"&MATCH(B65-$A$2,krzywa!A:A,0),TRUE)),4) ->  | K65: 0 | M65: =NETWORKDAYS(A65,B65,koszyki!$M$20:$M$89) -> 0 | N65: =B65-A65+1- NETWORKDAYS(A65,B65,koszyki!$M$20:$M$89) -> 1 | P65: 0 | AF65: 00:00:00 | AG65: =AF65-1 -> -1 | AH65: -2 | AI65: -3 | AK65: =NETWORKDAYS(AF65,AF65,koszyki!$M$20:$M$89) -> 0 | AL65: =NETWORKDAYS(AG65,AG65,koszyki!$M$20:$M$89) ->  | AM65: =NETWORKDAYS(AH65,AH65,koszyki!$M$20:$M$89) ->  | AN65: =NETWORKDAYS(AI65,AI65,koszyki!$M$20:$M$89) ->  | AP65: 0 | AU65: 1
C66: =IF($C$2="GAS_BASE",(B66-A66+1)*koszyki!$A$14+J66,IF($C$2="OFFPEAK",M66*koszyki!$A$14+(N66)*24+J66,IF($C$2="BASE5",M66*koszyki!$A$14+J66,IF($C$2="PEAK7",(B66-A66+1)*koszyki!$A$14,M66*koszyki!$A$14)))) -> 24 | D66: ='Kalkulator Depozytów'!M71 -> 0 | E66: ='Kalkulator Depozytów'!N71 -> 0 | F66: ='Kalkulator Depozytów'!O71 -> 0 | G66: ='Kalkulator Depozytów'!P71 -> 0 | H66: ='Kalkulator Depozytów'!Q71 -> 0 | I66: =ROUND(AVERAGE(INDIRECT("krzywa!C"&MATCH(A66-$A$2,krzywa!A:A,0)&":C"&MATCH(B66-$A$2,krzywa!A:A,0),TRUE)),4) ->  | K66: 0 | M66: =NETWORKDAYS(A66,B66,koszyki!$M$20:$M$89) -> 0 | N66: =B66-A66+1- NETWORKDAYS(A66,B66,koszyki!$M$20:$M$89) -> 1 | P66: 0 | AF66: 00:00:00 | AG66: =AF66-1 -> -1 | AH66: -2 | AI66: -3 | AK66: =NETWORKDAYS(AF66,AF66,koszyki!$M$20:$M$89) -> 0 | AL66: =NETWORKDAYS(AG66,AG66,koszyki!$M$20:$M$89) ->  | AM66: =NETWORKDAYS(AH66,AH66,koszyki!$M$20:$M$89) ->  | AN66: =NETWORKDAYS(AI66,AI66,koszyki!$M$20:$M$89) ->  | AP66: 0 | AU66: 1
C67: =IF($C$2="GAS_BASE",(B67-A67+1)*koszyki!$A$14+J67,IF($C$2="OFFPEAK",M67*koszyki!$A$14+(N67)*24+J67,IF($C$2="BASE5",M67*koszyki!$A$14+J67,IF($C$2="PEAK7",(B67-A67+1)*koszyki!$A$14,M67*koszyki!$A$14)))) -> 24 | D67: ='Kalkulator Depozytów'!M72 -> 0 | E67: ='Kalkulator Depozytów'!N72 -> 0 | F67: ='Kalkulator Depozytów'!O72 -> 0 | G67: ='Kalkulator Depozytów'!P72 -> 0 | H67: ='Kalkulator Depozytów'!Q72 -> 0 | I67: =ROUND(AVERAGE(INDIRECT("krzywa!C"&MATCH(A67-$A$2,krzywa!A:A,0)&":C"&MATCH(B67-$A$2,krzywa!A:A,0),TRUE)),4) ->  | K67: 0 | M67: =NETWORKDAYS(A67,B67,koszyki!$M$20:$M$89) -> 0 | N67: =B67-A67+1- NETWORKDAYS(A67,B67,koszyki!$M$20:$M$89) -> 1 | P67: 0 | AF67: 00:00:00 | AG67: =AF67-1 -> -1 | AH67: -2 | AI67: -3 | AK67: =NETWORKDAYS(AF67,AF67,koszyki!$M$20:$M$89) -> 0 | AL67: =NETWORKDAYS(AG67,AG67,koszyki!$M$20:$M$89) ->  | AM67: =NETWORKDAYS(AH67,AH67,koszyki!$M$20:$M$89) ->  | AN67: =NETWORKDAYS(AI67,AI67,koszyki!$M$20:$M$89) ->  | AP67: 0 | AU67: 1
C68: =IF($C$2="GAS_BASE",(B68-A68+1)*koszyki!$A$14+J68,IF($C$2="OFFPEAK",M68*koszyki!$A$14+(N68)*24+J68,IF($C$2="BASE5",M68*koszyki!$A$14+J68,IF($C$2="PEAK7",(B68-A68+1)*koszyki!$A$14,M68*koszyki!$A$14)))) -> 24 | D68: ='Kalkulator Depozytów'!M73 -> 0 | E68: ='Kalkulator Depozytów'!N73 -> 0 | F68: ='Kalkulator Depozytów'!O73 -> 0 | G68: ='Kalkulator Depozytów'!P73 -> 0 | H68: ='Kalkulator Depozytów'!Q73 -> 0 | I68: =ROUND(AVERAGE(INDIRECT("krzywa!C"&MATCH(A68-$A$2,krzywa!A:A,0)&":C"&MATCH(B68-$A$2,krzywa!A:A,0),TRUE)),4) ->  | K68: 0 | M68: =NETWORKDAYS(A68,B68,koszyki!$M$20:$M$89) -> 0 | N68: =B68-A68+1- NETWORKDAYS(A68,B68,koszyki!$M$20:$M$89) -> 1 | P68: 0 | AF68: 00:00:00 | AG68: =AF68-1 -> -1 | AH68: -2 | AI68: -3 | AK68: =NETWORKDAYS(AF68,AF68,koszyki!$M$20:$M$89) -> 0 | AL68: =NETWORKDAYS(AG68,AG68,koszyki!$M$20:$M$89) ->  | AM68: =NETWORKDAYS(AH68,AH68,koszyki!$M$20:$M$89) ->  | AN68: =NETWORKDAYS(AI68,AI68,koszyki!$M$20:$M$89) ->  | AP68: 0 | AU68: 1
C69: =IF($C$2="GAS_BASE",(B69-A69+1)*koszyki!$A$14+J69,IF($C$2="OFFPEAK",M69*koszyki!$A$14+(N69)*24+J69,IF($C$2="BASE5",M69*koszyki!$A$14+J69,IF($C$2="PEAK7",(B69-A69+1)*koszyki!$A$14,M69*koszyki!$A$14)))) -> 24 | D69: ='Kalkulator Depozytów'!M74 -> 0 | E69: ='Kalkulator Depozytów'!N74 -> 0 | F69: ='Kalkulator Depozytów'!O74 -> 0 | G69: ='Kalkulator Depozytów'!P74 -> 0 | H69: ='Kalkulator Depozytów'!Q74 -> 0 | I69: =ROUND(AVERAGE(INDIRECT("krzywa!C"&MATCH(A69-$A$2,krzywa!A:A,0)&":C"&MATCH(B69-$A$2,krzywa!A:A,0),TRUE)),4) ->  | K69: 0 | M69: =NETWORKDAYS(A69,B69,koszyki!$M$20:$M$89) -> 0 | N69: =B69-A69+1- NETWORKDAYS(A69,B69,koszyki!$M$20:$M$89) -> 1 | P69: 0 | AF69: 00:00:00 | AG69: =AF69-1 -> -1 | AH69: -2 | AI69: -3 | AK69: =NETWORKDAYS(AF69,AF69,koszyki!$M$20:$M$89) -> 0 | AL69: =NETWORKDAYS(AG69,AG69,koszyki!$M$20:$M$89) ->  | AM69: =NETWORKDAYS(AH69,AH69,koszyki!$M$20:$M$89) ->  | AN69: =NETWORKDAYS(AI69,AI69,koszyki!$M$20:$M$89) ->  | AP69: 0 | AU69: 1
C70: =IF($C$2="GAS_BASE",(B70-A70+1)*koszyki!$A$14+J70,IF($C$2="OFFPEAK",M70*koszyki!$A$14+(N70)*24+J70,IF($C$2="BASE5",M70*koszyki!$A$14+J70,IF($C$2="PEAK7",(B70-A70+1)*koszyki!$A$14,M70*koszyki!$A$14)))) -> 24 | D70: ='Kalkulator Depozytów'!M75 -> 0 | E70: ='Kalkulator Depozytów'!N75 -> 0 | F70: ='Kalkulator Depozytów'!O75 -> 0 | G70: ='Kalkulator Depozytów'!P75 -> 0 | H70: ='Kalkulator Depozytów'!Q75 -> 0 | I70: =ROUND(AVERAGE(INDIRECT("krzywa!C"&MATCH(A70-$A$2,krzywa!A:A,0)&":C"&MATCH(B70-$A$2,krzywa!A:A,0),TRUE)),4) ->  | K70: 0 | M70: =NETWORKDAYS(A70,B70,koszyki!$M$20:$M$89) -> 0 | N70: =B70-A70+1- NETWORKDAYS(A70,B70,koszyki!$M$20:$M$89) -> 1 | P70: 0 | AF70: 00:00:00 | AG70: =AF70-1 -> -1 | AH70: -2 | AI70: -3 | AK70: =NETWORKDAYS(AF70,AF70,koszyki!$M$20:$M$89) -> 0 | AL70: =NETWORKDAYS(AG70,AG70,koszyki!$M$20:$M$89) ->  | AM70: =NETWORKDAYS(AH70,AH70,koszyki!$M$20:$M$89) ->  | AN70: =NETWORKDAYS(AI70,AI70,koszyki!$M$20:$M$89) ->  | AP70: 0 | AU70: 1
C71: =IF($C$2="GAS_BASE",(B71-A71+1)*koszyki!$A$14+J71,IF($C$2="OFFPEAK",M71*koszyki!$A$14+(N71)*24+J71,IF($C$2="BASE5",M71*koszyki!$A$14+J71,IF($C$2="PEAK7",(B71-A71+1)*koszyki!$A$14,M71*koszyki!$A$14)))) -> 24 | D71: ='Kalkulator Depozytów'!M76 -> 0 | E71: ='Kalkulator Depozytów'!N76 -> 0 | F71: ='Kalkulator Depozytów'!O76 -> 0 | G71: ='Kalkulator Depozytów'!P76 -> 0 | H71: ='Kalkulator Depozytów'!Q76 -> 0 | I71: =ROUND(AVERAGE(INDIRECT("krzywa!C"&MATCH(A71-$A$2,krzywa!A:A,0)&":C"&MATCH(B71-$A$2,krzywa!A:A,0),TRUE)),4) ->  | K71: 0 | M71: =NETWORKDAYS(A71,B71,koszyki!$M$20:$M$89) -> 0 | N71: =B71-A71+1- NETWORKDAYS(A71,B71,koszyki!$M$20:$M$89) -> 1 | P71: 0 | AF71: 00:00:00 | AG71: =AF71-1 -> -1 | AH71: -2 | AI71: -3 | AK71: =NETWORKDAYS(AF71,AF71,koszyki!$M$20:$M$89) -> 0 | AL71: =NETWORKDAYS(AG71,AG71,koszyki!$M$20:$M$89) ->  | AM71: =NETWORKDAYS(AH71,AH71,koszyki!$M$20:$M$89) ->  | AN71: =NETWORKDAYS(AI71,AI71,koszyki!$M$20:$M$89) ->  | AP71: 0 | AU71: 1
C72: =IF($C$2="GAS_BASE",(B72-A72+1)*koszyki!$A$14+J72,IF($C$2="OFFPEAK",M72*koszyki!$A$14+(N72)*24+J72,IF($C$2="BASE5",M72*koszyki!$A$14+J72,IF($C$2="PEAK7",(B72-A72+1)*koszyki!$A$14,M72*koszyki!$A$14)))) -> 24 | D72: ='Kalkulator Depozytów'!M77 -> 0 | E72: ='Kalkulator Depozytów'!N77 -> 0 | F72: ='Kalkulator Depozytów'!O77 -> 0 | G72: ='Kalkulator Depozytów'!P77 -> 0 | H72: ='Kalkulator Depozytów'!Q77 -> 0 | I72: =ROUND(AVERAGE(INDIRECT("krzywa!C"&MATCH(A72-$A$2,krzywa!A:A,0)&":C"&MATCH(B72-$A$2,krzywa!A:A,0),TRUE)),4) ->  | K72: 0 | M72: =NETWORKDAYS(A72,B72,koszyki!$M$20:$M$89) -> 0 | N72: =B72-A72+1- NETWORKDAYS(A72,B72,koszyki!$M$20:$M$89) -> 1 | P72: 0 | AF72: 00:00:00 | AG72: =AF72-1 -> -1 | AH72: -2 | AI72: -3 | AK72: =NETWORKDAYS(AF72,AF72,koszyki!$M$20:$M$89) -> 0 | AL72: =NETWORKDAYS(AG72,AG72,koszyki!$M$20:$M$89) ->  | AM72: =NETWORKDAYS(AH72,AH72,koszyki!$M$20:$M$89) ->  | AN72: =NETWORKDAYS(AI72,AI72,koszyki!$M$20:$M$89) ->  | AP72: 0 | AU72: 1
C73: =IF($C$2="GAS_BASE",(B73-A73+1)*koszyki!$A$14+J73,IF($C$2="OFFPEAK",M73*koszyki!$A$14+(N73)*24+J73,IF($C$2="BASE5",M73*koszyki!$A$14+J73,IF($C$2="PEAK7",(B73-A73+1)*koszyki!$A$14,M73*koszyki!$A$14)))) -> 24 | D73: ='Kalkulator Depozytów'!M78 -> 0 | E73: ='Kalkulator Depozytów'!N78 -> 0 | F73: ='Kalkulator Depozytów'!O78 -> 0 | G73: ='Kalkulator Depozytów'!P78 -> 0 | H73: ='Kalkulator Depozytów'!Q78 -> 0 | I73: =ROUND(AVERAGE(INDIRECT("krzywa!C"&MATCH(A73-$A$2,krzywa!A:A,0)&":C"&MATCH(B73-$A$2,krzywa!A:A,0),TRUE)),4) ->  | K73: =IF(-($A$2-B73)<364,-($A$2-B73),365) -> 0 | M73: =NETWORKDAYS(A73,B73,koszyki!$M$20:$M$89) -> 0 | N73: =B73-A73+1- NETWORKDAYS(A73,B73,koszyki!$M$20:$M$89) -> 1 | P73: =(C73*D73)*(H73-E73)-(C73*F73)*(H73-G73) -> 0 | Q73: =-C73*ABS(D73-F73)*H73*I73 ->  | AF73: =B73 -> 00:00:00 | AG73: =AF73-1 -> -1 | AH73: -2 | AI73: -3 | AK73: =NETWORKDAYS(AF73,AF73,koszyki!$M$20:$M$89) -> 0 | AL73: =NETWORKDAYS(AG73,AG73,koszyki!$M$20:$M$89) ->  | AM73: =NETWORKDAYS(AH73,AH73,koszyki!$M$20:$M$89) ->  | AN73: =NETWORKDAYS(AI73,AI73,koszyki!$M$20:$M$89) ->  | AP73: =SUM(AK73) -> 0 | AQ73: =SUM(AK73:AL73) ->  | AR73: =SUM(AK73:AM73) ->  | AS73: =SUM(AK73:AN73) ->  | AU73: =COUNTIF(AP73:AS73,"=0") -> 1
C74: =IF($C$2="GAS_BASE",(B74-A74+1)*koszyki!$A$14+J74,IF($C$2="OFFPEAK",M74*koszyki!$A$14+(N74)*24+J74,IF($C$2="BASE5",M74*koszyki!$A$14+J74,IF($C$2="PEAK7",(B74-A74+1)*koszyki!$A$14,M74*koszyki!$A$14)))) -> 24 | D74: ='Kalkulator Depozytów'!M79 -> 0 | E74: ='Kalkulator Depozytów'!N79 -> 0 | F74: ='Kalkulator Depozytów'!O79 -> 0 | G74: ='Kalkulator Depozytów'!P79 -> 0 | H74: ='Kalkulator Depozytów'!Q79 -> 0 | I74: =ROUND(AVERAGE(INDIRECT("krzywa!C"&MATCH(A74-$A$2,krzywa!A:A,0)&":C"&MATCH(B74-$A$2,krzywa!A:A,0),TRUE)),4) ->  | K74: 0 | M74: =NETWORKDAYS(A74,B74,koszyki!$M$20:$M$89) -> 0 | N74: =B74-A74+1- NETWORKDAYS(A74,B74,koszyki!$M$20:$M$89) -> 1 | P74: 0 | AF74: 00:00:00 | AG74: =AF74-1 -> -1 | AH74: -2 | AI74: -3 | AK74: =NETWORKDAYS(AF74,AF74,koszyki!$M$20:$M$89) -> 0 | AL74: =NETWORKDAYS(AG74,AG74,koszyki!$M$20:$M$89) ->  | AM74: =NETWORKDAYS(AH74,AH74,koszyki!$M$20:$M$89) ->  | AN74: =NETWORKDAYS(AI74,AI74,koszyki!$M$20:$M$89) ->  | AP74: 0 | AU74: 1
C75: =IF($C$2="GAS_BASE",(B75-A75+1)*koszyki!$A$14+J75,IF($C$2="OFFPEAK",M75*koszyki!$A$14+(N75)*24+J75,IF($C$2="BASE5",M75*koszyki!$A$14+J75,IF($C$2="PEAK7",(B75-A75+1)*koszyki!$A$14,M75*koszyki!$A$14)))) -> 24 | D75: ='Kalkulator Depozytów'!M80 -> 0 | E75: ='Kalkulator Depozytów'!N80 -> 0 | F75: ='Kalkulator Depozytów'!O80 -> 0 | G75: ='Kalkulator Depozytów'!P80 -> 0 | H75: ='Kalkulator Depozytów'!Q80 -> 0 | I75: =ROUND(AVERAGE(INDIRECT("krzywa!C"&MATCH(A75-$A$2,krzywa!A:A,0)&":C"&MATCH(B75-$A$2,krzywa!A:A,0),TRUE)),4) ->  | K75: 0 | M75: =NETWORKDAYS(A75,B75,koszyki!$M$20:$M$89) -> 0 | N75: =B75-A75+1- NETWORKDAYS(A75,B75,koszyki!$M$20:$M$89) -> 1 | P75: 0 | AF75: 00:00:00 | AG75: =AF75-1 -> -1 | AH75: -2 | AI75: -3 | AK75: =NETWORKDAYS(AF75,AF75,koszyki!$M$20:$M$89) -> 0 | AL75: =NETWORKDAYS(AG75,AG75,koszyki!$M$20:$M$89) ->  | AM75: =NETWORKDAYS(AH75,AH75,koszyki!$M$20:$M$89) ->  | AN75: =NETWORKDAYS(AI75,AI75,koszyki!$M$20:$M$89) ->  | AP75: 0 | AU75: 1
C76: =IF($C$2="GAS_BASE",(B76-A76+1)*koszyki!$A$14+J76,IF($C$2="OFFPEAK",M76*koszyki!$A$14+(N76)*24+J76,IF($C$2="BASE5",M76*koszyki!$A$14+J76,IF($C$2="PEAK7",(B76-A76+1)*koszyki!$A$14,M76*koszyki!$A$14)))) -> 24 | D76: ='Kalkulator Depozytów'!M81 -> 0 | E76: ='Kalkulator Depozytów'!N81 -> 0 | F76: ='Kalkulator Depozytów'!O81 -> 0 | G76: ='Kalkulator Depozytów'!P81 -> 0 | H76: ='Kalkulator Depozytów'!Q81 -> 0 | I76: =ROUND(AVERAGE(INDIRECT("krzywa!C"&MATCH(A76-$A$2,krzywa!A:A,0)&":C"&MATCH(B76-$A$2,krzywa!A:A,0),TRUE)),4) ->  | K76: 0 | M76: =NETWORKDAYS(A76,B76,koszyki!$M$20:$M$89) -> 0 | N76: =B76-A76+1- NETWORKDAYS(A76,B76,koszyki!$M$20:$M$89) -> 1 | P76: 0 | AF76: 00:00:00 | AG76: =AF76-1 -> -1 | AH76: -2 | AI76: -3 | AK76: =NETWORKDAYS(AF76,AF76,koszyki!$M$20:$M$89) -> 0 | AL76: =NETWORKDAYS(AG76,AG76,koszyki!$M$20:$M$89) ->  | AM76: =NETWORKDAYS(AH76,AH76,koszyki!$M$20:$M$89) ->  | AN76: =NETWORKDAYS(AI76,AI76,koszyki!$M$20:$M$89) ->  | AP76: 0 | AU76: 1
C77: =IF($C$2="GAS_BASE",(B77-A77+1)*koszyki!$A$14+J77,IF($C$2="OFFPEAK",M77*koszyki!$A$14+(N77)*24+J77,IF($C$2="BASE5",M77*koszyki!$A$14+J77,IF($C$2="PEAK7",(B77-A77+1)*koszyki!$A$14,M77*koszyki!$A$14)))) -> 24 | D77: ='Kalkulator Depozytów'!M82 -> 0 | E77: ='Kalkulator Depozytów'!N82 -> 0 | F77: ='Kalkulator Depozytów'!O82 -> 0 | G77: ='Kalkulator Depozytów'!P82 -> 0 | H77: ='Kalkulator Depozytów'!Q82 -> 0 | I77: =ROUND(AVERAGE(INDIRECT("krzywa!C"&MATCH(A77-$A$2,krzywa!A:A,0)&":C"&MATCH(B77-$A$2,krzywa!A:A,0),TRUE)),4) ->  | K77: 0 | M77: =NETWORKDAYS(A77,B77,koszyki!$M$20:$M$89) -> 0 | N77: =B77-A77+1- NETWORKDAYS(A77,B77,koszyki!$M$20:$M$89) -> 1 | P77: 0 | AF77: 00:00:00 | AG77: =AF77-1 -> -1 | AH77: -2 | AI77: -3 | AK77: =NETWORKDAYS(AF77,AF77,koszyki!$M$20:$M$89) -> 0 | AL77: =NETWORKDAYS(AG77,AG77,koszyki!$M$20:$M$89) ->  | AM77: =NETWORKDAYS(AH77,AH77,koszyki!$M$20:$M$89) ->  | AN77: =NETWORKDAYS(AI77,AI77,koszyki!$M$20:$M$89) ->  | AP77: 0 | AU77: 1
C78: =IF($C$2="GAS_BASE",(B78-A78+1)*koszyki!$A$14+J78,IF($C$2="OFFPEAK",M78*koszyki!$A$14+(N78)*24+J78,IF($C$2="BASE5",M78*koszyki!$A$14+J78,IF($C$2="PEAK7",(B78-A78+1)*koszyki!$A$14,M78*koszyki!$A$14)))) -> 24 | D78: ='Kalkulator Depozytów'!M83 -> 0 | E78: ='Kalkulator Depozytów'!N83 -> 0 | F78: ='Kalkulator Depozytów'!O83 -> 0 | G78: ='Kalkulator Depozytów'!P83 -> 0 | H78: ='Kalkulator Depozytów'!Q83 -> 0 | I78: =ROUND(AVERAGE(INDIRECT("krzywa!C"&MATCH(A78-$A$2,krzywa!A:A,0)&":C"&MATCH(B78-$A$2,krzywa!A:A,0),TRUE)),4) ->  | K78: 0 | M78: =NETWORKDAYS(A78,B78,koszyki!$M$20:$M$89) -> 0 | N78: =B78-A78+1- NETWORKDAYS(A78,B78,koszyki!$M$20:$M$89) -> 1 | P78: 0 | AF78: 00:00:00 | AG78: =AF78-1 -> -1 | AH78: -2 | AI78: -3 | AK78: =NETWORKDAYS(AF78,AF78,koszyki!$M$20:$M$89) -> 0 | AL78: =NETWORKDAYS(AG78,AG78,koszyki!$M$20:$M$89) ->  | AM78: =NETWORKDAYS(AH78,AH78,koszyki!$M$20:$M$89) ->  | AN78: =NETWORKDAYS(AI78,AI78,koszyki!$M$20:$M$89) ->  | AP78: 0 | AU78: 1
C79: =IF($C$2="GAS_BASE",(B79-A79+1)*koszyki!$A$14+J79,IF($C$2="OFFPEAK",M79*koszyki!$A$14+(N79)*24+J79,IF($C$2="BASE5",M79*koszyki!$A$14+J79,IF($C$2="PEAK7",(B79-A79+1)*koszyki!$A$14,M79*koszyki!$A$14)))) -> 24 | D79: ='Kalkulator Depozytów'!M84 -> 0 | E79: ='Kalkulator Depozytów'!N84 -> 0 | F79: ='Kalkulator Depozytów'!O84 -> 0 | G79: ='Kalkulator Depozytów'!P84 -> 0 | H79: ='Kalkulator Depozytów'!Q84 -> 0 | I79: =ROUND(AVERAGE(INDIRECT("krzywa!C"&MATCH(A79-$A$2,krzywa!A:A,0)&":C"&MATCH(B79-$A$2,krzywa!A:A,0),TRUE)),4) ->  | K79: 0 | M79: =NETWORKDAYS(A79,B79,koszyki!$M$20:$M$89) -> 0 | N79: =B79-A79+1- NETWORKDAYS(A79,B79,koszyki!$M$20:$M$89) -> 1 | P79: 0 | AF79: 00:00:00 | AG79: =AF79-1 -> -1 | AH79: -2 | AI79: -3 | AK79: =NETWORKDAYS(AF79,AF79,koszyki!$M$20:$M$89) -> 0 | AL79: =NETWORKDAYS(AG79,AG79,koszyki!$M$20:$M$89) ->  | AM79: =NETWORKDAYS(AH79,AH79,koszyki!$M$20:$M$89) ->  | AN79: =NETWORKDAYS(AI79,AI79,koszyki!$M$20:$M$89) ->  | AP79: 0 | AU79: 1
C80: =IF($C$2="GAS_BASE",(B80-A80+1)*koszyki!$A$14+J80,IF($C$2="OFFPEAK",M80*koszyki!$A$14+(N80)*24+J80,IF($C$2="BASE5",M80*koszyki!$A$14+J80,IF($C$2="PEAK7",(B80-A80+1)*koszyki!$A$14,M80*koszyki!$A$14)))) -> 24 | D80: ='Kalkulator Depozytów'!M85 -> 0 | E80: ='Kalkulator Depozytów'!N85 -> 0 | F80: ='Kalkulator Depozytów'!O85 -> 0 | G80: ='Kalkulator Depozytów'!P85 -> 0 | H80: ='Kalkulator Depozytów'!Q85 -> 0 | I80: =ROUND(AVERAGE(INDIRECT("krzywa!C"&MATCH(A80-$A$2,krzywa!A:A,0)&":C"&MATCH(B80-$A$2,krzywa!A:A,0),TRUE)),4) ->  | K80: 0 | M80: =NETWORKDAYS(A80,B80,koszyki!$M$20:$M$89) -> 0 | N80: =B80-A80+1- NETWORKDAYS(A80,B80,koszyki!$M$20:$M$89) -> 1 | P80: 0 | AF80: 00:00:00 | AG80: =AF80-1 -> -1 | AH80: -2 | AI80: -3 | AK80: =NETWORKDAYS(AF80,AF80,koszyki!$M$20:$M$89) -> 0 | AL80: =NETWORKDAYS(AG80,AG80,koszyki!$M$20:$M$89) ->  | AM80: =NETWORKDAYS(AH80,AH80,koszyki!$M$20:$M$89) ->  | AN80: =NETWORKDAYS(AI80,AI80,koszyki!$M$20:$M$89) ->  | AP80: 0 | AU80: 1
C81: =IF($C$2="GAS_BASE",(B81-A81+1)*koszyki!$A$14+J81,IF($C$2="OFFPEAK",M81*koszyki!$A$14+(N81)*24+J81,IF($C$2="BASE5",M81*koszyki!$A$14+J81,IF($C$2="PEAK7",(B81-A81+1)*koszyki!$A$14,M81*koszyki!$A$14)))) -> 24 | D81: ='Kalkulator Depozytów'!M86 -> 0 | E81: ='Kalkulator Depozytów'!N86 -> 0 | F81: ='Kalkulator Depozytów'!O86 -> 0 | G81: ='Kalkulator Depozytów'!P86 -> 0 | H81: ='Kalkulator Depozytów'!Q86 -> 0 | I81: =ROUND(AVERAGE(INDIRECT("krzywa!C"&MATCH(A81-$A$2,krzywa!A:A,0)&":C"&MATCH(B81-$A$2,krzywa!A:A,0),TRUE)),4) ->  | K81: 0 | M81: =NETWORKDAYS(A81,B81,koszyki!$M$20:$M$89) -> 0 | N81: =B81-A81+1- NETWORKDAYS(A81,B81,koszyki!$M$20:$M$89) -> 1 | P81: 0 | AF81: 00:00:00 | AG81: =AF81-1 -> -1 | AH81: -2 | AI81: -3 | AK81: =NETWORKDAYS(AF81,AF81,koszyki!$M$20:$M$89) -> 0 | AL81: =NETWORKDAYS(AG81,AG81,koszyki!$M$20:$M$89) ->  | AM81: =NETWORKDAYS(AH81,AH81,koszyki!$M$20:$M$89) ->  | AN81: =NETWORKDAYS(AI81,AI81,koszyki!$M$20:$M$89) ->  | AP81: 0 | AU81: 1
C82: =IF($C$2="GAS_BASE",(B82-A82+1)*koszyki!$A$14+J82,IF($C$2="OFFPEAK",M82*koszyki!$A$14+(N82)*24+J82,IF($C$2="BASE5",M82*koszyki!$A$14+J82,IF($C$2="PEAK7",(B82-A82+1)*koszyki!$A$14,M82*koszyki!$A$14)))) -> 24 | D82: ='Kalkulator Depozytów'!M87 -> 0 | E82: ='Kalkulator Depozytów'!N87 -> 0 | F82: ='Kalkulator Depozytów'!O87 -> 0 | G82: ='Kalkulator Depozytów'!P87 -> 0 | H82: ='Kalkulator Depozytów'!Q87 -> 0 | I82: =ROUND(AVERAGE(INDIRECT("krzywa!C"&MATCH(A82-$A$2,krzywa!A:A,0)&":C"&MATCH(B82-$A$2,krzywa!A:A,0),TRUE)),4) ->  | K82: 0 | M82: =NETWORKDAYS(A82,B82,koszyki!$M$20:$M$89) -> 0 | N82: =B82-A82+1- NETWORKDAYS(A82,B82,koszyki!$M$20:$M$89) -> 1 | P82: 0 | AF82: 00:00:00 | AG82: =AF82-1 -> -1 | AH82: -2 | AI82: -3 | AK82: =NETWORKDAYS(AF82,AF82,koszyki!$M$20:$M$89) -> 0 | AL82: =NETWORKDAYS(AG82,AG82,koszyki!$M$20:$M$89) ->  | AM82: =NETWORKDAYS(AH82,AH82,koszyki!$M$20:$M$89) ->  | AN82: =NETWORKDAYS(AI82,AI82,koszyki!$M$20:$M$89) ->  | AP82: 0 | AU82: 1
C83: =IF($C$2="GAS_BASE",(B83-A83+1)*koszyki!$A$14+J83,IF($C$2="OFFPEAK",M83*koszyki!$A$14+(N83)*24+J83,IF($C$2="BASE5",M83*koszyki!$A$14+J83,IF($C$2="PEAK7",(B83-A83+1)*koszyki!$A$14,M83*koszyki!$A$14)))) -> 24 | D83: ='Kalkulator Depozytów'!M88 -> 0 | E83: ='Kalkulator Depozytów'!N88 -> 0 | F83: ='Kalkulator Depozytów'!O88 -> 0 | G83: ='Kalkulator Depozytów'!P88 -> 0 | H83: ='Kalkulator Depozytów'!Q88 -> 0 | I83: =ROUND(AVERAGE(INDIRECT("krzywa!C"&MATCH(A83-$A$2,krzywa!A:A,0)&":C"&MATCH(B83-$A$2,krzywa!A:A,0),TRUE)),4) ->  | K83: 0 | M83: =NETWORKDAYS(A83,B83,koszyki!$M$20:$M$89) -> 0 | N83: =B83-A83+1- NETWORKDAYS(A83,B83,koszyki!$M$20:$M$89) -> 1 | P83: 0 | AF83: 00:00:00 | AG83: =AF83-1 -> -1 | AH83: -2 | AI83: -3 | AK83: =NETWORKDAYS(AF83,AF83,koszyki!$M$20:$M$89) -> 0 | AL83: =NETWORKDAYS(AG83,AG83,koszyki!$M$20:$M$89) ->  | AM83: =NETWORKDAYS(AH83,AH83,koszyki!$M$20:$M$89) ->  | AN83: =NETWORKDAYS(AI83,AI83,koszyki!$M$20:$M$89) ->  | AP83: 0 | AU83: 1
C84: =IF($C$2="GAS_BASE",(B84-A84+1)*koszyki!$A$14+J84,IF($C$2="OFFPEAK",M84*koszyki!$A$14+(N84)*24+J84,IF($C$2="BASE5",M84*koszyki!$A$14+J84,IF($C$2="PEAK7",(B84-A84+1)*koszyki!$A$14,M84*koszyki!$A$14)))) -> 24 | D84: ='Kalkulator Depozytów'!M89 -> 0 | E84: ='Kalkulator Depozytów'!N89 -> 0 | F84: ='Kalkulator Depozytów'!O89 -> 0 | G84: ='Kalkulator Depozytów'!P89 -> 0 | H84: ='Kalkulator Depozytów'!Q89 -> 0 | I84: =ROUND(AVERAGE(INDIRECT("krzywa!C"&MATCH(A84-$A$2,krzywa!A:A,0)&":C"&MATCH(B84-$A$2,krzywa!A:A,0),TRUE)),4) ->  | K84: 0 | M84: =NETWORKDAYS(A84,B84,koszyki!$M$20:$M$89) -> 0 | N84: =B84-A84+1- NETWORKDAYS(A84,B84,koszyki!$M$20:$M$89) -> 1 | P84: 0 | AF84: 00:00:00 | AG84: =AF84-1 -> -1 | AH84: -2 | AI84: -3 | AK84: =NETWORKDAYS(AF84,AF84,koszyki!$M$20:$M$89) -> 0 | AL84: =NETWORKDAYS(AG84,AG84,koszyki!$M$20:$M$89) ->  | AM84: =NETWORKDAYS(AH84,AH84,koszyki!$M$20:$M$89) ->  | AN84: =NETWORKDAYS(AI84,AI84,koszyki!$M$20:$M$89) ->  | AP84: 0 | AU84: 1
C85: =IF($C$2="GAS_BASE",(B85-A85+1)*koszyki!$A$14+J85,IF($C$2="OFFPEAK",M85*koszyki!$A$14+(N85)*24+J85,IF($C$2="BASE5",M85*koszyki!$A$14+J85,IF($C$2="PEAK7",(B85-A85+1)*koszyki!$A$14,M85*koszyki!$A$14)))) -> 24 | D85: ='Kalkulator Depozytów'!M90 -> 0 | E85: ='Kalkulator Depozytów'!N90 -> 0 | F85: ='Kalkulator Depozytów'!O90 -> 0 | G85: ='Kalkulator Depozytów'!P90 -> 0 | H85: ='Kalkulator Depozytów'!Q90 -> 0 | I85: =ROUND(AVERAGE(INDIRECT("krzywa!C"&MATCH(A85-$A$2,krzywa!A:A,0)&":C"&MATCH(B85-$A$2,krzywa!A:A,0),TRUE)),4) ->  | K85: 0 | M85: =NETWORKDAYS(A85,B85,koszyki!$M$20:$M$89) -> 0 | N85: =B85-A85+1- NETWORKDAYS(A85,B85,koszyki!$M$20:$M$89) -> 1 | P85: 0 | AF85: 00:00:00 | AG85: =AF85-1 -> -1 | AH85: -2 | AI85: -3 | AK85: =NETWORKDAYS(AF85,AF85,koszyki!$M$20:$M$89) -> 0 | AL85: =NETWORKDAYS(AG85,AG85,koszyki!$M$20:$M$89) ->  | AM85: =NETWORKDAYS(AH85,AH85,koszyki!$M$20:$M$89) ->  | AN85: =NETWORKDAYS(AI85,AI85,koszyki!$M$20:$M$89) ->  | AP85: 0 | AU85: 1
C86: =IF($C$2="GAS_BASE",(B86-A86+1)*koszyki!$A$14+J86,IF($C$2="OFFPEAK",M86*koszyki!$A$14+(N86)*24+J86,IF($C$2="BASE5",M86*koszyki!$A$14+J86,IF($C$2="PEAK7",(B86-A86+1)*koszyki!$A$14,M86*koszyki!$A$14)))) -> 24 | D86: ='Kalkulator Depozytów'!M91 -> 0 | E86: ='Kalkulator Depozytów'!N91 -> 0 | F86: ='Kalkulator Depozytów'!O91 -> 0 | G86: ='Kalkulator Depozytów'!P91 -> 0 | H86: ='Kalkulator Depozytów'!Q91 -> 0 | I86: =ROUND(AVERAGE(INDIRECT("krzywa!C"&MATCH(A86-$A$2,krzywa!A:A,0)&":C"&MATCH(B86-$A$2,krzywa!A:A,0),TRUE)),4) ->  | K86: 0 | M86: =NETWORKDAYS(A86,B86,koszyki!$M$20:$M$89) -> 0 | N86: =B86-A86+1- NETWORKDAYS(A86,B86,koszyki!$M$20:$M$89) -> 1 | P86: 0 | AF86: 00:00:00 | AG86: =AF86-1 -> -1 | AH86: -2 | AI86: -3 | AK86: =NETWORKDAYS(AF86,AF86,koszyki!$M$20:$M$89) -> 0 | AL86: =NETWORKDAYS(AG86,AG86,koszyki!$M$20:$M$89) ->  | AM86: =NETWORKDAYS(AH86,AH86,koszyki!$M$20:$M$89) ->  | AN86: =NETWORKDAYS(AI86,AI86,koszyki!$M$20:$M$89) ->  | AP86: 0 | AU86: 1
AF87: 00:00:00 | AG87: =AF87-1 -> -1 | AH87: -2 | AI87: -3 | AK87: =NETWORKDAYS(AF87,AF87,koszyki!$M$20:$M$89) -> 0 | AL87: =NETWORKDAYS(AG87,AG87,koszyki!$M$20:$M$89) ->  | AM87: =NETWORKDAYS(AH87,AH87,koszyki!$M$20:$M$89) ->  | AN87: =NETWORKDAYS(AI87,AI87,koszyki!$M$20:$M$89) ->  | AP87: 0 | AU87: 1
AF88: 00:00:00 | AG88: =AF88-1 -> -1 | AH88: -2 | AI88: -3 | AK88: =NETWORKDAYS(AF88,AF88,koszyki!$M$20:$M$89) -> 0 | AL88: =NETWORKDAYS(AG88,AG88,koszyki!$M$20:$M$89) ->  | AM88: =NETWORKDAYS(AH88,AH88,koszyki!$M$20:$M$89) ->  | AN88: =NETWORKDAYS(AI88,AI88,koszyki!$M$20:$M$89) ->  | AP88: 0 | AU88: 1

Sheet koszyki (hidden)
A1: wprowadź datę | D1: koszyki roczne | H1: koszyki kwartalne | L1: koszyki miesięczne | P1: koszyki tygodniowe | T1: koszyki dzienne | X1: koszyki sezonowe
A2: ='Kalkulator Depozytów'!F12 -> 00:00:00 | C2: =A2+2 -> 1900-01-02 | D2: =IF(F2<='raport RTT'!$F$9,DATE(YEAR(C2)+1,1,1),0) -> 1901-01-01 | E2: =IF(D2=0,0,DATE(YEAR(D2)+1,1,1)-1) -> 1901-12-31 | F2: 1 | G2: =IF(OR(AND(MONTH(A2)=12,DAY(A2)=30),AND(MONTH(A2)=12,DAY(A2)=31)),MONTH(A2),MONTH(C2)) -> 1 | H2: =IF(J2<='raport RTT'!$F$7+1,IF(OR(G2=12,G2<10),DATE(YEAR(A2),G2+G4+1,1),IF(G2=10,DATE(YEAR(A2),G2+G4+1+1,1),DATE(YEAR(A2),G2+G4,1))),0) -> 1900-04-01 | I2: =IF(H3=0,0,DATE(YEAR(H2),MONTH(H2)+3,1)-1) -> 1900-06-30 | J2: 1 | L2: =IF(N2<='raport RTT'!$F$6+1,DATE(YEAR(C2),MONTH(C2)+1,1),0) -> 1900-02-01 | M2: =IF(L3=0,0,DATE(YEAR(L2),MONTH(L2)+1,1)-1) -> 60 | N2: 1 | O2: =DAY(A2) -> 0 | P2: =IF(R2<='raport RTT'!F5,IF(OR(O3=5,O3=6,O3=7),A2+3*7-O3+1,A2+2*7-O3+1),0) -> 1900-01-16 | Q2: =IF(P3=0,0,P2+6) -> 1900-01-22 | R2: 1 | S2: =DAY(A2) -> 0 | T2: =A2+1 -> 1900-01-01 | U2: =T2 -> 1900-01-01 | W2: =IF(OR(AND(MONTH(A2)=12,DAY(A2)=30),AND(MONTH(A2)=12,DAY(A2)=31)),MONTH(A2),MONTH(C2)) -> 1 | X2: =IF(Z2<='raport RTT'!$F$8,IF(W2<=3,DATE(YEAR(A2),10,1),IF(W2>=10,DATE(YEAR(A2)+1,10,1),DATE(YEAR(A2)+1,4,1))),0) -> 1900-10-01 | Y2: =IF(X3=0,0,DATE(YEAR(X2),MONTH(X2)+6,1)-1) -> 1901-03-31 | Z2: 1
A3: =A2+1 -> 1900-01-01 | D3: =IF(F3<='raport RTT'!$F$9,DATE(YEAR(D2)+1,1,1),0) -> 1902-01-01 | E3: =IF(D3=0,0,DATE(YEAR(D3)+1,1,1)-1) -> 1902-12-31 | F3: 2 | G3: =MOD(G2,3) -> 1 | H3: =IF(J3<='raport RTT'!$F$7+1,DATE(YEAR(H2),MONTH(H2)+3,1),0) -> 1900-07-01 | I3: =IF(H4=0,0,DATE(YEAR(H3),MONTH(H3)+3,1)-1) -> 1900-09-30 | J3: 2 | L3: =IF(N3<='raport RTT'!$F$6+1,DATE(YEAR(L2),MONTH(L2)+1,1),0) -> 1900-03-01 | M3: =IF(L4=0,0,DATE(YEAR(L3),MONTH(L3)+1,1)-1) -> 1900-03-31 | N3: 2 | O3: =WEEKDAY(A2)-1 -> 6 | P3: =IF($P$12="TAK",IF(R3<'raport RTT'!$F$5,P2+7,0),IF(R3<='raport RTT'!$F$5,P2+7,0)) -> 1900-01-23 | Q3: =IF(P4=0,0,P3+6) -> 1900-01-29 | R3: 2 | T3: =IF(T2+1<$P$2,IF(T2=0,0,T2+1),0) -> 1900-01-02 | U3: =T3 -> 1900-01-02 | W3: =MOD(W2,6) -> 1 | X3: =IF(Z3<='raport RTT'!$F$8,DATE(YEAR(X2),MONTH(X2)+6,1),0) -> 1901-04-01 | Y3: =IF(X4=0,0,DATE(YEAR(X3),MONTH(X3)+6,1)-1) -> 1901-09-30 | Z3: 2
A4: Typ kontraktu | D4: =IF(F4<='raport RTT'!$F$9,DATE(YEAR(D3)+1,1,1),0) -> 00:00:00 | E4: 00:00:00 | F4: 3 | G4: =IF(AND(G2<9,G3<>0),3-G3,G3) -> 2 | H4: =IF(J4<='raport RTT'!$F$7+1,DATE(YEAR(H3),MONTH(H3)+3,1),0) -> 1900-10-01 | I4: 1900-12-31 | J4: 3 | L4: =IF(N4<='raport RTT'!$F$6+1,DATE(YEAR(L3),MONTH(L3)+1,1),0) -> 1900-04-01 | M4: 1900-04-30 | N4: 3 | O4: =7-O3 -> 1 | P4: =IF($P$12="TAK",IF(R4<'raport RTT'!$F$5,P3+7,0),IF(R4<='raport RTT'!$F$5,P3+7,0)) -> 1900-01-30 | Q4: 1900-02-05 | R4: 3 | S4: ile wziąć? | T4: =IF(T3+1<$P$2,IF(T3=0,0,T3+1),0) -> 1900-01-03 | U4: 1900-01-03 | W4: =IF(AND(W2<9,W3<>0),6-W3,W3) -> 5 | X4: =IF(Z4<='raport RTT'!$F$8,DATE(YEAR(X3),MONTH(X3)+6,1),0) -> 1901-10-01 | Y4: 00:00:00 | Z4: 3
A5: GAS_BASE | B5: 24 | D5: =IF(F5<='raport RTT'!$F$9,DATE(YEAR(D4)+1,1,1),0) -> 00:00:00 | E5: =IF(D5=0,0,DATE(YEAR(D5)+1,1,1)-1) -> 00:00:00 | F5: 4 | G5: =DATE(YEAR(H5),MONTH(H5)+3,1)-A2 -> 457 | H5: =IF(J5<='raport RTT'!$F$7+1,DATE(YEAR(H4),MONTH(H4)+3,1),0) -> 1901-01-01 | I5: 1901-03-31 | J5: 4 | L5: =IF(N5<='raport RTT'!$F$6+1,DATE(YEAR(L4),MONTH(L4)+1,1),0) -> 1900-05-01 | M5: 00:00:00 | N5: 4 | P5: =IF($P$12="TAK",IF(R5<'raport RTT'!$F$5,P4+7,0),IF(R5<='raport RTT'!$F$5,P4+7,0)) -> 1900-02-06 | Q5: 00:00:00 | R5: 4 | S5: =17-COUNTIF(T2:T17,"<>0") -> 2 | T5: =IF(T4+1<$P$2,IF(T4=0,0,T4+1),0) -> 1900-01-04 | U5: 1900-01-04 | X5: =IF(Z5<='raport RTT'!$F$8,DATE(YEAR(X4),MONTH(X4)+6,1),0) -> 00:00:00 | Y5: 00:00:00 | Z5: 4
D6: =IF(F6<='raport RTT'!$F$9,DATE(YEAR(D5)+1,1,1),0) -> 00:00:00 | E6: 00:00:00 | F6: 5 | H6: =IF(J6<='raport RTT'!$F$7+1,DATE(YEAR(H5),MONTH(H5)+3,1),0) -> 1901-04-01 | I6: =IF(H7=0,0,DATE(YEAR(H6),MONTH(H6)+3,1)-1) -> 00:00:00 | J6: 5 | L6: =IF(N6<='raport RTT'!$F$6+1,DATE(YEAR(L5),MONTH(L5)+1,1),0) -> 00:00:00 | M6: 00:00:00 | N6: 5 | O6: zapas! | P6: =IF($P$12="TAK",IF(R6<'raport RTT'!$F$5,P5+7,0),IF(R6<='raport RTT'!$F$5,P5+7,0)) -> 00:00:00 | Q6: 00:00:00 | R6: 5 | S6: =COUNTIF(T2:T17,"<>0") -> 15 | T6: 1900-01-05 | U6: 1900-01-05 | X6: =IF(Z6<='raport RTT'!$F$8,DATE(YEAR(X5),MONTH(X5)+6,1),0) -> 00:00:00 | Y6: 00:00:00 | Z6: 5
H7: =IF(J7<='raport RTT'!$F$7+1,DATE(YEAR(H6),MONTH(H6)+3,1),0) -> 00:00:00 | I7: =IF(H8=0,0,DATE(YEAR(H7),MONTH(H7)+3,1)-1) -> 00:00:00 | J7: 6 | L7: =IF(N7<='raport RTT'!$F$6+1,DATE(YEAR(L6),MONTH(L6)+1,1),0) -> 00:00:00 | M7: 00:00:00 | N7: 6 | P7: =IF($P$12="TAK",IF(R7<'raport RTT'!$F$5,P6+7,0),IF(R7<='raport RTT'!$F$5,P6+7,0)) -> 00:00:00 | Q7: 00:00:00 | R7: 6 | T7: 1900-01-06 | U7: 1900-01-06
D8: do dodania końców | H8: =IF(J8<='raport RTT'!$F$7+1,DATE(YEAR(H7),MONTH(H7)+3,1),0) -> 00:00:00 | I8: =IF(H9=0,0,DATE(YEAR(H8),MONTH(H8)+3,1)-1) -> 00:00:00 | J8: 7 | L8: =IF(N8<='raport RTT'!$F$6+1,DATE(YEAR(L7),MONTH(L7)+1,1),0) -> 00:00:00 | M8: 00:00:00 | N8: 7 | T8: 1900-01-07 | U8: 1900-01-07
D9: =DATE(YEAR(A3),MONTH(A3)+1,1)-1 -> 1900-01-31 | L9: =IF(N9<='raport RTT'!$F$6+1,DATE(YEAR(L8),MONTH(L8)+1,1),0) -> 00:00:00 | M9: 00:00:00 | N9: 8 | T9: 1900-01-08 | U9: 1900-01-08
D10: =DATE(YEAR(A3),MONTH(A3)+2,1)-1 -> 60 | L10: =IF(N10<='raport RTT'!$F$6+1,DATE(YEAR(L9),MONTH(L9)+1,1),0) -> 00:00:00 | M10: 00:00:00 | N10: 9 | P10: =IF(WEEKDAY(A2+28,2)=5,"TAK","NIE") -> NIE | T10: 1900-01-09 | U10: 1900-01-09
J11: =MONTH(A2)+1 -> 1900-01-02 | L11: =IF(N11<='raport RTT'!$F$6+1,DATE(YEAR(L10),MONTH(L10)+1,1),0) -> 00:00:00 | M11: 00:00:00 | N11: 10 | T11: 1900-01-10 | U11: 1900-01-10
D12: współczynnik | J12: =MONTH(DATE(YEAR(A2),MONTH(A2),DAY(A2)+1)) -> 1 | P12: NIE | T12: =IF(T11+1<$P$2,IF(T11=0,0,T11+1),0) -> 1900-01-11 | U12: 1900-01-11
A13: Godziny | D13: 1 | J13: =MONTH(A2+1)=MONTH(A2) -> TRUE | T13: 1900-01-12 | U13: 1900-01-12
A14: =SUMIF(koszyki!$A$5:$A$9,Kalkulator!C2,koszyki!B5:B9) -> 24 | D14: 0.5 | T14: 1900-01-13 | U14: 1900-01-13
D15: 0.275 | T15: =IF(T14+1<$P$2,IF(T14=0,0,T14+1),0) -> 1900-01-14 | U15: 1900-01-14
T16: =IF(T15+1<$P$2,IF(T15=0,0,T15+1),0) -> 1900-01-15 | U16: =T16 -> 1900-01-15
T17: 00:00:00 | U17: 00:00:00
A19: Tabelka | F19: Długość | G19: START | H19: KONIEC | I19: cos | J19: Nazwa | M19: święta | R19: Miesiąc | S19: English | T19: short | U19: Kwartał
A20: 2023-10-27 | B20: 2023-10-27 | F20: =H20-G20 -> 0 | J20: =IF(F20=0,("BASE-"&DAY(G20)&VLOOKUP(MONTH(G20),$R$20:$T$31,3,0))&"-"&VLOOKUP(YEAR(G20),$R$33:$S$41,2),IF(OR(F20=29,F20=30,F20=27,F20=28),("BASE-"&VLOOKUP(MONTH(G20),$R$20:$T$31,3,0))&"-"&VLOOKUP(YEAR(G20),$R$33:$S$41,2),IF(OR(F20=89,F20=90,F20=91),("BASE-"&VLOOKUP(MONTH(G20),$R$20:$U$31,4,0))&"-"&VLOOKUP(YEAR(G20),$R$33:$S$41,2),IF(OR(F20=6),"BASE-WK"&WEEKNUM(G20)&"-"&VLOOKUP(YEAR(G20),$R$33:$S$41,2),IF(OR(F20=1,F20=2,F20=3,F20=4,F20=5),"BASE-"&YEAR(G20)&"/"&MONTH(G20)&"/"&DAY(G20)&"-"&YEAR(H20)&"/"&MONTH(H20)&"/"&DAY(H20),"BASE-"&YEAR(G20)))))) ->  | M20: 2013-01-01 | R20: 1 | S20: January | T20: Jan | U20: Q1
A21: 2023-10-28 | B21: 2023-10-28 | F21: =H21-G21+1 -> 1 | J21: =IF(F21=0,("BASE-"&DAY(G21)&VLOOKUP(MONTH(G21),$R$20:$T$31,3,0))&"-"&VLOOKUP(YEAR(G21),$R$33:$S$41,2),IF(OR(F21=29,F21=30,F21=27,F21=28),("BASE-"&VLOOKUP(MONTH(G21),$R$20:$T$31,3,0))&"-"&VLOOKUP(YEAR(G21),$R$33:$S$41,2),IF(OR(F21=89,F21=90,F21=91),("BASE-"&VLOOKUP(MONTH(G21),$R$20:$U$31,4,0))&"-"&VLOOKUP(YEAR(G21),$R$33:$S$41,2),IF(OR(F21=6),"BASE-WK"&WEEKNUM(G21)&"-"&VLOOKUP(YEAR(G21),$R$33:$S$41,2),IF(OR(F21=1,F21=2,F21=3,F21=4,F21=5),"BASE-"&YEAR(G21)&"/"&MONTH(G21)&"/"&DAY(G21)&"-"&YEAR(H21)&"/"&MONTH(H21)&"/"&DAY(H21),"BASE-"&YEAR(G21)))))) -> BASE-1900/1/0-1900/1/0 | M21: 2013-04-01 | R21: 2 | S21: February | T21: Feb | U21: Q2
A22: 2023-10-29 | B22: 2023-10-29 | F22: 1 | J22: BASE-1900/1/0-1900/1/0 | M22: 2013-05-01 | R22: 3 | S22: March | T22: Mar | U22: Q3
A23: 2023-10-30 | B23: 2023-10-30 | F23: 1 | J23: BASE-1900/1/0-1900/1/0 | M23: 2013-05-03 | R23: 4 | S23: April | T23: Apr | U23: Q2
A24: 2023-10-31 | B24: 2023-10-31 | F24: 1 | J24: BASE-1900/1/0-1900/1/0 | M24: 2013-05-30 | R24: 5 | S24: May | T24: May | U24: Q3
A25: 2023-11-01 | B25: 2023-11-01 | F25: 1 | J25: BASE-1900/1/0-1900/1/0 | M25: 2013-08-15 | R25: 6 | S25: June | T25: Jun | U25: Q4
A26: 2023-11-02 | B26: 2023-11-02 | F26: 1 | J26: BASE-1900/1/0-1900/1/0 | M26: 2013-11-01 | R26: 7 | S26: July | T26: Jul | U26: Q3
A27: 2023-11-03 | B27: 2023-11-03 | F27: 1 | J27: BASE-1900/1/0-1900/1/0 | M27: 2013-11-11 | R27: 8 | S27: August | T27: Aug | U27: Q4
A28: 2023-11-04 | B28: 2023-11-04 | F28: 1 | J28: BASE-1900/1/0-1900/1/0 | M28: 2013-12-25 | R28: 9 | S28: September | T28: Sep | U28: Q5
A29: 2023-11-05 | B29: 2023-11-05 | F29: 1 | J29: BASE-1900/1/0-1900/1/0 | M29: 2013-12-26 | R29: 10 | S29: October | T29: Oct | U29: Q4
A30: 00:00:00 | B30: 00:00:00 | F30: 1 | J30: BASE-1900/1/0-1900/1/0 | M30: 2014-01-01 | R30: 11 | S30: November | T30: Nov | U30: Q5
A31: 00:00:00 | B31: 00:00:00 | F31: 1 | J31: BASE-1900/1/0-1900/1/0 | M31: 2014-01-06 | R31: 12 | S31: December | T31: Dec | U31: Q6
A32: 00:00:00 | B32: 00:00:00 | F32: 1 | J32: BASE-1900/1/0-1900/1/0 | M32: 2014-04-21
A33: 00:00:00 | B33: 00:00:00 | F33: 1 | J33: BASE-1900/1/0-1900/1/0 | M33: 2014-05-01 | R33: Rok | S33: Short
A34: 00:00:00 | B34: 00:00:00 | F34: 1 | J34: BASE-1900/1/0-1900/1/0 | M34: 2014-06-19 | R34: 2013 | S34: =RIGHT(R34,2) -> 13
A35: 00:00:00 | B35: 00:00:00 | F35: 1 | J35: BASE-1900/1/0-1900/1/0 | M35: 2014-08-15 | R35: 2014 | S35: =RIGHT(R35,2) -> 14
A36: 2023-11-06 | B36: 2023-11-12 | F36: 1 | J36: BASE-1900/1/0-1900/1/0 | M36: 2014-11-11 | R36: 2015 | S36: 15
A37: 2023-11-13 | B37: 2023-11-19 | F37: 1 | J37: BASE-1900/1/0-1900/1/0 | M37: 2014-12-25 | R37: 2016 | S37: 16
A38: 2023-11-20 | B38: 2023-11-26 | F38: 1 | J38: BASE-1900/1/0-1900/1/0 | M38: 2014-12-26 | R38: 2017 | S38: 17
A39: 2023-11-27 | B39: 00:00:00 | F39: 1 | J39: BASE-1900/1/0-1900/1/0 | M39: 2015-01-01 | R39: 2018 | S39: 18
A40: 00:00:00 | B40: 00:00:00 | F40: 1 | J40: BASE-1900/1/0-1900/1/0 | M40: 2015-01-06 | R40: 2019 | S40: 19
A41: 00:00:00 | B41: 00:00:00 | F41: 1 | J41: BASE-1900/1/0-1900/1/0 | M41: 2015-04-06 | R41: 2020 | S41: 20
A42: 2023-11-01 | B42: 2023-11-30 | F42: 1 | J42: BASE-1900/1/0-1900/1/0 | M42: 2015-05-01 | T42: Długość
A43: 2023-12-01 | B43: 2023-12-31 | F43: 1 | J43: BASE-1900/1/0-1900/1/0 | M43: 2015-06-04 | R43: liczba miesięcy | T43: 30
A44: 2024-01-01 | B44: 2024-01-31 | F44: 1 | J44: BASE-1900/1/0-1900/1/0 | M44: 2015-11-11 | R44: =-(8-COUNTIFS(F20:F57,">26",F20:F57,"<32")) -> -8 | T44: 29
A45: 2024-02-01 | B45: 00:00:00 | F45: 1 | J45: BASE-1900/1/0-1900/1/0 | M45: 2015-12-25 | T45: 28
A46: 00:00:00 | B46: 00:00:00 | F46: 1 | J46: BASE-1900/1/0-1900/1/0 | M46: 2016-01-01 | R46: =DMAX($F$19:$G$57,"START",$T$42:$T$46) -> 00:00:00 | T46: 27
A47: 00:00:00 | B47: 00:00:00 | F47: 1 | J47: BASE-1900/1/0-1900/1/0 | M47: 2016-01-06
A48: 00:00:00 | B48: 00:00:00 | F48: 1 | J48: BASE-1900/1/0-1900/1/0 | M48: 2016-03-28 | R48: =IF(R44=1,MID(VLOOKUP($R$46,$G$19:$J$57,4,0),1,5)&YEAR(R46)&"/"&MONTH(R46)&"/"&DAY(R46)&"-"&YEAR(H43)&"/"&MONTH(H43)&"/"&DAY(H43)) -> FALSE
A49: 00:00:00 | B49: 00:00:00 | F49: 1 | J49: BASE-1900/1/0-1900/1/0 | M49: 2016-05-03
A50: 00:00:00 | B50: 00:00:00 | F50: 1 | J50: BASE-1900/1/0-1900/1/0 | M50: 2016-05-26
A51: 00:00:00 | B51: 00:00:00 | F51: 1 | J51: BASE-1900/1/0-1900/1/0 | M51: 2016-08-15
A52: 2024-01-01 | B52: 2024-03-31 | F52: 1 | J52: BASE-1900/1/0-1900/1/0 | M52: 2016-11-01
A53: 2024-04-01 | B53: 2024-06-30 | F53: 1 | J53: BASE-1900/1/0-1900/1/0 | M53: 2016-11-11
A54: 2024-07-01 | B54: 2024-09-30 | F54: =H54-G54 -> 0 | M54: 2016-12-26
A55: 2024-10-01 | B55: 2024-12-31 | F55: 0 | M55: 2017-01-06
A56: 2025-01-01 | B56: 00:00:00 | F56: 0 | M56: 2017-04-17
A57: 00:00:00 | B57: 00:00:00 | F57: 0 | M57: 2017-05-01
A58: 00:00:00 | B58: 00:00:00 | F58: 0 | M58: 2017-05-03
A59: 2024-10-01 | B59: 2025-03-31 | F59: 0 | M59: 2017-06-15
A60: 2025-04-01 | B60: 2025-09-30 | F60: 0 | M60: 2017-08-15
A61: 2025-10-01 | B61: 00:00:00 | F61: 0 | M61: 2017-11-01
A62: 00:00:00 | B62: 00:00:00 | F62: 0 | M62: 2017-12-25
A63: 00:00:00 | B63: 00:00:00 | M63: 2017-12-26
A64: 2024-01-01 | B64: 2024-12-31 | M64: 2018-01-01
A65: 2025-01-01 | B65: 2025-12-31 | M65: 2018-04-02
A66: 00:00:00 | B66: 00:00:00 | M66: 2018-05-01
A67: 00:00:00 | B67: 00:00:00 | M67: 2018-05-03
A68: 00:00:00 | B68: 00:00:00 | M68: 2018-05-31
B69: 2023-10-31 | M69: 2018-08-15
B70: 2023-11-30 | M70: 2018-11-01
M71: 2018-12-25
M72: 2018-12-26
M73: 2019-01-01
M74: 2019-04-22
M75: 2019-05-01
M76: 2019-05-03
M77: 2019-06-20
M78: 2019-08-15
M79: 2019-11-01
M80: 2019-11-11
M81: 2019-12-25
M82: 2019-12-26
M83: 2020-01-01
M84: 2020-01-06
M85: 2020-04-13
M86: 2020-05-01
M87: 2020-06-11
M88: 2020-11-11
M89: 2020-12-25

Sheet raport RTT (hidden)
B5: GAS_BASE_W-41-21 | C5: =IFERROR(MID(B5,FIND("_",B5)+6,1),"") -> W | E5: W | F5: =COUNTIF(C:C,E5) -> 4 | I5: tutaj usuwając/dodając instrumenty wpływamy na ilość generujących się koszyków
B6: GAS_BASE_W-42-21 | C6: W | E6: M | F6: =COUNTIF(C:C,E6) -> 3
B7: GAS_BASE_W-43-21 | C7: W | E7: Q | F7: 4
B8: GAS_BASE_W-44-21 | C8: W | E8: S | F8: 3
B9: GAS_BASE_M-11-21 | C9: M | E9: Y | F9: =COUNTIF(C:C,E9) -> 2
B10: GAS_BASE_M-12-21 | C10: M
B11: GAS_BASE_M-01-22 | C11: M
B12: GAS_BASE_Q-1-22 | C12: Q
B13: GAS_BASE_Q-2-22 | C13: Q
B14: GAS_BASE_Q-3-22 | C14: Q
B15: GAS_BASE_Q-4-22 | C15: Q
B16: GAS_BASE_S-S-22 | C16: S
B17: GAS_BASE_S-W-22 | C17: S
B18: GAS_BASE_S-S-23 | C18: S
B19: GAS_BASE_Y-22 | C19: Y
B20: GAS_BASE_Y-23 | C20: Y

Sheet Arkusz2 (hidden)
A1: 2023-10-27 | B1: 2023-10-27 | F1: liczba koszyków
A2: 2023-10-28 | B2: 2023-10-28 | F2: =COUNTA(A:A) -> 23
A3: 2023-10-29 | B3: 2023-10-29
A4: 2023-10-30 | B4: 2023-10-30
A5: 2023-10-31 | B5: 2023-10-31
A6: 2023-11-01 | B6: 2023-11-01
A7: 2023-11-02 | B7: 2023-11-02
A8: 2023-11-03 | B8: 2023-11-03
A9: 2023-11-04 | B9: 2023-11-04
A10: 2023-11-05 | B10: 2023-11-05
A11: 2023-11-06 | B11: 2023-11-12
A12: 2023-11-13 | B12: 2023-11-19
A13: 2023-11-20 | B13: 2023-11-26
A14: 2023-11-27 | B14: 2023-11-30
A15: 2023-12-01 | B15: 2023-12-31
A16: 2024-01-01 | B16: 2024-01-31
A17: 2024-02-01 | B17: 2024-03-31
A18: 2024-04-01 | B18: 2024-06-30
A19: 2024-07-01 | B19: 2024-09-30
A20: 2024-10-01 | B20: 2024-12-31
A21: 2025-01-01 | B21: 2025-03-31
A22: 2025-04-01 | B22: 2025-09-30
A23: 2025-10-01 | B23: 2025-12-31

Sheet krzywa (hidden)
B1: PEAK | C1: BASE
A2: days to delivery | B2: initial margin | C2: initial margin
A3: 1 | C3: 0.2178
A4: 2 | C4: 0.217
A5: 3 | C5: 0.2161
A6: 4 | C6: 0.2153
A7: 5 | C7: 0.2144
A8: 6 | C8: 0.2136
A9: 7 | C9: 0.2127
A10: 8 | C10: 0.2119
A11: 9 | C11: 0.211
A12: 10 | C12: 0.2102
A13: 11 | C13: 0.2093
A14: 12 | C14: 0.2085
A15: 13 | C15: 0.2077
A16: 14 | C16: 0.2069
A17: 15 | C17: 0.2062
A18: 16 | C18: 0.2054
A19: 17 | C19: 0.2046
A20: 18 | C20: 0.2038
A21: 19 | C21: 0.2034
A22: 20 | C22: 0.203
A23: 21 | C23: 0.2025
A24: 22 | C24: 0.2021
A25: 23 | C25: 0.2017
A26: 24 | C26: 0.2013
A27: 25 | C27: 0.2009
A28: 26 | C28: 0.2004
A29: 27 | C29: 0.2
A30: 28 | C30: 0.1996
A31: 29 | C31: 0.1992
A32: 30 | C32: 0.1987
A33: 31 | C33: 0.1983
A34: 32 | C34: 0.1979
A35: 33 | C35: 0.1975
A36: 34 | C36: 0.1971
A37: 35 | C37: 0.1966
A38: 36 | C38: 0.1962
A39: 37 | C39: 0.1958
A40: 38 | C40: 0.1954
A41: 39 | C41: 0.195
A42: 40 | C42: 0.1945
A43: 41 | C43: 0.1941
A44: 42 | C44: 0.1937
A45: 43 | C45: 0.1933
A46: 44 | C46: 0.1928
A47: 45 | C47: 0.1924
A48: 46 | C48: 0.192
A49: 47 | C49: 0.1916
A50: 48 | C50: 0.1912
A51: 49 | C51: 0.1908
A52: 50 | C52: 0.1904
A53: 51 | C53: 0.1901
A54: 52 | C54: 0.1897
A55: 53 | C55: 0.1893
A56: 54 | C56: 0.1889
A57: 55 | C57: 0.1885
A58: 56 | C58: 0.1881
A59: 57 | C59: 0.1877
A60: 58 | C60: 0.1873
A61: 59 | C61: 0.1869
A62: 60 | C62: 0.1865
A63: 61 | C63: 0.1862
A64: 62 | C64: 0.1858
A65: 63 | C65: 0.1854
A66: 64 | C66: 0.185
A67: 65 | C67: 0.1846
A68: 66 | C68: 0.1842
A69: 67 | C69: 0.1838
A70: 68 | C70: 0.1834
A71: 69 | C71: 0.183
A72: 70 | C72: 0.1826
A73: 71 | C73: 0.1823
A74: 72 | C74: 0.1819
A75: 73 | C75: 0.1815
A76: 74 | C76: 0.1811
A77: 75 | C77: 0.1807
A78: 76 | C78: 0.1803
A79: 77 | C79: 0.1798
A80: 78 | C80: 0.1792
A81: 79 | C81: 0.1787
A82: 80 | C82: 0.1781
A83: 81 | C83: 0.1776
A84: 82 | C84: 0.177
A85: 83 | C85: 0.1765
A86: 84 | C86: 0.1759
A87: 85 | C87: 0.1754
A88: 86 | C88: 0.1748
A89: 87 | C89: 0.1743
A90: 88 | C90: 0.1738
A91: 89 | C91: 0.1732
A92: 90 | C92: 0.1727
A93: 91 | C93: 0.1721
A94: 92 | C94: 0.1716
A95: 93 | C95: 0.171
A96: 94 | C96: 0.1705
A97: 95 | C97: 0.1699
A98: 96 | C98: 0.1694
A99: 97 | C99: 0.1689
A100: 98 | C100: 0.1683
A101: 99 | C101: 0.1678
A102: 100 | C102: 0.1672
A103: 101 | C103: 0.1667
A104: 102 | C104: 0.1661
A105: 103 | C105: 0.1656
A106: 104 | C106: 0.165
A107: 105 | C107: 0.1645
A108: 106 | C108: 0.1639
A109: 107 | C109: 0.1634
A110: 108 | C110: 0.1638
A111: 109 | C111: 0.1642
A112: 110 | C112: 0.1646
A113: 111 | C113: 0.1651
A114: 112 | C114: 0.1655
A115: 113 | C115: 0.1659
A116: 114 | C116: 0.1663
A117: 115 | C117: 0.1667
A118: 116 | C118: 0.1671
A119: 117 | C119: 0.1675
A120: 118 | C120: 0.1679
A121: 119 | C121: 0.1684
A122: 120 | C122: 0.1688
A123: 121 | C123: 0.1692
A124: 122 | C124: 0.1696
A125: 123 | C125: 0.17
A126: 124 | C126: 0.1704
A127: 125 | C127: 0.1708
A128: 126 | C128: 0.1713
A129: 127 | C129: 0.1717
A130: 128 | C130: 0.1721
A131: 129 | C131: 0.1725
A132: 130 | C132: 0.1729
A133: 131 | C133: 0.1733
A134: 132 | C134: 0.1737
A135: 133 | C135: 0.1741
A136: 134 | C136: 0.1746
A137: 135 | C137: 0.175
A138: 136 | C138: 0.1754
A139: 137 | C139: 0.1758
A140: 138 | C140: 0.1757
A141: 139 | C141: 0.1755
A142: 140 | C142: 0.1754
A143: 141 | C143: 0.1752
A144: 142 | C144: 0.1751
A145: 143 | C145: 0.175
A146: 144 | C146: 0.1748
A147: 145 | C147: 0.1747
A148: 146 | C148: 0.1745
A149: 147 | C149: 0.1744
A150: 148 | C150: 0.1743
A151: 149 | C151: 0.1741
A152: 150 | C152: 0.174
A153: 151 | C153: 0.1739
A154: 152 | C154: 0.1737
A155: 153 | C155: 0.1736
A156: 154 | C156: 0.1734
A157: 155 | C157: 0.1733
A158: 156 | C158: 0.1732
A159: 157 | C159: 0.173
A160: 158 | C160: 0.1729
A161: 159 | C161: 0.1727
A162: 160 | C162: 0.1726
A163: 161 | C163: 0.1725
A164: 162 | C164: 0.1723
A165: 163 | C165: 0.1722
A166: 164 | C166: 0.172
A167: 165 | C167: 0.1719
A168: 166 | C168: 0.1718
A169: 167 | C169: 0.1716
A170: 168 | C170: 0.1715
A171: 169 | C171: 0.1713
A172: 170 | C172: 0.1712
A173: 171 | C173: 0.1711
A174: 172 | C174: 0.1709
A175: 173 | C175: 0.1708
A176: 174 | C176: 0.1707
A177: 175 | C177: 0.1705
A178: 176 | C178: 0.1704
A179: 177 | C179: 0.1702
A180: 178 | C180: 0.1701
A181: 179 | C181: 0.17
A182: 180 | C182: 0.1698
A183: 181 | C183: 0.1697
A184: 182 | C184: 0.1695
A185: 183 | C185: 0.1694
A186: 184 | C186: 0.1693
A187: 185 | C187: 0.1691
A188: 186 | C188: 0.169
A189: 187 | C189: 0.1688
A190: 188 | C190: 0.1687
A191: 189 | C191: 0.1686
A192: 190 | C192: 0.1684
A193: 191 | C193: 0.1683
A194: 192 | C194: 0.1681
A195: 193 | C195: 0.168
A196: 194 | C196: 0.1679
A197: 195 | C197: 0.1677
A198: 196 | C198: 0.1676
A199: 197 | C199: 0.1675
A200: 198 | C200: 0.1673
... 2008 more rows

Sheet Instrukcja
B2: Instrukcja obsługi kalkulatora depozytów dla portfeli dla Rynku Terminowego Produktów Gazowych
B4: Kalkulator depozytów służy do wyliczania depozytu wstępnego i uzupełniającego na Rynku Terminowym Produktów Gazowych dla dowolnych portfeli kontraktów.
B6: Przed rozpoczęciem pracy z kalkulatorem należy upewnić się, że obsługa makr w MS Excel jest włączona.
B8: W celu obliczenia depozytów należy:
B9: 1. Podać datę naliczenia depozytów zabezpieczających (w formacie rrrr-mm-dd).
B10: 2. Stworzyć zestawienie koszyków dostaw na rynku RTPG poprzez wciśnięcie przycisku "Stwórz koszyki dostaw".
B11: 3. Uzupełnić (ręcznie lub przy wykorzystaniu danych z PCCP) informacje dotyczące wolumenu kupna, wolumenu sprzedaży, średnio ważonego kursu kupna i średnio ważonego kursu sprzedaży w arkuszu Transakcje_PCCP:
B13: 3.1. Uzupełnienie informacji przy użyciu aplikacji PCCP:
B14: a) Do arkusza Transkacje_PCCP należy wkleić pobrany z aplikacji PCCP raport dotyczący zawartych transakcji, dla których mają zostać oszacowane depozyty wstępne i uzupełniające (Trade History) w postaci rozdzielonej na kolumny. Następnie należy uruchomić procedurę wczytywania pliku przy użyciu przycisku "Wczytaj transakcje z PCCP".
B17: b) Następnie należy wcisnąć przycisk "Uzupełnij tabelę transakcjami z PCCP", co spowoduje uzupełnienie informacji dla aktualnie utworzonego zestawienia koszyków dostaw.
B19: 4. Podać kursy rozliczeniowe dla wszystkich utworzonych koszyków dostaw. Krok ten jest niezbędny w celu poprawnego naliczenia depozytu wstępnego. Zasady wyznaczania kursów dla okresów dostawy opisane są w "Szczegółowych zasadach rozliczeń i rozrachunku Giełdowej Izby Rozrachunkowej", dostępnych na stronie internetowej Izby. Wartości wyznaczonych przez Izbę kursów rozliczeniowych można znaleźć w aplikacji PCCP w raporcie Depozyty wstępne (Initial Margin - Position Netting).
B24: 5. Wcisnąć przycisk "Oblicz i zapisz depozyty".
B26: Zgodnie z regulacjami IRGiT S.A., depozyt uzupełniający o wartości dodatniej jest kompensowany do wartości 0.

Sheet Manual
B2: Manual for portfolio margin calculator for RTPG
B4: The margin calculator is designed for calculation of the initial margin value and the variation margin value on the Commodity Exchange Markets for any contract portfolio.
B6: Before starting work with margin calculator you should make sure that MS Excel macro handling has been enabled.
B8: In order to calculate the margins you should:
B9: 1. Enter the date of reckoning the collateral margins (in yyyy-mm-dd format).
B10: 2. Create statement of the delivery baskets for the Commodity Exchange Markets through pressing "Create delivery baskets" button.
B11: 3. Complete the information regarding the purchase volume, the sale volume, the weighted average purchase price and the weighted average sale price in the sheet "X-Stream Transactions" (manually or using the data from X-Stream Clearing Workstation):
B13: 3.1. Completing the information using PCCP application software:
B14: a) Paste the Trade History report (downloaded from the PCCP, regarding the transactions for which you would like to estimate the initial margins and the variation margins) into "PCCP Transactions" sheet as separated columns. Then start the file reading in procedure by pressing "Load transactions from PCCP" button.
B17: b) Press "Fill in the table with transactions from PCCP", what will result in completing the information for the delivery baskets statement which has been currently established.
B19: 4. Enter the clearing prices for all of established delivery baskets. It is a necessary step to calculate initial margin properly. The rules for determination of the prices for delivery periods have been described in "Detailed Clearing and Settlement Rules of the Exchange Clearing House", available on the IRGiT's website. The value of IRGiT's clearing prices can be found in Initial Margin - Position Netting report (downloaded from PCCP).
B23: 5. Press "Calculate and save margins" button.
B26: Pursuant to IRGiT's regulations the positive value of variation margin is compensated to "zero" (0) value.

Sheet Kalkulator Depozytów
AA2: 1
B3: Kalkulator depozytów na RTTG | K3: GAS_BASE | L3: Depozyt ogółem | Z3: GAS_BASE | AA3: 0.5
J4: Dep. Wstępny | K4: 0 | L4: 0 | AA4: 0.275
J5: Dep. Uzupełniający | K5: 0 | N5: -
F10: GAS_BASE | M10: 390 | N10: 30670.05 | O10: 360 | P10: 28285.05
C12: Podaj datę (rrrr-mm-dd): | J12: Typ kontraktu | K12: Początek okresu | L12: Koniec okresu | M12: Wolumen kupna | N12: ŚWKK | O12: Wolumen sprzedaży | P12: ŚWKS | Q12: Kurs Rozliczeniowy | S12: Dep. Wstępny | T12: Dep. Uzupełniający
F13: 1 | X13: 1
X14: 2
X15: 3
X16: 4
X17: 5
X18: 6
X19: 7
X20: 8
X21: 9
X22: 10
D23: Aktualnie wczytany plik dla: | X23: 11
X24: 12
X25: 13
X26: 14
X27: 15
X28: 16
X29: 17
X30: 18
X31: 19
X32: 20
X33: 21
X34: 22
F35: 1 | X35: 23
X36: 24
X37: 25
X38: 26
X39: 27
X40: 28
X41: 29
X42: 30
X43: 31
X44: 32
X45: 33
X46: 34
X47: 35
X48: 36
X49: 37
X50: 38
X51: 39
X52: 40
X53: 41
X54: 42
X55: 43
X56: 44
X57: 45
X58: 46
X59: 47
X60: 48
X61: 49
X62: 50

Sheet Transakcje_PCCP

Sheet Tabela (hidden)
AP5: 42 kupno | AQ5: 43 sprzedaz | AR5: 44 start | AT5: 46 roznica | AV5: 48 kurs kupna | AW5: 49 kurs sprzedazy
AM8: cos1 | AN8: cos2 | AO8: cos3 | AP8: cos4 | AQ8: cos5 | AR8: cos6 | AS8: cos7 | AT8: cos8 | AU8: cos9 | AV8: cos10 | AW8: cos11 | AX8: cos12
AX9: 1 | BA9: 20131 | BB9: 1 | BC9: 2013 | BD9: 2012-12-31 | BE9: 2013-01-06
AX10: 2 | BA10: 20132 | BB10: 2 | BC10: 2013 | BD10: 2013-01-07 | BE10: 2013-01-13
AX11: 3 | BA11: 20133 | BB11: 3 | BC11: 2013 | BD11: 2013-01-14 | BE11: 2013-01-20
AX12: 4 | BA12: 20134 | BB12: 4 | BC12: 2013 | BD12: 2013-01-21 | BE12: 2013-01-27
AX13: 5 | BA13: 20135 | BB13: 5 | BC13: 2013 | BD13: 2013-01-28 | BE13: 2013-02-03
AX14: 6 | BA14: 20136 | BB14: 6 | BC14: 2013 | BD14: 2013-02-04 | BE14: 2013-02-10
AX15: 7 | BA15: 20137 | BB15: 7 | BC15: 2013 | BD15: 2013-02-11 | BE15: 2013-02-17
AX16: 8 | BA16: 20138 | BB16: 8 | BC16: 2013 | BD16: 2013-02-18 | BE16: 2013-02-24
AX17: 9 | BA17: 20139 | BB17: 9 | BC17: 2013 | BD17: 2013-02-25 | BE17: 2013-03-03
AX18: 10 | BA18: 201310 | BB18: 10 | BC18: 2013 | BD18: 2013-03-04 | BE18: 2013-03-10
AX19: 11 | BA19: 201311 | BB19: 11 | BC19: 2013 | BD19: 2013-03-11 | BE19: 2013-03-17
AX20: 12 | BA20: 201312 | BB20: 12 | BC20: 2013 | BD20: 2013-03-18 | BE20: 2013-03-24
AX21: 13 | BA21: 201313 | BB21: 13 | BC21: 2013 | BD21: 2013-03-25 | BE21: 2013-03-31
AX22: 14 | BA22: 201314 | BB22: 14 | BC22: 2013 | BD22: 2013-04-01 | BE22: 2013-04-07
AX23: 15 | BA23: 201315 | BB23: 15 | BC23: 2013 | BD23: 2013-04-08 | BE23: 2013-04-14
AX24: 16 | BA24: 201316 | BB24: 16 | BC24: 2013 | BD24: 2013-04-15 | BE24: 2013-04-21
AX25: 17 | BA25: 201317 | BB25: 17 | BC25: 2013 | BD25: 2013-04-22 | BE25: 2013-04-28
AX26: 18 | BA26: 201318 | BB26: 18 | BC26: 2013 | BD26: 2013-04-29 | BE26: 2013-05-05
AX27: 19 | BA27: 201319 | BB27: 19 | BC27: 2013 | BD27: 2013-05-06 | BE27: 2013-05-12
AX28: 20 | BA28: 201320 | BB28: 20 | BC28: 2013 | BD28: 2013-05-13 | BE28: 2013-05-19
AX29: 21 | BA29: 201321 | BB29: 21 | BC29: 2013 | BD29: 2013-05-20 | BE29: 2013-05-26
AX30: 22 | BA30: 201322 | BB30: 22 | BC30: 2013 | BD30: 2013-05-27 | BE30: 2013-06-02
AX31: 23 | BA31: 201323 | BB31: 23 | BC31: 2013 | BD31: 2013-06-03 | BE31: 2013-06-09
AX32: 24 | BA32: 201324 | BB32: 24 | BC32: 2013 | BD32: 2013-06-10 | BE32: 2013-06-16
AX33: 25 | BA33: 201325 | BB33: 25 | BC33: 2013 | BD33: 2013-06-17 | BE33: 2013-06-23
AX34: 26 | BA34: 201326 | BB34: 26 | BC34: 2013 | BD34: 2013-06-24 | BE34: 2013-06-30
AX35: 27 | BA35: 201327 | BB35: 27 | BC35: 2013 | BD35: 2013-07-01 | BE35: 2013-07-07
AX36: 28 | BA36: 201328 | BB36: 28 | BC36: 2013 | BD36: 2013-07-08 | BE36: 2013-07-14
AX37: 29 | BA37: 201329 | BB37: 29 | BC37: 2013 | BD37: 2013-07-15 | BE37: 2013-07-21
AX38: 30 | BA38: 201330 | BB38: 30 | BC38: 2013 | BD38: 2013-07-22 | BE38: 2013-07-28
AX39: 31 | BA39: 201331 | BB39: 31 | BC39: 2013 | BD39: 2013-07-29 | BE39: 2013-08-04
AX40: 32 | BA40: 201332 | BB40: 32 | BC40: 2013 | BD40: 2013-08-05 | BE40: 2013-08-11
AX41: 33 | BA41: 201333 | BB41: 33 | BC41: 2013 | BD41: 2013-08-12 | BE41: 2013-08-18
AX42: 34 | BA42: 201334 | BB42: 34 | BC42: 2013 | BD42: 2013-08-19 | BE42: 2013-08-25
AX43: 35 | BA43: 201335 | BB43: 35 | BC43: 2013 | BD43: 2013-08-26 | BE43: 2013-09-01
AX44: 36 | BA44: 201336 | BB44: 36 | BC44: 2013 | BD44: 2013-09-02 | BE44: 2013-09-08
AX45: 37 | BA45: 201337 | BB45: 37 | BC45: 2013 | BD45: 2013-09-09 | BE45: 2013-09-15
AX46: 38 | BA46: 201338 | BB46: 38 | BC46: 2013 | BD46: 2013-09-16 | BE46: 2013-09-22
AX47: 39 | BA47: 201339 | BB47: 39 | BC47: 2013 | BD47: 2013-09-23 | BE47: 2013-09-29
AX48: 40 | BA48: 201340 | BB48: 40 | BC48: 2013 | BD48: 2013-09-30 | BE48: 2013-10-06
AX49: 41 | BA49: 201341 | BB49: 41 | BC49: 2013 | BD49: 2013-10-07 | BE49: 2013-10-13
AX50: 42 | BA50: 201342 | BB50: 42 | BC50: 2013 | BD50: 2013-10-14 | BE50: 2013-10-20
AX51: 43 | BA51: 201343 | BB51: 43 | BC51: 2013 | BD51: 2013-10-21 | BE51: 2013-10-27
AX52: 44 | BA52: 201344 | BB52: 44 | BC52: 2013 | BD52: 2013-10-28 | BE52: 2013-11-03
AX53: 45 | BA53: 201345 | BB53: 45 | BC53: 2013 | BD53: 2013-11-04 | BE53: 2013-11-10
AX54: 46 | BA54: 201346 | BB54: 46 | BC54: 2013 | BD54: 2013-11-11 | BE54: 2013-11-17
AX55: 47 | BA55: 201347 | BB55: 47 | BC55: 2013 | BD55: 2013-11-18 | BE55: 2013-11-24
AX56: 48 | BA56: 201348 | BB56: 48 | BC56: 2013 | BD56: 2013-11-25 | BE56: 2013-12-01
AX57: 49 | BA57: 201349 | BB57: 49 | BC57: 2013 | BD57: 2013-12-02 | BE57: 2013-12-08
AX58: 50 | BA58: 201350 | BB58: 50 | BC58: 2013 | BD58: 2013-12-09 | BE58: 2013-12-15
AX59: 51 | BA59: 201351 | BB59: 51 | BC59: 2013 | BD59: 2013-12-16 | BE59: 2013-12-22
AX60: 52 | BA60: 201352 | BB60: 52 | BC60: 2013 | BD60: 2013-12-23 | BE60: 2013-12-29
AX61: 53 | BA61: 20141 | BB61: 1 | BC61: 2014 | BD61: 2013-12-30 | BE61: 2014-01-05
AX62: 54 | BA62: 20142 | BB62: 2 | BC62: 2014 | BD62: 2014-01-06 | BE62: 2014-01-12
AX63: 55 | BA63: 20143 | BB63: 3 | BC63: 2014 | BD63: 2014-01-13 | BE63: 2014-01-19
AX64: 56 | BA64: 20144 | BB64: 4 | BC64: 2014 | BD64: 2014-01-20 | BE64: 2014-01-26
AX65: 57 | BA65: 20145 | BB65: 5 | BC65: 2014 | BD65: 2014-01-27 | BE65: 2014-02-02
AX66: 58 | BA66: 20146 | BB66: 6 | BC66: 2014 | BD66: 2014-02-03 | BE66: 2014-02-09
AX67: 59 | BA67: 20147 | BB67: 7 | BC67: 2014 | BD67: 2014-02-10 | BE67: 2014-02-16
AX68: 60 | BA68: 20148 | BB68: 8 | BC68: 2014 | BD68: 2014-02-17 | BE68: 2014-02-23
AX69: 61 | BA69: 20149 | BB69: 9 | BC69: 2014 | BD69: 2014-02-24 | BE69: 2014-03-02
AX70: 62 | BA70: 201410 | BB70: 10 | BC70: 2014 | BD70: 2014-03-03 | BE70: 2014-03-09
AX71: 63 | BA71: 201411 | BB71: 11 | BC71: 2014 | BD71: 2014-03-10 | BE71: 2014-03-16
AX72: 64 | BA72: 201412 | BB72: 12 | BC72: 2014 | BD72: 2014-03-17 | BE72: 2014-03-23
AX73: 65 | BA73: 201413 | BB73: 13 | BC73: 2014 | BD73: 2014-03-24 | BE73: 2014-03-30
AX74: 66 | BA74: 201414 | BB74: 14 | BC74: 2014 | BD74: 2014-03-31 | BE74: 2014-04-06
AX75: 67 | BA75: 201415 | BB75: 15 | BC75: 2014 | BD75: 2014-04-07 | BE75: 2014-04-13
AX76: 68 | BA76: 201416 | BB76: 16 | BC76: 2014 | BD76: 2014-04-14 | BE76: 2014-04-20
AX77: 69 | BA77: 201417 | BB77: 17 | BC77: 2014 | BD77: 2014-04-21 | BE77: 2014-04-27
AX78: 70 | BA78: 201418 | BB78: 18 | BC78: 2014 | BD78: 2014-04-28 | BE78: 2014-05-04
AX79: 71 | BA79: 201419 | BB79: 19 | BC79: 2014 | BD79: 2014-05-05 | BE79: 2014-05-11
AX80: 72 | BA80: 201420 | BB80: 20 | BC80: 2014 | BD80: 2014-05-12 | BE80: 2014-05-18
AX81: 73 | BA81: 201421 | BB81: 21 | BC81: 2014 | BD81: 2014-05-19 | BE81: 2014-05-25
AX82: 74 | BA82: 201422 | BB82: 22 | BC82: 2014 | BD82: 2014-05-26 | BE82: 2014-06-01
AX83: 75 | BA83: 201423 | BB83: 23 | BC83: 2014 | BD83: 2014-06-02 | BE83: 2014-06-08
AX84: 76 | BA84: 201424 | BB84: 24 | BC84: 2014 | BD84: 2014-06-09 | BE84: 2014-06-15
AX85: 77 | BA85: 201425 | BB85: 25 | BC85: 2014 | BD85: 2014-06-16 | BE85: 2014-06-22
AX86: 78 | BA86: 201426 | BB86: 26 | BC86: 2014 | BD86: 2014-06-23 | BE86: 2014-06-29
AX87: 79 | BA87: 201427 | BB87: 27 | BC87: 2014 | BD87: 2014-06-30 | BE87: 2014-07-06
AX88: 80 | BA88: 201428 | BB88: 28 | BC88: 2014 | BD88: 2014-07-07 | BE88: 2014-07-13
AX89: 81 | BA89: 201429 | BB89: 29 | BC89: 2014 | BD89: 2014-07-14 | BE89: 2014-07-20
AX90: 82 | BA90: 201430 | BB90: 30 | BC90: 2014 | BD90: 2014-07-21 | BE90: 2014-07-27
AX91: 83 | BA91: 201431 | BB91: 31 | BC91: 2014 | BD91: 2014-07-28 | BE91: 2014-08-03
AX92: 84 | BA92: 201432 | BB92: 32 | BC92: 2014 | BD92: 2014-08-04 | BE92: 2014-08-10
AX93: 85 | BA93: 201433 | BB93: 33 | BC93: 2014 | BD93: 2014-08-11 | BE93: 2014-08-17
AX94: 86 | BA94: 201434 | BB94: 34 | BC94: 2014 | BD94: 2014-08-18 | BE94: 2014-08-24
AX95: 87 | BA95: 201435 | BB95: 35 | BC95: 2014 | BD95: 2014-08-25 | BE95: 2014-08-31
AX96: 88 | BA96: 201436 | BB96: 36 | BC96: 2014 | BD96: 2014-09-01 | BE96: 2014-09-07
AX97: 89 | BA97: 201437 | BB97: 37 | BC97: 2014 | BD97: 2014-09-08 | BE97: 2014-09-14
AX98: 90 | BA98: 201438 | BB98: 38 | BC98: 2014 | BD98: 2014-09-15 | BE98: 2014-09-21
AX99: 91 | BA99: 201439 | BB99: 39 | BC99: 2014 | BD99: 2014-09-22 | BE99: 2014-09-28
AX100: 92 | BA100: 201440 | BB100: 40 | BC100: 2014 | BD100: 2014-09-29 | BE100: 2014-10-05
AX101: 93 | BA101: 201441 | BB101: 41 | BC101: 2014 | BD101: 2014-10-06 | BE101: 2014-10-12
AX102: 94 | BA102: 201442 | BB102: 42 | BC102: 2014 | BD102: 2014-10-13 | BE102: 2014-10-19
AX103: 95 | BA103: 201443 | BB103: 43 | BC103: 2014 | BD103: 2014-10-20 | BE103: 2014-10-26
AX104: 96 | BA104: 201444 | BB104: 44 | BC104: 2014 | BD104: 2014-10-27 | BE104: 2014-11-02
AX105: 97 | BA105: 201445 | BB105: 45 | BC105: 2014 | BD105: 2014-11-03 | BE105: 2014-11-09
AX106: 98 | BA106: 201446 | BB106: 46 | BC106: 2014 | BD106: 2014-11-10 | BE106: 2014-11-16
AX107: 99 | BA107: 201447 | BB107: 47 | BC107: 2014 | BD107: 2014-11-17 | BE107: 2014-11-23
AX108: 100 | BA108: 201448 | BB108: 48 | BC108: 2014 | BD108: 2014-11-24 | BE108: 2014-11-30
AX109: 101 | BA109: 201449 | BB109: 49 | BC109: 2014 | BD109: 2014-12-01 | BE109: 2014-12-07
AX110: 102 | BA110: 201450 | BB110: 50 | BC110: 2014 | BD110: 2014-12-08 | BE110: 2014-12-14
AX111: 103 | BA111: 201451 | BB111: 51 | BC111: 2014 | BD111: 2014-12-15 | BE111: 2014-12-21
AX112: 104 | BA112: 201452 | BB112: 52 | BC112: 2014 | BD112: 2014-12-22 | BE112: 2014-12-28
AX113: 105 | BA113: 20151 | BB113: 1 | BC113: 2015 | BD113: 2014-12-29 | BE113: 2015-01-04
AX114: 106 | BA114: 20152 | BB114: 2 | BC114: 2015 | BD114: 2015-01-05 | BE114: 2015-01-11
AX115: 107 | BA115: 20153 | BB115: 3 | BC115: 2015 | BD115: 2015-01-12 | BE115: 2015-01-18
AX116: 108 | BA116: 20154 | BB116: 4 | BC116: 2015 | BD116: 2015-01-19 | BE116: 2015-01-25
AX117: 109 | BA117: 20155 | BB117: 5 | BC117: 2015 | BD117: 2015-01-26 | BE117: 2015-02-01
AX118: 110 | BA118: 20156 | BB118: 6 | BC118: 2015 | BD118: 2015-02-02 | BE118: 2015-02-08
AX119: 111 | BA119: 20157 | BB119: 7 | BC119: 2015 | BD119: 2015-02-09 | BE119: 2015-02-15
AX120: 112 | BA120: 20158 | BB120: 8 | BC120: 2015 | BD120: 2015-02-16 | BE120: 2015-02-22
AX121: 113 | BA121: 20159 | BB121: 9 | BC121: 2015 | BD121: 2015-02-23 | BE121: 2015-03-01
AX122: 114 | BA122: 201510 | BB122: 10 | BC122: 2015 | BD122: 2015-03-02 | BE122: 2015-03-08
AX123: 115 | BA123: 201511 | BB123: 11 | BC123: 2015 | BD123: 2015-03-09 | BE123: 2015-03-15
AX124: 116 | BA124: 201512 | BB124: 12 | BC124: 2015 | BD124: 2015-03-16 | BE124: 2015-03-22
AX125: 117 | BA125: 201513 | BB125: 13 | BC125: 2015 | BD125: 2015-03-23 | BE125: 2015-03-29
AX126: 118 | BA126: 201514 | BB126: 14 | BC126: 2015 | BD126: 2015-03-30 | BE126: 2015-04-05
AX127: 119 | BA127: 201515 | BB127: 15 | BC127: 2015 | BD127: 2015-04-06 | BE127: 2015-04-12
AX128: 120 | BA128: 201516 | BB128: 16 | BC128: 2015 | BD128: 2015-04-13 | BE128: 2015-04-19
AX129: 121 | BA129: 201517 | BB129: 17 | BC129: 2015 | BD129: 2015-04-20 | BE129: 2015-04-26
AX130: 122 | BA130: 201518 | BB130: 18 | BC130: 2015 | BD130: 2015-04-27 | BE130: 2015-05-03
AX131: 123 | BA131: 201519 | BB131: 19 | BC131: 2015 | BD131: 2015-05-04 | BE131: 2015-05-10
AX132: 124 | BA132: 201520 | BB132: 20 | BC132: 2015 | BD132: 2015-05-11 | BE132: 2015-05-17
AX133: 125 | BA133: 201521 | BB133: 21 | BC133: 2015 | BD133: 2015-05-18 | BE133: 2015-05-24
AX134: 126 | BA134: 201522 | BB134: 22 | BC134: 2015 | BD134: 2015-05-25 | BE134: 2015-05-31
AX135: 127 | BA135: 201523 | BB135: 23 | BC135: 2015 | BD135: 2015-06-01 | BE135: 2015-06-07
AX136: 128 | BA136: 201524 | BB136: 24 | BC136: 2015 | BD136: 2015-06-08 | BE136: 2015-06-14
AX137: 129 | BA137: 201525 | BB137: 25 | BC137: 2015 | BD137: 2015-06-15 | BE137: 2015-06-21
AX138: 130 | BA138: 201526 | BB138: 26 | BC138: 2015 | BD138: 2015-06-22 | BE138: 2015-06-28
AX139: 131 | BA139: 201527 | BB139: 27 | BC139: 2015 | BD139: 2015-06-29 | BE139: 2015-07-05
AX140: 132 | BA140: 201528 | BB140: 28 | BC140: 2015 | BD140: 2015-07-06 | BE140: 2015-07-12
AX141: 133 | BA141: 201529 | BB141: 29 | BC141: 2015 | BD141: 2015-07-13 | BE141: 2015-07-19
AX142: 134 | BA142: 201530 | BB142: 30 | BC142: 2015 | BD142: 2015-07-20 | BE142: 2015-07-26
AX143: 135 | BA143: 201531 | BB143: 31 | BC143: 2015 | BD143: 2015-07-27 | BE143: 2015-08-02
AX144: 136 | BA144: 201532 | BB144: 32 | BC144: 2015 | BD144: 2015-08-03 | BE144: 2015-08-09
AX145: 137 | BA145: 201533 | BB145: 33 | BC145: 2015 | BD145: 2015-08-10 | BE145: 2015-08-16
AX146: 138 | BA146: 201534 | BB146: 34 | BC146: 2015 | BD146: 2015-08-17 | BE146: 2015-08-23
AX147: 139 | BA147: 201535 | BB147: 35 | BC147: 2015 | BD147: 2015-08-24 | BE147: 2015-08-30
AX148: 140 | BA148: 201536 | BB148: 36 | BC148: 2015 | BD148: 2015-08-31 | BE148: 2015-09-06
AX149: 141 | BA149: 201537 | BB149: 37 | BC149: 2015 | BD149: 2015-09-07 | BE149: 2015-09-13
AX150: 142 | BA150: 201538 | BB150: 38 | BC150: 2015 | BD150: 2015-09-14 | BE150: 2015-09-20
AX151: 143 | BA151: 201539 | BB151: 39 | BC151: 2015 | BD151: 2015-09-21 | BE151: 2015-09-27
AX152: 144 | BA152: 201540 | BB152: 40 | BC152: 2015 | BD152: 2015-09-28 | BE152: 2015-10-04
AX153: 145 | BA153: 201541 | BB153: 41 | BC153: 2015 | BD153: 2015-10-05 | BE153: 2015-10-11
AX154: 146 | BA154: 201542 | BB154: 42 | BC154: 2015 | BD154: 2015-10-12 | BE154: 2015-10-18
AX155: 147 | BA155: 201543 | BB155: 43 | BC155: 2015 | BD155: 2015-10-19 | BE155: 2015-10-25
AX156: 148 | BA156: 201544 | BB156: 44 | BC156: 2015 | BD156: 2015-10-26 | BE156: 2015-11-01
AX157: 149 | BA157: 201545 | BB157: 45 | BC157: 2015 | BD157: 2015-11-02 | BE157: 2015-11-08
AX158: 150 | BA158: 201546 | BB158: 46 | BC158: 2015 | BD158: 2015-11-09 | BE158: 2015-11-15
AX159: 151 | BA159: 201547 | BB159: 47 | BC159: 2015 | BD159: 2015-11-16 | BE159: 2015-11-22
AX160: 152 | BA160: 201548 | BB160: 48 | BC160: 2015 | BD160: 2015-11-23 | BE160: 2015-11-29
AX161: 153 | BA161: 201549 | BB161: 49 | BC161: 2015 | BD161: 2015-11-30 | BE161: 2015-12-06
AX162: 154 | BA162: 201550 | BB162: 50 | BC162: 2015 | BD162: 2015-12-07 | BE162: 2015-12-13
AX163: 155 | BA163: 201551 | BB163: 51 | BC163: 2015 | BD163: 2015-12-14 | BE163: 2015-12-20
AX164: 156 | BA164: 201552 | BB164: 52 | BC164: 2015 | BD164: 2015-12-21 | BE164: 2015-12-27
AX165: 157 | BA165: 20161 | BB165: 1 | BC165: 2016 | BD165: 2015-12-28 | BE165: 2016-01-03
AX166: 158 | BA166: 20162 | BB166: 2 | BC166: 2016 | BD166: 2016-01-04 | BE166: 2016-01-10
AX167: 159 | BA167: 20163 | BB167: 3 | BC167: 2016 | BD167: 2016-01-11 | BE167: 2016-01-17
AX168: 160 | BA168: 20164 | BB168: 4 | BC168: 2016 | BD168: 2016-01-18 | BE168: 2016-01-24
AX169: 161 | BA169: 20165 | BB169: 5 | BC169: 2016 | BD169: 2016-01-25 | BE169: 2016-01-31
AX170: 162 | BA170: 20166 | BB170: 6 | BC170: 2016 | BD170: 2016-02-01 | BE170: 2016-02-07
AX171: 163 | BA171: 20167 | BB171: 7 | BC171: 2016 | BD171: 2016-02-08 | BE171: 2016-02-14
AX172: 164 | BA172: 20168 | BB172: 8 | BC172: 2016 | BD172: 2016-02-15 | BE172: 2016-02-21
AX173: 165 | BA173: 20169 | BB173: 9 | BC173: 2016 | BD173: 2016-02-22 | BE173: 2016-02-28
AX174: 166 | BA174: 201610 | BB174: 10 | BC174: 2016 | BD174: 2016-02-29 | BE174: 2016-03-06
AX175: 167 | BA175: 201611 | BB175: 11 | BC175: 2016 | BD175: 2016-03-07 | BE175: 2016-03-13
AX176: 168 | BA176: 201612 | BB176: 12 | BC176: 2016 | BD176: 2016-03-14 | BE176: 2016-03-20
AX177: 169 | BA177: 201613 | BB177: 13 | BC177: 2016 | BD177: 2016-03-21 | BE177: 2016-03-27
AX178: 170 | BA178: 201614 | BB178: 14 | BC178: 2016 | BD178: 2016-03-28 | BE178: 2016-04-03
AX179: 171 | BA179: 201615 | BB179: 15 | BC179: 2016 | BD179: 2016-04-04 | BE179: 2016-04-10
AX180: 172 | BA180: 201616 | BB180: 16 | BC180: 2016 | BD180: 2016-04-11 | BE180: 2016-04-17
AX181: 173 | BA181: 201617 | BB181: 17 | BC181: 2016 | BD181: 2016-04-18 | BE181: 2016-04-24
AX182: 174 | BA182: 201618 | BB182: 18 | BC182: 2016 | BD182: 2016-04-25 | BE182: 2016-05-01
AX183: 175 | BA183: 201619 | BB183: 19 | BC183: 2016 | BD183: 2016-05-02 | BE183: 2016-05-08
AX184: 176 | BA184: 201620 | BB184: 20 | BC184: 2016 | BD184: 2016-05-09 | BE184: 2016-05-15
AX185: 177 | BA185: 201621 | BB185: 21 | BC185: 2016 | BD185: 2016-05-16 | BE185: 2016-05-22
AX186: 178 | BA186: 201622 | BB186: 22 | BC186: 2016 | BD186: 2016-05-23 | BE186: 2016-05-29
AX187: 179 | BA187: 201623 | BB187: 23 | BC187: 2016 | BD187: 2016-05-30 | BE187: 2016-06-05
AX188: 180 | BA188: 201624 | BB188: 24 | BC188: 2016 | BD188: 2016-06-06 | BE188: 2016-06-12
AX189: 181 | BA189: 201625 | BB189: 25 | BC189: 2016 | BD189: 2016-06-13 | BE189: 2016-06-19
AX190: 182 | BA190: 201626 | BB190: 26 | BC190: 2016 | BD190: 2016-06-20 | BE190: 2016-06-26
AX191: 183 | BA191: 201627 | BB191: 27 | BC191: 2016 | BD191: 2016-06-27 | BE191: 2016-07-03
AX192: 184 | BA192: 201628 | BB192: 28 | BC192: 2016 | BD192: 2016-07-04 | BE192: 2016-07-10
AX193: 185 | BA193: 201629 | BB193: 29 | BC193: 2016 | BD193: 2016-07-11 | BE193: 2016-07-17
AX194: 186 | BA194: 201630 | BB194: 30 | BC194: 2016 | BD194: 2016-07-18 | BE194: 2016-07-24
AX195: 187 | BA195: 201631 | BB195: 31 | BC195: 2016 | BD195: 2016-07-25 | BE195: 2016-07-31
AX196: 188 | BA196: 201632 | BB196: 32 | BC196: 2016 | BD196: 2016-08-01 | BE196: 2016-08-07
AX197: 189 | BA197: 201633 | BB197: 33 | BC197: 2016 | BD197: 2016-08-08 | BE197: 2016-08-14
AX198: 190 | BA198: 201634 | BB198: 34 | BC198: 2016 | BD198: 2016-08-15 | BE198: 2016-08-21
AX199: 191 | BA199: 201635 | BB199: 35 | BC199: 2016 | BD199: 2016-08-22 | BE199: 2016-08-28
AX200: 192 | BA200: 201636 | BB200: 36 | BC200: 2016 | BD200: 2016-08-29 | BE200: 2016-09-04
AX201: 193 | BA201: 201637 | BB201: 37 | BC201: 2016 | BD201: 2016-09-05 | BE201: 2016-09-11
AX202: 194 | BA202: 201638 | BB202: 38 | BC202: 2016 | BD202: 2016-09-12 | BE202: 2016-09-18
AX203: 195 | BA203: 201639 | BB203: 39 | BC203: 2016 | BD203: 2016-09-19 | BE203: 2016-09-25
AX204: 196 | BA204: 201640 | BB204: 40 | BC204: 2016 | BD204: 2016-09-26 | BE204: 2016-10-02
AX205: 197 | BA205: 201641 | BB205: 41 | BC205: 2016 | BD205: 2016-10-03 | BE205: 2016-10-09
AX206: 198 | BA206: 201642 | BB206: 42 | BC206: 2016 | BD206: 2016-10-10 | BE206: 2016-10-16
... 828 more rows
